Dept/Family,Entity,Expense Type,Expense Area,Supplier,Description,Payment Date, Amount ,SME,UNSPCC code,UNSPCC Description
Communities and Local Government,Homes and Communities Agency,Spatial Intelligence Telford,Programmes,OLDHAM COUNCIL,DAP2080-SERVICE-Oldham Magistrates Court - Business Rates,25/08/2017," 127,873.32 ",G,80131500,Lease and rental of property or building
Communities and Local Government,Homes and Communities Agency,Capital Grant to Local Authorities,North West,WIGAN COUNCIL,Daily IMS payment,24/08/2017," 787,500.00 ",G,N/A,Grant
Communities and Local Government,Homes and Communities Agency,Capital Grant to Local Authorities,North East And Yorkshire,BARNSLEY METROPOLITAN BOROUGH COUNCIL,Daily IMS payment,04/08/2017," 9,000.00 ",G,N/A,Grant
Communities and Local Government,Homes and Communities Agency,Capital Grant to Local Authorities,North East And Yorkshire,BARNSLEY METROPOLITAN BOROUGH COUNCIL,Daily IMS payment,04/08/2017," 6,000.00 ",G,N/A,Grant
Communities and Local Government,Homes and Communities Agency,Capital Grant to Local Authorities,North East And Yorkshire,SHEFFIELD CITY COUNCIL,Daily IMS payment,31/08/2017," 10,000.00 ",G,N/A,Grant
Communities and Local Government,Homes and Communities Agency,Capital Grant to Local Authorities,North East And Yorkshire,GATESHEAD METROPOLITAN BOROUGH COUNCIL,Daily IMS payment,11/08/2017, 791.00 ,G,N/A,Grant
Communities and Local Government,Homes and Communities Agency,Capital Grant to Local Authorities,North East And Yorkshire,CITY OF BRADFORD METROPOLITAN DISTRICT,Daily IMS payment,24/08/2017," 250,000.00 ",G,N/A,Grant
Communities and Local Government,Homes and Communities Agency,Capital Grant to Local Authorities,North East And Yorkshire,LEEDS CITY COUNCIL,Daily IMS payment,16/08/2017," 132,000.00 ",G,N/A,Grant
Communities and Local Government,Homes and Communities Agency,Capital Grant to Local Authorities,North East And Yorkshire,LEEDS CITY COUNCIL,Daily IMS payment,18/08/2017," 20,852.00 ",G,N/A,Grant
Communities and Local Government,Homes and Communities Agency,Capital Grant to Local Authorities,North East And Yorkshire,LEEDS CITY COUNCIL,Daily IMS payment,18/08/2017," 20,852.00 ",G,N/A,Grant
Communities and Local Government,Homes and Communities Agency,Capital Grant to Local Authorities,North East And Yorkshire,LEEDS CITY COUNCIL,Daily IMS payment,25/08/2017," 13,901.00 ",G,N/A,Grant
Communities and Local Government,Homes and Communities Agency,Capital Grant to Local Authorities,North East And Yorkshire,LEEDS CITY COUNCIL,Daily IMS payment,25/08/2017," 13,901.00 ",G,N/A,Grant
Communities and Local Government,Homes and Communities Agency,Capital Grant to Local Authorities,North East And Yorkshire,MIDDLEBROUGH COUNCIL,Daily IMS payment,15/08/2017," 8,800.00 ",G,N/A,Grant
Communities and Local Government,Homes and Communities Agency,Capital Grant to Local Authorities,North East And Yorkshire,KINGSTON UPON HULL CITY COUNCIL,Daily IMS payment,21/08/2017," 8,500.00 ",G,N/A,Grant
Communities and Local Government,Homes and Communities Agency,Capital Grant to Local Authorities,North East And Yorkshire,KINGSTON UPON HULL CITY COUNCIL,Daily IMS payment,21/08/2017," 599,000.00 ",G,N/A,Grant
Communities and Local Government,Homes and Communities Agency,Capital Grant to Local Authorities,North East And Yorkshire,KINGSTON UPON HULL CITY COUNCIL,Daily IMS payment,21/08/2017," 5,000.00 ",G,N/A,Grant
Communities and Local Government,Homes and Communities Agency,Capital Grant to Local Authorities,North East And Yorkshire,EAST RIDING OF YORKSHIRE COUNCIL,Daily IMS payment,23/08/2017," 18,750.00 ",G,N/A,Grant
Communities and Local Government,Homes and Communities Agency,Capital Grant to Local Authorities,North East And Yorkshire,EAST RIDING OF YORKSHIRE COUNCIL,Daily IMS payment,31/08/2017," 18,750.00 ",G,N/A,Grant
Communities and Local Government,Homes and Communities Agency,Capital Grant to Local Authorities,Midlands,SHROPSHIRE COUNCIL,Daily IMS payment,21/08/2017," 67,500.00 ",G,N/A,Grant
Communities and Local Government,Homes and Communities Agency,Capital Grant to Local Authorities,Midlands,SHROPSHIRE COUNCIL,Daily IMS payment,23/08/2017," 25,000.00 ",G,N/A,Grant
Communities and Local Government,Homes and Communities Agency,Capital Grant to Local Authorities,Midlands,SHROPSHIRE COUNCIL,Daily IMS payment,24/08/2017," 37,500.00 ",G,N/A,Grant
Communities and Local Government,Homes and Communities Agency,Capital Grant to Local Authorities,East And South East,PORTSMOUTH CITY COUNCIL,Daily IMS payment,23/08/2017," 165,000.00 ",G,N/A,Grant
Communities and Local Government,Homes and Communities Agency,Estate Management Yorks,North West,ANTHONY MICHAEL COX,"DAM2994-SERVICE-TELFORD GENERAL     Patrols, property inspect",03/08/2017, 520.00 ,S,92121500,Guard services
Communities and Local Government,Homes and Communities Agency,Estate Management Yorks,North West,ANTHONY MICHAEL COX,DAM2994-SERVICE-TELFORD GENERAL     Service and eviction of t,03/08/2017," 1,090.00 ",S,92121500,Guard services
Communities and Local Government,Homes and Communities Agency,Estate Management Yorks,North West,ANTHONY MICHAEL COX,"DAM2994-SERVICE-TELFORD GENERAL     Patrols, property inspect",03/08/2017, 480.00 ,S,92121500,Guard services
Communities and Local Government,Homes and Communities Agency,Estate Management Yorks,North West,ANTHONY MICHAEL COX,"DAP1636-SERVICE-Patrols, property inspections and hire of bar",03/08/2017, 480.00 ,S,92121500,Guard services
Communities and Local Government,Homes and Communities Agency,Estate Management Yorks,North West,ANTHONY MICHAEL COX,"DAP1636-SERVICE-Patrols, property inspections and hire of bar",03/08/2017, 800.00 ,S,92121500,Guard services
Communities and Local Government,Homes and Communities Agency,Estate Management Yorks,North West,ANTHONY MICHAEL COX,"DAP1636-SERVICE-Patrols, property inspections and hire of bar",03/08/2017, 570.00 ,S,92121500,Guard services
Communities and Local Government,Homes and Communities Agency,Estate Management Yorks,North West,ANTHONY MICHAEL COX,"DAP1636-SERVICE-Patrols, property inspections and hire of bar",03/08/2017," 1,000.00 ",S,92121500,Guard services
Communities and Local Government,Homes and Communities Agency,Estate Management Yorks,North West,ANTHONY MICHAEL COX,"DAP1636-SERVICE-Patrols, property inspections and hire of bar",03/08/2017, 400.00 ,S,92121500,Guard services
Communities and Local Government,Homes and Communities Agency,Capital Grant to Local Authorities,East And South East,CAMBRIDGE CITY COUNCIL,Daily IMS payment,30/08/2017," 97,125.00 ",G,N/A,Grant
Communities and Local Government,Homes and Communities Agency,Comms Transition Budget,Finance & Corporate Services,SPRINGSTAR LTD,DAP0128-SERVICE-Consumable items for plan printer,10/08/2017, 975.86 ,S,44101700,Printer and photocopier and facsimile accessories
Communities and Local Government,Homes and Communities Agency,Estate Management Yorks,North West,R D LANDSCAPES LTD,DAP1697-SERVICE-Tattenhoe Park - remove all fly tip over site,14/08/2017," 1,200.00 ",S,72101500,Building maintenance and repair services
Communities and Local Government,Homes and Communities Agency,Mk Development Control Mk,Midlands,R D LANDSCAPES LTD,DAP1610-SERVICE-Emergency Health and Safety works and clean u,15/08/2017," 8,595.00 ",S,72101500,Building maintenance and repair services
Communities and Local Government,Homes and Communities Agency,Budget 2013 - Midlands Wm,Midlands,SIMON TRANTER LANDSCAPE CONTRACTORS,"DAP1863-SERVICE-Mile Bank Road - resecuring of buildings, ere",14/08/2017," 2,922.00 ",S,72101500,Building maintenance and repair services
Communities and Local Government,Homes and Communities Agency,Budget 2013 - Midlands Wm,Midlands,SIMON TRANTER LANDSCAPE CONTRACTORS,"DAP1866-SERVICE-rownlow Road - re-securing property, addition",14/08/2017, 745.00 ,S,72101500,Building maintenance and repair services
Communities and Local Government,Homes and Communities Agency,Budget 2013 - Midlands Wm,Midlands,SIMON TRANTER LANDSCAPE CONTRACTORS,"DAP1865-SERVICE-Ridge Hill - remove fly tipped rubbish, assis",14/08/2017," 2,040.00 ",S,72101500,Building maintenance and repair services
Communities and Local Government,Homes and Communities Agency,Budget 2013 - Midlands Wm,Midlands,SIMON TRANTER LANDSCAPE CONTRACTORS,"DAP1862-SERVICE-Clear tipped rubbish, repair fences and backf",14/08/2017," 1,170.00 ",S,72101500,Building maintenance and repair services
Communities and Local Government,Homes and Communities Agency,Area Dir Mids Worcs-Shrop-Here,Midlands,BOURNVILLE VILLAGE DEVELOPMENTS LTD,DWM0521-SERVICE-Payment of funding to deliver HCA land,25/08/2017," 13,103.48 ",,N/A,Grant
Communities and Local Government,Homes and Communities Agency,East And Se Cambs Herts And Bu,East And South East,CROWN ESTATE COMMISSIONERS,DEE0044-SERVICE-Payment of consultants for planning app.,16/08/2017," 1,580.89 ",L,80131500,Lease and rental of property or building
Communities and Local Government,Homes and Communities Agency,Economic Assets S&Sw Prog,South West,ENVIRONMENT AGENCY,ENVIRONMENT AGENCY PERMIT,02/08/2017, 250.00 ,G,72101500,Building maintenance and repair services
Communities and Local Government,Homes and Communities Agency,Comms Transition Budget,Finance & Corporate Services,KNIGHT FRANK LLP,DAP0162-SERVICE-Service charge relating to Building 5,29/08/2017," 2,410.83 ",L,80131500,Lease and rental of property or building
Communities and Local Government,Homes and Communities Agency,Company Secretary Mh,Finance & Corporate Services,IRON MOUNTAIN (UK) LTD,DAP1504-SERVICE-Iron Mountain Storage,10/08/2017," 7,041.27 ",L,78131800,Specialized warehousing and storage
Communities and Local Government,Homes and Communities Agency,Public Land and Regeneration,Programmes,VALUATION OFFICE AGENCY ADMINISTRATION,IT72554-SERVICE-Public Sector Land Programme - Valaution (HCA,18/08/2017," 2,050.78 ",G,80131800,Real estate management services
Communities and Local Government,Homes and Communities Agency,Public Land and Regeneration,Programmes,VALUATION OFFICE AGENCY ADMINISTRATION,IT72194-SERVICE-Valuation of Blood Centre,30/08/2017, 604.52 ,G,80131800,Real estate management services
Communities and Local Government,Homes and Communities Agency,Comms Transition Budget,Finance & Corporate Services,MK LONDON LINK,DAP1880-SERVICE-Courier service for HCA Bedford,04/08/2017," 1,185.54 ",S,78102200,Postal and small parcel and courier services
Communities and Local Government,Homes and Communities Agency,Comms Transition Budget,Finance & Corporate Services,BAGNALL & MORRIS WASTE SERVICES LTD,"DAP0095-SERVICE-Collection, processing and disposal of waste",04/08/2017, 350.45 ,M,76121500,Refuse collection and disposal
Communities and Local Government,Homes and Communities Agency,Estate Management Yorks,North West,NETWORK RAIL INFRASTRUCTURE LTD,DAP2069-SERVICE-Bridge Maintenance Charges,31/08/2017, 583.20 ,L,80131800,Real estate management services
Communities and Local Government,Homes and Communities Agency,Estate Management Yorks,North West,NETWORK RAIL INFRASTRUCTURE LTD,DAP2069-SERVICE-Bridge Maintenance Charges,31/08/2017, 583.20 ,L,80131800,Real estate management services
Communities and Local Government,Homes and Communities Agency,Economic Assets S&Sw Prog,South West,GROUND CONTROL LIMITED,DSW1110-SERVICE-Daedalus - grounds maintenance work to the re,04/08/2017," 2,477.75 ",L,72101500,Building maintenance and repair services
Communities and Local Government,Homes and Communities Agency,Capital Grant to Local Authorities,North West,CRAVEN DISTRICT,Daily IMS payment,31/08/2017," 279,296.00 ",G,N/A,Grant
Communities and Local Government,Homes and Communities Agency,Capital Grant to Local Authorities,North East And Yorkshire,BASSETLAW DISTRICT COUCIL,Daily IMS payment,04/08/2017," 92,000.00 ",G,N/A,Grant
Communities and Local Government,Homes and Communities Agency,Capital Grant to Local Authorities,North West,GLOUCESTER CITY HOMES,Daily IMS payment,02/08/2017," 54,000.00 ",,N/A,Grant
Communities and Local Government,Homes and Communities Agency,Capital Grant to Local Authorities,North West,GLOUCESTER CITY HOMES,Daily IMS payment,31/08/2017," 54,000.00 ",,N/A,Grant
Communities and Local Government,Homes and Communities Agency,Capital Grant to RPs,North East And Yorkshire,KARBON HOMES -ISOS HOUSING LIMITED,Daily IMS payment,08/08/2017," 9,000.00 ",,N/A,Grant
Communities and Local Government,Homes and Communities Agency,Capital Grant to RPs,North East And Yorkshire,KARBON HOMES -ISOS HOUSING LIMITED,Daily IMS payment,18/08/2017," 100,000.00 ",,N/A,Grant
Communities and Local Government,Homes and Communities Agency,Capital Grant to RPs,North East And Yorkshire,KARBON HOMES -ISOS HOUSING LIMITED,Daily IMS payment,18/08/2017," 100,000.00 ",,N/A,Grant
Communities and Local Government,Homes and Communities Agency,Capital Grant to RPs,North East And Yorkshire,KEELMAN HOMES,Daily IMS payment,07/08/2017," 15,000.00 ",,N/A,Grant
Communities and Local Government,Homes and Communities Agency,Capital Grant to RPs,North East And Yorkshire,KEELMAN HOMES,Daily IMS payment,10/08/2017," 15,750.00 ",,N/A,Grant
Communities and Local Government,Homes and Communities Agency,Capital Grant to RPs,North East And Yorkshire,KEELMAN HOMES,Daily IMS payment,24/08/2017," 10,000.00 ",,N/A,Grant
Communities and Local Government,Homes and Communities Agency,Capital Grant to RPs,North East And Yorkshire,KEELMAN HOMES,Daily IMS payment,24/08/2017," 10,000.00 ",,N/A,Grant
Communities and Local Government,Homes and Communities Agency,Capital Grant to RPs,North East And Yorkshire,KEELMAN HOMES,Daily IMS payment,24/08/2017," 10,000.00 ",,N/A,Grant
Communities and Local Government,Homes and Communities Agency,Capital Grant to RPs,North West,REGENDA LIMITED,Daily IMS payment,04/08/2017," 9,000.00 ",,N/A,Grant
Communities and Local Government,Homes and Communities Agency,Capital Grant to RPs,North East And Yorkshire,ACTION HOUSING AND SUPPORT,Daily IMS payment,31/08/2017," 13,500.00 ",,N/A,Grant
Communities and Local Government,Homes and Communities Agency,Capital Grant to RPs,North East And Yorkshire,ACTION HOUSING AND SUPPORT,Daily IMS payment,31/08/2017," 202,500.00 ",,N/A,Grant
Communities and Local Government,Homes and Communities Agency,Capital Grant to RPs,North East And Yorkshire,TCUK HOMES LIMITED,Daily IMS payment,10/08/2017," 16,500.00 ",,N/A,Grant
Communities and Local Government,Homes and Communities Agency,Capital Grant to RPs,North East And Yorkshire,TCUK HOMES LIMITED,Daily IMS payment,15/08/2017," 5,500.00 ",,N/A,Grant
Communities and Local Government,Homes and Communities Agency,Capital Grant to RPs,North East And Yorkshire,TCUK HOMES LIMITED,Daily IMS payment,31/08/2017," 16,500.00 ",,N/A,Grant
Communities and Local Government,Homes and Communities Agency,Capital Grant to RPs,North East And Yorkshire,TCUK HOMES LIMITED,Daily IMS payment,31/08/2017," 16,500.00 ",,N/A,Grant
Communities and Local Government,Homes and Communities Agency,Capital Grant to RPs,North East And Yorkshire,SOUTH TYNESIDE HOUSING VENTURE TRUST LTD,Daily IMS payment,30/08/2017," 295,904.00 ",,N/A,Grant
Communities and Local Government,Homes and Communities Agency,South East,East And South East,AFFINITY  WATER LIMITED SOUTHEAST REGION,DAM3519-SERVICE-DOVER CONNAUGHT BARRACKS     Call off order.,04/08/2017, 510.17 ,L,83101500,Water and sewer utilities
Communities and Local Government,Homes and Communities Agency,Economic Assets Ne-Y Prog,North East And Yorkshire,GARDENSTYLE LTD,DAP0975-SERVICE-Undertake routine maintenance and keep site c,04/08/2017, 310.00 ,S,76111500,General building and office cleaining and maintenance services
Communities and Local Government,Homes and Communities Agency,Economic Assets S&Sw Prog,South West,DYER & BUTLER LTD,DSW0864-SERVICE-Temple Quarter enabling  infrastructure works,03/08/2017," 41,891.11 ",L,811001500,Civil Engineering
Communities and Local Government,Homes and Communities Agency,Economic Assets S&Sw Prog,South West,PT CONTRACTORS LTD,DAP0238-SERVICE-East Cowes repairs to highway works,04/08/2017," 13,730.00 ",M,72141500,Land preparation services
Communities and Local Government,Homes and Communities Agency,Economic Assets S&Sw Prog,South West,PT CONTRACTORS LTD,DAP0197-SERVICE-Three Gates Road - road repairs,11/08/2017," 2,000.00 ",M,72141500,Land preparation services
Communities and Local Government,Homes and Communities Agency,Economic Assets S&Sw Prog,South West,PT CONTRACTORS LTD,DSW0989-SERVICE-Island Tech Park - Foul Water pumping stn,18/08/2017," 4,794.16 ",M,72141500,Land preparation services
Communities and Local Government,Homes and Communities Agency,Economic Assets S&Sw Prog,South West,PT CONTRACTORS LTD,DSW0890-SERVICE-Island Tech Park-Foul Water Pumping Station D,18/08/2017, 476.85 ,M,72141500,Land preparation services
Communities and Local Government,Homes and Communities Agency,Economic Assets S&Sw Prog,South West,PT CONTRACTORS LTD,DSW0989-SERVICE-Island Tech Park - Foul Water pumping stn,23/08/2017, 585.10 ,M,72141500,Land preparation services
Communities and Local Government,Homes and Communities Agency,South West Hants-Iow-Dorset-Bu,South West,MARINE MANAGEMENT ORGANISATION,DAP1825-SERVICE-Surveys in connection with dredging licencing,02/08/2017," 2,444.00 ",G,80131500,Lease and rental of property or building
Communities and Local Government,Homes and Communities Agency,Ne-Y North East Washington,North East And Yorkshire,AMION CONSULTING LTD,IT72595-SERVICE-Economic Appraisal of Acquisition of former B,08/08/2017," 5,000.00 ",S,81121500,Economic analysis
Communities and Local Government,Homes and Communities Agency,Land And Regeneration National,Programmes,AMION CONSULTING LTD,IT73566-SERVICE-Senior Specialist Economics Cover ,08/08/2017," 4,864.86 ",S,81121500,Economic analysis
Communities and Local Government,Homes and Communities Agency,Land And Regeneration National,Programmes,AMION CONSULTING LTD,IT71455-SERVICE-Amion 1st interim fee note,16/08/2017," 2,934.30 ",S,81121500,Economic analysis
Communities and Local Government,Homes and Communities Agency,Land And Regeneration National,Programmes,AMION CONSULTING LTD,IT71455-SERVICE-DCLG appraisal guidance,16/08/2017, 978.10 ,S,81121500,Economic analysis
Communities and Local Government,Homes and Communities Agency,Spatial Intelligence Telford,Programmes,AMION CONSULTING LTD,IT71341-SERVICE-Delegations Final fee,16/08/2017," 1,970.00 ",S,81121500,Economic analysis
Communities and Local Government,Homes and Communities Agency,Ad Manchester Trafford,North West,AMION CONSULTING LTD,IT72748-SERVICE-Moss Nook Green Book,31/08/2017," 8,000.00 ",S,81121500,Economic analysis
Communities and Local Government,Homes and Communities Agency,Economic Assets Hub Transition,Economic Assets Hub,AQUINNA DEVELOPMENTS LIMITED,STF-Manor Road-Aug17,10/08/2017," 343,360.00 ",,N/A,Loans
Communities and Local Government,Homes and Communities Agency,Ftbi South East,East And South East,ATKINS LTD,IT71327-SERVICE-Northstowe Phase 2 Cost Consultancy,01/08/2017," 2,050.00 ",L,80131800,Real estate management services
Communities and Local Government,Homes and Communities Agency,Liverpool Cheshire Warrington,North West,ATKINS LTD,IT70890-SERVICE-HCA Land at Appleton Cross,01/08/2017," 4,372.51 ",L,80131800,Real estate management services
Communities and Local Government,Homes and Communities Agency,Liverpool Cheshire Warrington,North West,ATKINS LTD,IT70894-SERVICE-HCA Land at Grappenhall Heys,01/08/2017," 4,372.51 ",L,80131800,Real estate management services
Communities and Local Government,Homes and Communities Agency,East And Se Cambs Herts And Bu,East And South East,AUTOMOTIVE LEASING,DGC0671-SERVICE-Steve Collins Lease Rental,21/08/2017," 2,106.07 ",L,25101500,Passenger motor vehicles
Communities and Local Government,Homes and Communities Agency,East And Se Cambs Herts And Bu,East And South East,AUTOMOTIVE LEASING,DGC0671-SERVICE-Steve Collins,21/08/2017," 2,834.06 ",L,25101500,Passenger motor vehicles
Communities and Local Government,Homes and Communities Agency,East And Se Essex And Kent,East And South East,ALPHABET (GB) LTD,DGC1368-SERVICE-NG12RYH 6 MONTHS INFORMAL LEASE COST,08/08/2017," 1,124.40 ",L,25101500,Passenger motor vehicles
Communities and Local Government,Homes and Communities Agency,Economic Assets Hub Transition,Economic Assets Hub,ABERFELDY NEW VILLAGE LLP,LTF-Aberfeldy New Village-Aug17,18/08/2017," 84,073.27 ",,N/A,Loans
Communities and Local Government,Homes and Communities Agency,Comms Transition Budget,Finance & Corporate Services,AMBER SCREEN AND DISPLAY,DAP1853-SERVICE-Remove and paint HCA theme wall,11/08/2017, 649.00 ,S,72102900,Facility maintenance and repair services
Communities and Local Government,Homes and Communities Agency,Comms Transition Budget,Finance & Corporate Services,AMBER SCREEN AND DISPLAY,DAP1856-SERVICE-Remove and paint 1 x HCA theme wall. Strip HC,11/08/2017, 720.00 ,S,72102900,Facility maintenance and repair services
Communities and Local Government,Homes and Communities Agency,Comms Transition Budget,Finance & Corporate Services,AMBER SCREEN AND DISPLAY,DAP1858-SERVICE-Remove and paint 2 x HCA theme walls (Bristol,11/08/2017, 920.00 ,S,72102900,Facility maintenance and repair services
Communities and Local Government,Homes and Communities Agency,Comms Transition Budget,Finance & Corporate Services,AMBER SCREEN AND DISPLAY,DAP1855-SERVICE-Remove and paint 2 x HCA theme walls (Cambrid,11/08/2017, 746.00 ,S,72102900,Facility maintenance and repair services
Communities and Local Government,Homes and Communities Agency,Comms Transition Budget,Finance & Corporate Services,AMBER SCREEN AND DISPLAY,DAP1859-SERVICE-Paint all the HCA coloured corporate walls (B,23/08/2017," 1,804.33 ",S,72102900,Facility maintenance and repair services
Communities and Local Government,Homes and Communities Agency,East And South East,East And South East,AOC HOLDINGS LIMITED,DAP1937-SERVICE-Rochester Riverside - Desktop Appraisal,14/08/2017, 740.00 ,S,80131800,Real estate management services
Communities and Local Government,Homes and Communities Agency,Company Secretary Mh,Finance & Corporate Services,ACT NOW TRAINING LTD,DAP2052-SERVICE-Act Now Training Course - Robert Bean,23/08/2017," 1,950.00 ",M,86101800,In service training and manpower development
Communities and Local Government,Homes and Communities Agency,Company Secretary Mh,Finance & Corporate Services,ACT NOW TRAINING LTD,DAP2052-SERVICE-Act Now Training Course - Margaret Connolly,23/08/2017," 1,950.00 ",M,86101800,In service training and manpower development
Communities and Local Government,Homes and Communities Agency,Economic Assets Ne-Y Prog,North East And Yorkshire,AIREDALE FORESTRY,DAP1205-SERVICE-Cut back Himalayan Balsam - Sedge,03/08/2017," 1,122.00 ",S,72101500,Building maintenance and repair services
Communities and Local Government,Homes and Communities Agency,Public Land and Regeneration,Programmes,AIREDALE FORESTRY,DAP0879-SERVICE-Landscape Maintenance works at Deerbolt for o,04/08/2017, 568.70 ,S,72101500,Building maintenance and repair services
Communities and Local Government,Homes and Communities Agency,Ne-Y North East Washington,North East And Yorkshire,AIREDALE FORESTRY,DAP0435-SERVICE-Landscape maintenance at St Georges for one y,04/08/2017, 635.50 ,S,72101500,Building maintenance and repair services
Communities and Local Government,Homes and Communities Agency,Ne-Y North East Washington,North East And Yorkshire,AIREDALE FORESTRY,DAP0189-SERVICE-Events Car Park (North Shore & Tees),09/08/2017, 438.95 ,S,72101500,Building maintenance and repair services
Communities and Local Government,Homes and Communities Agency,Economic Assets Ne-Y Prog,North East And Yorkshire,AIREDALE FORESTRY,DAP1926-SERVICE-Berwick Quayside - Fencing repairs and annual,24/08/2017, 350.00 ,S,72101500,Building maintenance and repair services
Communities and Local Government,Homes and Communities Agency,Ne-Y North East Washington,North East And Yorkshire,AIREDALE FORESTRY,DAP0435-SERVICE-Landscape maintenance at St Georges for one y,31/08/2017, 635.50 ,S,72101500,Building maintenance and repair services
Communities and Local Government,Homes and Communities Agency,Comms Transition Budget,Finance & Corporate Services,ADT FIRE AND SECURITY PLC,DAP1890-SERVICE-12 month maintenance contract to fire alarm s,08/08/2017, 315.97 ,L,72102900,Facility maintenance and repair services
Communities and Local Government,Homes and Communities Agency,Corporate Assurance-Mh,Finance & Corporate Services,ARNOLD CLARK FINANCE LIMITED,DGC1384-SERVICE-LEASE COSTS,04/08/2017," 3,032.04 ",L,25101500,Passenger motor vehicles
Communities and Local Government,Homes and Communities Agency,Corporate Assurance-Mh,Finance & Corporate Services,ARNOLD CLARK FINANCE LIMITED,DGC1384-SERVICE-SERVICE COSTS,04/08/2017," 3,584.64 ",L,25101500,Passenger motor vehicles
Communities and Local Government,Homes and Communities Agency,Budget 2013 - Midlands Wm,Midlands,ARNOLD CLARK FINANCE LIMITED,DGC1438-SERVICE-LEASE COSTS,04/08/2017," 2,435.82 ",L,25101500,Passenger motor vehicles
Communities and Local Government,Homes and Communities Agency,Budget 2013 - Midlands Wm,Midlands,ARNOLD CLARK FINANCE LIMITED,DGC1438-SERVICE-SERVICE COSTS,04/08/2017," 2,920.14 ",L,25101500,Passenger motor vehicles
Communities and Local Government,Homes and Communities Agency,Existing Stock Team National P,Programmes,ARNOLD CLARK FINANCE LIMITED,DGC1608-SERVICE-LEASE COSTS,04/08/2017," 1,442.46 ",L,25101500,Passenger motor vehicles
Communities and Local Government,Homes and Communities Agency,Existing Stock Team National P,Programmes,ARNOLD CLARK FINANCE LIMITED,DGC1608-SERVICE-SERVICE COSTS,04/08/2017," 1,823.34 ",L,25101500,Passenger motor vehicles
Communities and Local Government,Homes and Communities Agency,East And Se Essex And Kent,East And South East,ARNOLD CLARK FINANCE LIMITED,DGC0646-SERVICE-LEASE COSTS,17/08/2017," 1,496.70 ",L,25101500,Passenger motor vehicles
Communities and Local Government,Homes and Communities Agency,East And Se Essex And Kent,East And South East,ARNOLD CLARK FINANCE LIMITED,DGC0646-SERVICE-SERVICE COSTS,17/08/2017," 2,097.18 ",L,25101500,Passenger motor vehicles
Communities and Local Government,Homes and Communities Agency,Land And Regeneration National,Programmes,ARNOLD CLARK FINANCE LIMITED,DGC0745-SERVICE-LEASE RENTAL,17/08/2017," 2,300.04 ",L,25101500,Passenger motor vehicles
Communities and Local Government,Homes and Communities Agency,Land And Regeneration National,Programmes,ARNOLD CLARK FINANCE LIMITED,DGC0745-SERVICE-SERVICE RENTAL,17/08/2017," 3,117.72 ",L,25101500,Passenger motor vehicles
Communities and Local Government,Homes and Communities Agency,Ne-Y North East Washington,North East And Yorkshire,ARNOLD CLARK FINANCE LIMITED,DGC1439-SERVICE-LEASE COSTS,31/08/2017," 2,185.56 ",L,25101500,Passenger motor vehicles
Communities and Local Government,Homes and Communities Agency,Ne-Y North East Washington,North East And Yorkshire,ARNOLD CLARK FINANCE LIMITED,DGC1439-SERVICE-SERVICE COSTS,31/08/2017," 2,748.24 ",L,25101500,Passenger motor vehicles
Communities and Local Government,Homes and Communities Agency,East And Se Essex And Kent,East And South East,CAPITA PROPERTY & INFRASTRUCTURE,IT73513-SERVICE-Manston Green - preliminary valuation report,08/08/2017," 8,000.00 ",L,80131800,Real estate management services
Communities and Local Government,Homes and Communities Agency,Land And Regeneration Mh,Programmes,CAPITA PROPERTY & INFRASTRUCTURE,IT69762-SERVICE-BFF project,14/08/2017," 2,134.00 ",L,80131800,Real estate management services
Communities and Local Government,Homes and Communities Agency,Company Secretary Mh,Finance & Corporate Services,BERWIN LEIGHTON PAISNER,IS12912-SERVICE-Money Laundering; ; (Georgia Henderson-Clelan,01/08/2017," 1,276.50 ",L,80121600,Business law services
Communities and Local Government,Homes and Communities Agency,East And Se Essex And Kent,East And South East,BERWIN LEIGHTON PAISNER,IS12878-SERVICE-Advice relating to tenancy at Ford Sports Nor,02/08/2017," 1,000.00 ",L,80121600,Business law services
Communities and Local Government,Homes and Communities Agency,East And Se Cambs Herts And Bu,East And South East,BERWIN LEIGHTON PAISNER,IS12252-SERVICE-Panshanger - Welwyn Garden City PCS 28468,04/08/2017," 2,545.50 ",L,80121600,Business law services
Communities and Local Government,Homes and Communities Agency,HCA Investment Invest FRY BDG,Programmes,BERWIN LEIGHTON PAISNER,IS12763-SERVICE-PRS Bond Guarantee - Binks,07/08/2017," 15,550.00 ",L,80121600,Business law services
Communities and Local Government,Homes and Communities Agency,South West Of Eng-Glouc-Oxford,South West,BERWIN LEIGHTON PAISNER,IS12786-SERVICE-To obtain Counsel's opinion on a number of ma,08/08/2017," 10,000.00 ",L,80121600,Business law services
Communities and Local Government,Homes and Communities Agency,East And South East,East And South East,BERWIN LEIGHTON PAISNER,IS12917-SERVICE-Paston Reserve Peterborough,09/08/2017," 57,355.50 ",L,80121600,Business law services
Communities and Local Government,Homes and Communities Agency,It - Rda Transition,Finance & Corporate Services,BUSINESS IT,DAP1746-SERVICE-25 x Kensington Usb 3.0 Dual Universal Dock.,08/08/2017," 2,625.00 ",S,81112300,Computer hardware maintenance and support
Communities and Local Government,Homes and Communities Agency,It - Rda Transition,Finance & Corporate Services,BUSINESS IT,DAP1718-SERVICE-2 x Cisco WS-C3850-12XS-S 12 x SFP+,21/08/2017," 4,750.00 ",S,81112300,Computer hardware maintenance and support
Communities and Local Government,Homes and Communities Agency,It - Rda Transition,Finance & Corporate Services,BUSINESS IT,DAP1701-SERVICE-46 x HP HP ProDisplay P240va,23/08/2017," 5,975.34 ",S,81112300,Computer hardware maintenance and support
Communities and Local Government,Homes and Communities Agency,Economic Assets Hub Transition,Economic Assets Hub,BLOSSOM IRON DEVELOPMENTS LIMITED,BtR-Blossom Iron-Aug17,11/08/2017," 619,008.78 ",,N/A,Loans
Communities and Local Government,Homes and Communities Agency,South West Somerset-Dev-Plym-T,South West,BROWNE JACOBSON LLP,IS11402-SERVICE-Plot C2 Millbay,02/08/2017," 7,000.00 ",L,80121600,Business law services
Communities and Local Government,Homes and Communities Agency,South West Somerset-Dev-Plym-T,South West,BROWNE JACOBSON LLP,IS11463-SERVICE-Disbursements,02/08/2017," 2,192.00 ",L,80121600,Business law services
Communities and Local Government,Homes and Communities Agency,Land And Regeneration Mh,Programmes,BROWNE JACOBSON LLP,TS00009-SERVICE-27559 - Gilbert Homes Limited - Larges Lane,03/08/2017," 22,749.60 ",L,80121600,Business law services
Communities and Local Government,Homes and Communities Agency,Area Dir Mids Worcs-Shrop-Here,Midlands,BROWNE JACOBSON LLP,IS12789-SERVICE-Land at Halesfield 2 Telford,03/08/2017," 1,167.50 ",L,80121600,Business law services
Communities and Local Government,Homes and Communities Agency,Land And Regeneration Mh,Programmes,BROWNE JACOBSON LLP,TS00020-SERVICE-27559 - Hollins Homes (Whitchurch) Limited,03/08/2017," 28,328.90 ",L,80121600,Business law services
Communities and Local Government,Homes and Communities Agency,Land And Regeneration Mh,Programmes,BROWNE JACOBSON LLP,IS12918-SERVICE-Carlton House,04/08/2017, 750.00 ,L,80121600,Business law services
Communities and Local Government,Homes and Communities Agency,Estate Management Yorks,North West,BROWNE JACOBSON LLP,IS12908-SERVICE-P4 Car Park,08/08/2017, 750.00 ,L,80121600,Business law services
Communities and Local Government,Homes and Communities Agency,Area Dir Mids Notts-Derby-Linc,Midlands,BROWNE JACOBSON LLP,IS12834-SERVICE-Cotgrave site - transfer of electricity suppl,08/08/2017, 600.00 ,L,80121600,Business law services
Communities and Local Government,Homes and Communities Agency,Ne-Yh Sheffield And Humb Ne-Y,North East And Yorkshire,BROWNE JACOBSON LLP,IS12350-SERVICE-Digital Campus Phase 1,10/08/2017," 3,500.00 ",L,80121600,Business law services
Communities and Local Government,Homes and Communities Agency,Economic Assets S&Sw Prog,South West,BROWNE JACOBSON LLP,IS12801-SERVICE-Barters Nursery,10/08/2017," 1,250.00 ",L,80121600,Business law services
Communities and Local Government,Homes and Communities Agency,Ne-Yh Sheffield And Humb Ne-Y,North East And Yorkshire,BROWNE JACOBSON LLP,IS12567-SERVICE-Brodsworth Colliery,14/08/2017, 750.00 ,L,80121600,Business law services
Communities and Local Government,Homes and Communities Agency,Area Dir Mids Worcs-Shrop-Here,Midlands,BROWNE JACOBSON LLP,IS12443-SERVICE-Plot B Hortonwood West Business Park (aka Whe,15/08/2017," 3,351.50 ",L,80121600,Business law services
Communities and Local Government,Homes and Communities Agency,Economic Assets S&Sw Prog,South West,BROWNE JACOBSON LLP,IS12806-SERVICE-Northern United former Colliery,15/08/2017, 987.50 ,L,80121600,Business law services
Communities and Local Government,Homes and Communities Agency,Area Dir Mids Worcs-Shrop-Here,Midlands,BROWNE JACOBSON LLP,IS12813-SERVICE-Stoke-on-Trent Starter Homes ,15/08/2017, 990.00 ,L,80121600,Business law services
Communities and Local Government,Homes and Communities Agency,Land And Regeneration Mh,Programmes,BROWNE JACOBSON LLP,IS12589-SERVICE-Former Birdseye Factory,16/08/2017," 3,000.00 ",L,80121600,Business law services
Communities and Local Government,Homes and Communities Agency,Area Dir Mids Worcs-Shrop-Here,Midlands,BROWNE JACOBSON LLP,IS12789-SERVICE-Land at Halesfield 2 Telford,21/08/2017, 467.50 ,L,80121600,Business law services
Communities and Local Government,Homes and Communities Agency,Land And Regeneration Mh,Programmes,BROWNE JACOBSON LLP,"TS00043-SERVICE-27559 - Riverwood Homes (Kent) Ltd, Pluckley ",29/08/2017," 9,320.00 ",L,80121600,Business law services
Communities and Local Government,Homes and Communities Agency,Area Dir Cumbria Lancs Skelmer,North West,BROWNE JACOBSON LLP,IS11539-SERVICE-Eastway Employment Phase,31/08/2017," 3,035.50 ",L,80121600,Business law services
Communities and Local Government,Homes and Communities Agency,Land And Regeneration Mh,Programmes,BUILDING DESIGN PARTNERSHIP,IT71005-SERVICE-Monitoring Surveyor - Rider Levett Bucknall,02/08/2017," 1,800.00 ",L,80131800,Real estate management services
Communities and Local Government,Homes and Communities Agency,Ad Manchester Trafford,North West,BUILDING DESIGN PARTNERSHIP,IT72163-SERVICE-Hoddlesdon Mill,09/08/2017," 2,927.00 ",L,80131800,Real estate management services
Communities and Local Government,Homes and Communities Agency,Ad Manchester Trafford,North West,BUILDING DESIGN PARTNERSHIP,IT72164-SERVICE-Starter Homes Due Diligence - Cowling Mill,09/08/2017," 2,927.00 ",L,80131800,Real estate management services
Communities and Local Government,Homes and Communities Agency,Land And Regeneration Mh,Programmes,BUILDING DESIGN PARTNERSHIP,IT71005-SERVICE-Monitoring Surveyor - Rider Levett Bucknall,31/08/2017," 1,800.00 ",L,80131800,Real estate management services
Communities and Local Government,Homes and Communities Agency,Area Dir Mids Worcs-Shrop-Here,Midlands,CANAL & RIVER TRUST,DWM0883-SERVICE-Leasehold Rent to CRT for 12 months,25/08/2017, 657.50 ,L,80131500,Lease and rental of property or building
Communities and Local Government,Homes and Communities Agency,Area Dir Mids Worcs-Shrop-Here,Midlands,CANAL & RIVER TRUST,DWM0883-SERVICE-Leasehold Rent to CRT for 12 months,25/08/2017, 333.75 ,L,80131500,Lease and rental of property or building
Communities and Local Government,Homes and Communities Agency,Economic Assets Hub Transition,Economic Assets Hub,BEWE MANOR LTD,STF-Manor Road-Aug17,09/08/2017," 99,911.43 ",,N/A,Loans
Communities and Local Government,Homes and Communities Agency,Economic Assets S&Sw Prog,South West,PETER BRETT ASSOCIATES LLP,IT73714-SERVICE-Design and supervision of drainage improvemen,01/08/2017," 1,800.00 ",L,80131800,Real estate management services
Communities and Local Government,Homes and Communities Agency,South West Of Eng-Glouc-Oxford,South West,PETER BRETT ASSOCIATES LLP,IT72501-SERVICE-Principal Designer - GI Investigation,01/08/2017," 1,500.00 ",L,80131800,Real estate management services
Communities and Local Government,Homes and Communities Agency,South West Somerset-Dev-Plym-T,South West,PETER BRETT ASSOCIATES LLP,IT72231-SERVICE-Collapsed Wall at Trinity Pier,02/08/2017," 5,250.00 ",L,80131800,Real estate management services
Communities and Local Government,Homes and Communities Agency,Economic Assets S&Sw Prog,South West,PETER BRETT ASSOCIATES LLP,IT73512-SERVICE-Bridgewater Innovia - Plot A.  PBA constraint,02/08/2017," 2,000.00 ",L,80131800,Real estate management services
Communities and Local Government,Homes and Communities Agency,South West Hants-Iow-Dorset-Bu,South West,PETER BRETT ASSOCIATES LLP,IT72215-SERVICE-Due Diligence work pre-acquisition (planning,21/08/2017," 1,500.00 ",L,80131800,Real estate management services
Communities and Local Government,Homes and Communities Agency,Land And Regeneration Mh,Programmes,PETER BRETT ASSOCIATES LLP,IT69727-SERVICE-28085 - Spinney Hill MS Appointment,25/08/2017, 700.00 ,L,80131800,Real estate management services
Communities and Local Government,Homes and Communities Agency,Economic Assets Ne-Y Prog,North East And Yorkshire,BIFFA WASTE SERVICE LTD,"DAP0852-SERVICE-Burt Street, Blyth - Biffa Contract Number 14",08/08/2017, 476.88 ,L,76121500,Refuse collection and disposal
Communities and Local Government,Homes and Communities Agency,Economic Assets Ne-Y Prog,North East And Yorkshire,BIFFA WASTE SERVICE LTD,"DAP0852-SERVICE-Burt Street, Blyth - Biffa Contract Number 14",24/08/2017, 396.88 ,L,76121500,Refuse collection and disposal
Communities and Local Government,Homes and Communities Agency,It - Rda Transition,Finance & Corporate Services,BRITISH TELECOMMUNICATIONS PLC,DAP0673-SERVICE-Broadband usage for Contractual Homeworkers,10/08/2017," 2,911.38 ",L,83111500,Local and long distance telephone communications
Communities and Local Government,Homes and Communities Agency,Economic Assets Ne-Y Prog,North East And Yorkshire,BURN FENCING LTD,DAP1524-SERVICE-Carr Lodge Farm - Supply and install 3m wide,29/08/2017," 1,180.00 ",S,72101500,Building maintenance and repair services
Communities and Local Government,Homes and Communities Agency,Ne-Yh Sheffield And Humb Ne-Y,North East And Yorkshire,JACOBS UK LTD,DYH0251-SERVICE-Replaces PO YH00093 - Prof Consultancy,23/08/2017," 14,891.40 ",L,80131800,Real estate management services
Communities and Local Government,Homes and Communities Agency,Ne-Yh Sheffield And Humb Ne-Y,North East And Yorkshire,JACOBS UK LTD,DYH0251-SERVICE-Replaces PO YH00093 - Prof Consultancy,23/08/2017," 2,163.02 ",L,80131800,Real estate management services
Communities and Local Government,Homes and Communities Agency,Ne-Yh Sheffield And Humb Ne-Y,North East And Yorkshire,JACOBS UK LTD,DYH0251-SERVICE-Replaces PO YH00093 - Prof Consultancy,29/08/2017," 10,408.63 ",L,80131800,Real estate management services
Communities and Local Government,Homes and Communities Agency,Public Land and Regeneration,Programmes,BRITISH GAS BUSINESS,DAM3165-SERVICE-Electricity supply - The former Halifax Magis,08/08/2017, 812.91 ,L,83101800,Electric utilities
Communities and Local Government,Homes and Communities Agency,Economic Assets Ne-Y Prog,North East And Yorkshire,BRITISH GAS BUSINESS,DAP1852-SERVICE-To supply electricity to Wakefield magistrate,10/08/2017, 562.05 ,L,83101800,Electric utilities
Communities and Local Government,Homes and Communities Agency,Economic Assets Ne-Y Prog,North East And Yorkshire,BRITISH GAS BUSINESS,DAP1852-SERVICE-To supply electricity to Wakefield magistrate,10/08/2017," 1,148.57 ",L,83101800,Electric utilities
Communities and Local Government,Homes and Communities Agency,Public Land and Regeneration,Programmes,BRITISH GAS BUSINESS,DAM3487-SERVICE-DARTFORD MAGISTRATES COURT     Call off order,17/08/2017, 781.56 ,L,83101800,Electric utilities
Communities and Local Government,Homes and Communities Agency,Public Land and Regeneration,Programmes,BRITISH GAS BUSINESS,DAM3486-SERVICE-5% Vat,21/08/2017, 760.47 ,L,83101800,Electric utilities
Communities and Local Government,Homes and Communities Agency,East And Se Cambs Herts And Bu,East And South East,BRITISH GAS BUSINESS,DAM3424-SERVICE-HOUGHTON GRANGE     To meet electricity consu,29/08/2017, 825.77 ,L,83101800,Electric utilities
Communities and Local Government,Homes and Communities Agency,Comms Transition Budget,Finance & Corporate Services,BONDS WORLDWIDE EXPRESS LTD,"DOF0135-SERVICE-Courier service @ HCA,  Birmingham office  AF",21/08/2017, 269.68 ,L,78102200,Postal and small parcel and courier services
Communities and Local Government,Homes and Communities Agency,Land And Regeneration National,Programmes,BBP REGENERATION LTD,IT73724-SERVICE-Maternity cover for Cynthia Kalyan for the pe,21/08/2017," 10,776.10 ",S,81121500,Economic analysis
Communities and Local Government,Homes and Communities Agency,Economic Assets Hub Transition,Economic Assets Hub,BROADACRES SERVICES LIMITED,STF-Richmond House-Aug17,08/08/2017," 79,791.00 ",,N/A,Loans
Communities and Local Government,Homes and Communities Agency,Land And Regeneration National,Programmes,BC LEGAL,DGC1684-SERVICE-J Warburton vs HCA prof charges 210317-050517,24/08/2017," 1,360.00 ",S,80121600,Business law services
Communities and Local Government,Homes and Communities Agency,Land And Regeneration National,Programmes,BC LEGAL,DGC1684-SERVICE-N Ward Vs HCA prof charges 310317-050517,24/08/2017," 1,040.00 ",S,80121600,Business law services
Communities and Local Government,Homes and Communities Agency,Land And Regeneration National,Programmes,BC LEGAL,DGC1689-SERVICE-F MATHER VS HCA DISBURSEMENT,25/08/2017, 255.00 ,S,80121600,Business law services
Communities and Local Government,Homes and Communities Agency,Land And Regeneration National,Programmes,BC LEGAL,DGC1689-SERVICE-F MATHER VS HCA PROF CHARGES 280916-200117,25/08/2017, 960.00 ,S,80121600,Business law services
Communities and Local Government,Homes and Communities Agency,Land And Regeneration National,Programmes,BC LEGAL,DGC1689-SERVICE-F MATHER VS HCA PROF CHARGES 230317-050517,25/08/2017," 1,290.00 ",S,80121600,Business law services
Communities and Local Government,Homes and Communities Agency,Economic Assets S&Sw Prog,South West,BARRATT BRISTOL,DAP0887-SERVICE-Spoil removal at Filwood Park,17/08/2017," 229,929.46 ",L,72141500,Land preparation services
Communities and Local Government,Homes and Communities Agency,Economic Assets S&Sw Prog,South West,BARRATT BRISTOL,DAP0887-SERVICE-Spoil removal at Filwood Park,17/08/2017," 86,368.38 ",L,72141500,Land preparation services
Communities and Local Government,Homes and Communities Agency,Economic Assets Hub Transition,Economic Assets Hub,BLAST PROPERTIES LTD,STF-Narracott Grand-Aug17,31/08/2017," 383,045.13 ",,N/A,Loans
Communities and Local Government,Homes and Communities Agency,Comms Transition Budget,Finance & Corporate Services,BRITISH GAS BUSINESS,DOF0401-SERVICE-BIS %,08/08/2017," 1,654.54 ",L,83101800,Electric utilities
Communities and Local Government,Homes and Communities Agency,Comms Transition Budget,Finance & Corporate Services,BRITISH GAS BUSINESS,DOF0401-SERVICE-afegd 1106 01,08/08/2017," 3,586.32 ",L,83101800,Electric utilities
Communities and Local Government,Homes and Communities Agency,Economic Assets Ne-Y Prog,North East And Yorkshire,BRITCON (SCUNTHORPE) LIMITED,DYH0033-SERVICE-AMP TC new wing,18/08/2017," 56,608.85 ",M,72141000,Highway and road construction services
Communities and Local Government,Homes and Communities Agency,East And South East,East And South East,BERWIN LEIGHTON PAISNER,"GODINTON ROAD, ASFORD",10/08/2017," 1,966.62 ",L,80121600,Business law services
Communities and Local Government,Homes and Communities Agency,East And South East,East And South East,BERWIN LEIGHTON PAISNER,LAND SOUTH OF GRAYLINGWELL DRIVE,25/08/2017," 1,500.00 ",L,80121600,Business law services
Communities and Local Government,Homes and Communities Agency,East And South East,East And South East,BERWIN LEIGHTON PAISNER,CROP LOSS PAYMENT AS PER LEGAL AGREEMENT,30/08/2017," 1,556.40 ",L,80121600,Business law services
Communities and Local Government,Homes and Communities Agency,Land And Regeneration Mh,Programmes,BOVIS HOMES LTD,LTF -Stanton Cross - Draw Dn - Aug17,30/08/2017," 1,066,272.70 ",,N/A,Loans
Communities and Local Government,Homes and Communities Agency,East And Se Essex And Kent,East And South East,BNP PARIBAS REAL ESTATE,IT72203-SERVICE-Plot 11 Pound Lane South,01/08/2017," 4,753.56 ",L,80131800,Real estate management services
Communities and Local Government,Homes and Communities Agency,South West Of Eng-Glouc-Oxford,South West,BNP PARIBAS REAL ESTATE,IT72779-SERVICE-Valuation of D S Smith site,03/08/2017," 6,890.00 ",L,80131800,Real estate management services
Communities and Local Government,Homes and Communities Agency,Land And Regeneration Mh,Programmes,BNP PARIBAS REAL ESTATE,IT73230-SERVICE-Sheffield Road,16/08/2017," 2,500.00 ",L,80131800,Real estate management services
Communities and Local Government,Homes and Communities Agency,Estate Management Yorks,North West,G BURLEY & SONS LTD,DAM2873-SERVICE-Maintenane of 10 sites in Peterborough during,09/08/2017, 420.15 ,S,72101500,Building maintenance and repair services
Communities and Local Government,Homes and Communities Agency,Estate Management Yorks,North West,G BURLEY & SONS LTD,DAM3101-SERVICE-LC156     Northampton Town and Brackmills Lan,09/08/2017," 2,056.29 ",S,72101500,Building maintenance and repair services
Communities and Local Government,Homes and Communities Agency,Estate Management Yorks,North West,G BURLEY & SONS LTD,DAM2873-SERVICE-Maintenane of 10 sites in Peterborough during,11/08/2017, 420.15 ,S,72101500,Building maintenance and repair services
Communities and Local Government,Homes and Communities Agency,Estate Management Yorks,North West,G BURLEY & SONS LTD,DAP0464-SERVICE-Basildon - 12 months grounds maintenance,23/08/2017," 1,294.11 ",S,72101500,Building maintenance and repair services
Communities and Local Government,Homes and Communities Agency,Estate Management Yorks,North West,CORNTHWAITE TREE CARE LIMITED,"DAP1716-SERVICE-Mixed Works at Fulwood site - Teil Green, Pre",01/08/2017, 400.00 ,S,72102900,Building maintenance and repair services
Communities and Local Government,Homes and Communities Agency,East And Se Essex And Kent,East And South East,CAMPBELL REITH,IT72483-SERVICE-Draft EPS Licence Application for 16A Endeavo,01/08/2017," 5,448.98 ",S,77101500,Environmental auditing
Communities and Local Government,Homes and Communities Agency,Economic Assets Ne-Y Prog,North East And Yorkshire,CAMPBELL REITH,IT73460-SERVICE-The outline planning permission for Northstow,08/08/2017," 17,752.50 ",S,77101500,Environmental auditing
Communities and Local Government,Homes and Communities Agency,Economic Assets Ne-Y Prog,North East And Yorkshire,CAMPBELL REITH,IT73460-SERVICE-The outline planning permission for Northstow,08/08/2017," 38,945.00 ",S,77101500,Environmental auditing
Communities and Local Government,Homes and Communities Agency,Economic Assets S&Sw Prog,South West,CAMPBELL REITH,IT73720-SERVICE-Ecology works neccessary for demolition of th,14/08/2017," 4,635.15 ",S,77101500,Environmental auditing
Communities and Local Government,Homes and Communities Agency,South West Hants-Iow-Dorset-Bu,South West,CAMPBELL REITH,IT73882-SERVICE-Compilation of Health and Safety file for han,15/08/2017," 9,888.75 ",S,77101500,Environmental auditing
Communities and Local Government,Homes and Communities Agency,Economic Assets S&Sw Prog,South West,CAMPBELL REITH,IT73536-SERVICE-Demolition Notice,16/08/2017," 8,434.13 ",S,77101500,Environmental auditing
Communities and Local Government,Homes and Communities Agency,Economic Assets S&Sw Prog,South West,CAMPBELL REITH,IT73846-SERVICE-Wealstun,16/08/2017," 17,735.06 ",S,77101500,Environmental auditing
Communities and Local Government,Homes and Communities Agency,Economic Assets S&Sw Prog,South West,CAMPBELL REITH,IT73743-SERVICE-Great Crested Newt Survey to Inform Planning,18/08/2017," 1,388.20 ",S,77101500,Environmental auditing
Communities and Local Government,Homes and Communities Agency,East And South East,East And South East,CAMPBELL REITH,IT72201-SERVICE-Site Supervision and Contract Administration,22/08/2017," 4,052.93 ",S,77101500,Environmental auditing
Communities and Local Government,Homes and Communities Agency,Economic Assets Nw Prog,North West,CAMPBELL REITH,IT73575-SERVICE-Westminster Road,25/08/2017," 9,950.00 ",S,77101500,Environmental auditing
Communities and Local Government,Homes and Communities Agency,Economic Assets S&Sw Prog,South West,CAMPBELL REITH,IT71377-SERVICE-Daedalus Waterfront Multidisciplinary,29/08/2017," 2,000.00 ",S,77101500,Environmental auditing
Communities and Local Government,Homes and Communities Agency,Economic Assets S&Sw Prog,South West,CAMPBELL REITH,IT71377-SERVICE-Daedalus Waterfront Multidisciplinary,29/08/2017," 10,962.00 ",S,77101500,Environmental auditing
Communities and Local Government,Homes and Communities Agency,Economic Assets S&Sw Prog,South West,CAMPBELL REITH,IT71377-SERVICE-Daedalus Waterfront Multidisciplinary,29/08/2017," 16,274.00 ",S,77101500,Environmental auditing
Communities and Local Government,Homes and Communities Agency,Economic Assets S&Sw Prog,South West,CAMPBELL REITH,IT71377-SERVICE-Daedalus Waterfront Multidisciplinary,29/08/2017," 6,522.00 ",S,77101500,Environmental auditing
Communities and Local Government,Homes and Communities Agency,Economic Assets S&Sw Prog,South West,CAMPBELL REITH,IT71377-SERVICE-Daedalus Waterfront Multidisciplinary,29/08/2017," 9,953.00 ",S,77101500,Environmental auditing
Communities and Local Government,Homes and Communities Agency,Economic Assets S&Sw Prog,South West,CAMPBELL REITH,IT71377-SERVICE-Daedalus Waterfront Multidisciplinary,29/08/2017," 9,000.00 ",S,77101500,Environmental auditing
Communities and Local Government,Homes and Communities Agency,Land And Regeneration Mh,Programmes,CARTER JONAS,IT73672-SERVICE-MS Services for Beckham Place,07/08/2017," 2,500.00 ",L,80131800,Real estate management services
Communities and Local Government,Homes and Communities Agency,South West Of Eng-Glouc-Oxford,South West,CARTER JONAS,IT73756-SERVICE-Lead Consultant for bringing forward the Chal,08/08/2017," 14,189.21 ",L,80131800,Real estate management services
Communities and Local Government,Homes and Communities Agency,Comms Transition Budget,Finance & Corporate Services,CORONA ENERGY,DOF0370-SERVICE-Gas for Arpley Hse meter 8853893504,04/08/2017, 447.72 ,L,83101600,Oil and gas utilities
Communities and Local Government,Homes and Communities Agency,Comms Transition Budget,Finance & Corporate Services,CORONA ENERGY,DOF0370-SERVICE-tenant,04/08/2017, 295.45 ,L,83101600,Oil and gas utilities
Communities and Local Government,Homes and Communities Agency,Comms Transition Budget,Finance & Corporate Services,CORONA ENERGY,DOF0370-SERVICE-Gas for Arpley Hse meter 8853893504,04/08/2017, 716.72 ,L,83101600,Oil and gas utilities
Communities and Local Government,Homes and Communities Agency,Comms Transition Budget,Finance & Corporate Services,CORONA ENERGY,DOF0370-SERVICE-tenant,04/08/2017, 303.36 ,L,83101600,Oil and gas utilities
Communities and Local Government,Homes and Communities Agency,Comms Transition Budget,Finance & Corporate Services,CORONA ENERGY,DOF0370-SERVICE-Gas for Arpley Hse meter 8853893504,04/08/2017, 735.91 ,L,83101600,Oil and gas utilities
Communities and Local Government,Homes and Communities Agency,Comms Transition Budget,Finance & Corporate Services,CORONA ENERGY,DOF0370-SERVICE-tenant,04/08/2017, 374.74 ,L,83101600,Oil and gas utilities
Communities and Local Government,Homes and Communities Agency,Comms Transition Budget,Finance & Corporate Services,CORONA ENERGY,DOF0370-SERVICE-Gas for Arpley Hse meter 8853893504,04/08/2017, 909.05 ,L,83101600,Oil and gas utilities
Communities and Local Government,Homes and Communities Agency,Comms Transition Budget,Finance & Corporate Services,CORONA ENERGY,DOF0370-SERVICE-tenant,04/08/2017, 301.05 ,L,83101600,Oil and gas utilities
Communities and Local Government,Homes and Communities Agency,Comms Transition Budget,Finance & Corporate Services,CORONA ENERGY,DOF0370-SERVICE-Gas for Arpley Hse meter 8853893504,04/08/2017, 730.28 ,L,83101600,Oil and gas utilities
Communities and Local Government,Homes and Communities Agency,Comms Transition Budget,Finance & Corporate Services,CORONA ENERGY,DOF0296-SERVICE-BIS%,04/08/2017, 307.58 ,L,83101600,Oil and gas utilities
Communities and Local Government,Homes and Communities Agency,Comms Transition Budget,Finance & Corporate Services,CORONA ENERGY,"DOF0296-SERVICE-Gas supplied to HCA, St George's Hse, Gateshe",04/08/2017, 666.69 ,L,83101600,Oil and gas utilities
Communities and Local Government,Homes and Communities Agency,Comms Transition Budget,Finance & Corporate Services,CORONA ENERGY,DOF0370-SERVICE-tenant,04/08/2017, 297.14 ,L,83101600,Oil and gas utilities
Communities and Local Government,Homes and Communities Agency,Comms Transition Budget,Finance & Corporate Services,CORONA ENERGY,DOF0370-SERVICE-Gas for Arpley Hse meter 8853893504,04/08/2017, 720.81 ,L,83101600,Oil and gas utilities
Communities and Local Government,Homes and Communities Agency,Comms Transition Budget,Finance & Corporate Services,CORONA ENERGY,DOF0296-SERVICE-BIS%,04/08/2017, 274.96 ,L,83101600,Oil and gas utilities
Communities and Local Government,Homes and Communities Agency,Comms Transition Budget,Finance & Corporate Services,CORONA ENERGY,"DOF0296-SERVICE-Gas supplied to HCA, St George's Hse, Gateshe",04/08/2017, 595.97 ,L,83101600,Oil and gas utilities
Communities and Local Government,Homes and Communities Agency,Comms Transition Budget,Finance & Corporate Services,CORONA ENERGY,DOF0370-SERVICE-Gas for Arpley Hse meter 8853893504,04/08/2017, 410.00 ,L,83101600,Oil and gas utilities
Communities and Local Government,Homes and Communities Agency,Comms Transition Budget,Finance & Corporate Services,CORONA ENERGY,"DOF0296-SERVICE-Gas supplied to HCA, St George's Hse, Gateshe",04/08/2017, 468.48 ,L,83101600,Oil and gas utilities
Communities and Local Government,Homes and Communities Agency,Comms Transition Budget,Finance & Corporate Services,CORONA ENERGY,DOF0370-SERVICE-Gas for Arpley Hse meter 8853893504,04/08/2017, 326.82 ,L,83101600,Oil and gas utilities
Communities and Local Government,Homes and Communities Agency,Comms Transition Budget,Finance & Corporate Services,CORONA ENERGY,"DOF0296-SERVICE-Gas supplied to HCA, St George's Hse, Gateshe",04/08/2017, 258.84 ,L,83101600,Oil and gas utilities
Communities and Local Government,Homes and Communities Agency,Comms Transition Budget,Finance & Corporate Services,CORONA ENERGY,DAP1889-SERVICE-GAS SUPPLIED TO HCA GATESHEAD,07/08/2017, 357.20 ,L,83101600,Oil and gas utilities
Communities and Local Government,Homes and Communities Agency,Comms Transition Budget,Finance & Corporate Services,CORONA ENERGY,DOF0370-SERVICE-Gas for Arpley Hse meter 8853893504,18/08/2017, 266.74 ,L,83101600,Oil and gas utilities
Communities and Local Government,Homes and Communities Agency,Public Land and Regeneration,Programmes,CORONA ENERGY,DAM3460-SERVICE-ST JAMES HOSPITAL     Gas bills.,18/08/2017, 488.38 ,L,83101600,Oil and gas utilities
Communities and Local Government,Homes and Communities Agency,Estate Management Yorks,North West,CORONA ENERGY,DAP2013-SERVICE-Corona energy CCS Trafford Court Gas bill,22/08/2017, 256.20 ,L,83101600,Oil and gas utilities
Communities and Local Government,Homes and Communities Agency,Land And Regeneration Mh,Programmes,CREDITSAFE BUSINESS SOLUTIONS LIMITED,DAP1892-SERVICE-Creditsafe Subscription Renewal,09/08/2017," 4,483.00 ",L,94101500,Business associations
Communities and Local Government,Homes and Communities Agency,East And South East,East And South East,CABLE TRACING SERVICES LTD,DAP1929-SERVICE-Trace Services at Brentwood Blood Centre,31/08/2017," 1,464.57 ",S,72101500,Building maintenance and repair services
Communities and Local Government,Homes and Communities Agency,Liverpool Cheshire Warrington,North West,CHESHIRE EAST BOROUGH COUNCIL,DNW0684-SERVICE-Contribution to masterplan,11/08/2017," 15,000.00 ",G,N/A,Grant
Communities and Local Government,Homes and Communities Agency,Budget 2013 - Midlands Wm,Midlands,CLEAR TOWN PLANNING,"DAP1945-SERVICE-Planning support in respect of Ansty Park, Co",14/08/2017," 4,000.00 ",S,80131800,Real estate management services
Communities and Local Government,Homes and Communities Agency,Economic Assets S&Sw Prog,South West,C.M.A. (NEMESIS) LTD,DAP1837-SERVICE-Ceram Tec factory Colyton - Initial pest cont,08/08/2017, 885.00 ,S,72102100,Pest control
Communities and Local Government,Homes and Communities Agency,Economic Assets S&Sw Prog,South West,C.M.A. (NEMESIS) LTD,DAP0649-SERVICE-Plot 6 Temple Quarter - rodent control 2017-2,17/08/2017, 294.00 ,S,72102100,Pest control
Communities and Local Government,Homes and Communities Agency,Economic Assets S&Sw Prog,South West,C.M.A. (NEMESIS) LTD,DAP1397-SERVICE-Pest Control 2017-2018 - Drummond Park,22/08/2017," 1,800.00 ",S,72102100,Pest control
Communities and Local Government,Homes and Communities Agency,Economic Assets Hub Transition,Economic Assets Hub,CAPTIVA HOMES,STF-Castle Street-Aug17,17/08/2017," 307,194.61 ",,N/A,Loans
Communities and Local Government,Homes and Communities Agency,Programme Management Mh,Finance & Corporate Services,CONCUR HOLDINGS (NETHERLANDS) B.V,DGC1042-SERVICE-Concur Expenses Contract (including Audit),07/08/2017," 14,140.59 ",L,43231500,Business function specific software
Communities and Local Government,Homes and Communities Agency,Economic Assets S&Sw Prog,South West,CLAPHAMS LANDSCAPE SERVICES LTD,DAP1444-SERVICE-Blackberry Hill Hospital - Laundry filed gras,10/08/2017, 480.00 ,S,72101500,Building maintenance and repair services
Communities and Local Government,Homes and Communities Agency,Economic Assets S&Sw Prog,South West,CLAPHAMS LANDSCAPE SERVICES LTD,DAP1808-SERVICE-Blackberry Hill Hospital landscaping July - D,24/08/2017," 1,493.51 ",S,72101500,Building maintenance and repair services
Communities and Local Government,Homes and Communities Agency,Economic Assets S&Sw Prog,South West,CLAPHAMS LANDSCAPE SERVICES LTD,"DAP1088-SERVICE-Gateway North Swindon, landscape maintenance",24/08/2017, 875.00 ,S,72101500,Building maintenance and repair services
Communities and Local Government,Homes and Communities Agency,Economic Assets S&Sw Prog,South West,CLAPHAMS LANDSCAPE SERVICES LTD,DAP1357-SERVICE-Winterstoke Road Weston Super Mare - June 201,24/08/2017, 390.00 ,S,72101500,Building maintenance and repair services
Communities and Local Government,Homes and Communities Agency,Economic Assets Hub Transition,Economic Assets Hub,J G CHATHAM LTD,STF-KITCHENER BARRACKS -LN DR - AUG17,15/08/2017," 526,481.19 ",,N/A,Loans
Communities and Local Government,Homes and Communities Agency,Economic Assets Hub Transition,Economic Assets Hub,CLL (RUSKIN ROAD) LTD,STF-Bush Nurseries-Aug17,02/08/2017," 136,529.10 ",,N/A,Loans
Communities and Local Government,Homes and Communities Agency,Economic Assets Hub Transition,Economic Assets Hub,CLL (RUSKIN ROAD) LTD,STF-Bush Nurseries-Aug17,24/08/2017," 56,665.00 ",,N/A,Loans
Communities and Local Government,Homes and Communities Agency,Economic Assets S&Sw Prog,South West,CONCEPT BUILDING SERVICES  (SOUTHERN) LTD,DAP1535-SERVICE-Colt Havant - Full decommissioning of the sit,04/08/2017," 17,125.00 ",M,72101500,Building maintenance and repair services
Communities and Local Government,Homes and Communities Agency,Economic Assets S&Sw Prog,South West,C-ELECT ASSOCIATES LIMITED,"DAP1957-SERVICE-Houghton Grange - Boarding up Bungalows, fill",14/08/2017, 502.66 ,S,72101500,Building maintenance and repair services
Communities and Local Government,Homes and Communities Agency,Economic Assets S&Sw Prog,South West,C-ELECT ASSOCIATES LIMITED,DAP1296-SERVICE-Plant 2 days including transport - Houghton G,14/08/2017, 400.00 ,S,72101500,Building maintenance and repair services
Communities and Local Government,Homes and Communities Agency,Economic Assets S&Sw Prog,South West,C-ELECT ASSOCIATES LIMITED,DAP1296-SERVICE-Material Budget - Houghton Grange,14/08/2017, 500.00 ,S,72101500,Building maintenance and repair services
Communities and Local Government,Homes and Communities Agency,Economic Assets S&Sw Prog,South West,C-ELECT ASSOCIATES LIMITED,DAP1296-SERVICE-Administration/overnight cost 220/400 - Hou,14/08/2017, 620.00 ,S,72101500,Building maintenance and repair services
Communities and Local Government,Homes and Communities Agency,Economic Assets S&Sw Prog,South West,C-ELECT ASSOCIATES LIMITED,DAP1296-SERVICE-Temporary roof repairs 2 men 2 days - Houghto,14/08/2017," 1,000.00 ",S,72101500,Building maintenance and repair services
Communities and Local Government,Homes and Communities Agency,Economic Assets S&Sw Prog,South West,C-ELECT ASSOCIATES LIMITED,DAP1296-SERVICE-Electrical fixed wire inspection and report -,14/08/2017," 1,400.00 ",S,72101500,Building maintenance and repair services
Communities and Local Government,Homes and Communities Agency,Economic Assets S&Sw Prog,South West,C-ELECT ASSOCIATES LIMITED,DAP1994-SERVICE-Isolate Utilities at St James Hospital,22/08/2017," 2,681.00 ",S,72101500,Building maintenance and repair services
Communities and Local Government,Homes and Communities Agency,East And South East,East And South East,CASTLE WATER LTD,DAP1797-SERVICE-Newbury Magistrates Court call off order,14/08/2017, 562.85 ,M,77101500,Environmental auditing
Communities and Local Government,Homes and Communities Agency,Area Dir Mids Worcs-Shrop-Here,Midlands,CONTINENTAL LANDSCAPES - GREENHAND,DWM0823-SERVICE-Year 3 extension of NL430-2015-2018,14/08/2017, 550.77 ,L,72101500,Building maintenance and repair services
Communities and Local Government,Homes and Communities Agency,LIF LS Loans Private additions,Programmes,CB RICHARD ELLIS,IT72719-SERVICE-Valuation of ex-TRL site,08/08/2017," 45,000.00 ",L,80131800,Real estate management services
Communities and Local Government,Homes and Communities Agency,Area Dir Mids Worcs-Shrop-Here,Midlands,CB RICHARD ELLIS,IT73218-SERVICE-Representations to the Lichfield Plan Site Al,10/08/2017," 7,000.00 ",L,80131800,Real estate management services
Communities and Local Government,Homes and Communities Agency,Ad Manchester Trafford,North West,CB RICHARD ELLIS,IT72733-SERVICE-Rates mitigation Area 1 Greek Street,21/08/2017," 6,593.00 ",L,80131800,Real estate management services
Communities and Local Government,Homes and Communities Agency,East And Se Cambs Herts And Bu,East And South East,CLEANKILL,DAM3371-SERVICE-OAKINGTON NORTHSTOWE     To carry out Pest Co,10/08/2017, 299.00 ,S,72102100,Pest control
Communities and Local Government,Homes and Communities Agency,Area Dir Mids Worcs-Shrop-Here,Midlands,COLEMAN & COMPANY LIMITED,DWM0842-SERVICE-Asbestos removal and demolition works of the,07/08/2017," 84,336.79 ",M,72141500,Land preparation services
Communities and Local Government,Homes and Communities Agency,Area Dir Mids Worcs-Shrop-Here,Midlands,COLEMAN & COMPANY LIMITED,DWM0842-SERVICE-Asbestos removal and demolition works of the,07/08/2017," 71,520.08 ",M,72141500,Land preparation services
Communities and Local Government,Homes and Communities Agency,Area Dir Mids Worcs-Shrop-Here,Midlands,COLEMAN & COMPANY LIMITED,DWM0842-SERVICE-Asbestos removal and demolition works of the,07/08/2017," 2,482.50 ",M,72141500,Land preparation services
Communities and Local Government,Homes and Communities Agency,Economic Assets Hub Transition,Economic Assets Hub,CITU (KELHAM ISLAND) LLP,STF-Kelham Island-Aug17,25/08/2017," 457,000.00 ",,N/A,Loans
Communities and Local Government,Homes and Communities Agency,East And South East,East And South East,CHANNEL ENGINEERING LTD,DAP1762-SERVICE-Call off order - Northfleet Embankment,01/08/2017, 615.00 ,S,72101500,Building maintenance and repair services
Communities and Local Government,Homes and Communities Agency,East And South East,East And South East,CHANNEL ENGINEERING LTD,DAP1386-SERVICE-Clear rubbish/flytipping - Dartford Magistrat,04/08/2017," 3,155.00 ",S,72101500,Building maintenance and repair services
Communities and Local Government,Homes and Communities Agency,East And South East,East And South East,CHANNEL ENGINEERING LTD,DAP1762-SERVICE-Call off order - Northfleet Embankment,10/08/2017, 645.00 ,S,72101500,Building maintenance and repair services
Communities and Local Government,Homes and Communities Agency,Estate Management Yorks,North West,CHANNEL ENGINEERING LTD,DAP1341-SERVICE-Repairs to wooden hoarding - Basildon,10/08/2017," 4,350.00 ",S,72101500,Building maintenance and repair services
Communities and Local Government,Homes and Communities Agency,East And South East,East And South East,CHANNEL ENGINEERING LTD,DAP1822-SERVICE-Extra works to repair pontoon,15/08/2017," 1,283.00 ",S,72101500,Building maintenance and repair services
Communities and Local Government,Homes and Communities Agency,East And South East,East And South East,CHANNEL ENGINEERING LTD,DAP1928-SERVICE-Call off order - Dover Magistrates Court,17/08/2017," 3,028.00 ",S,72101500,Building maintenance and repair services
Communities and Local Government,Homes and Communities Agency,East And South East,East And South East,CHANNEL ENGINEERING LTD,DAP1928-SERVICE-Call off order - Dover Magistrates Court,22/08/2017, 990.00 ,S,72101500,Building maintenance and repair services
Communities and Local Government,Homes and Communities Agency,East And South East,East And South East,COMPLETE GROUND MANAGEMENT LTD,DAP1029-SERVICE-T1 and T2: To remove both trees to ground lev,16/08/2017, 480.00 ,L,72101500,Building maintenance and repair services
Communities and Local Government,Homes and Communities Agency,East And South East,East And South East,COMPLETE GROUND MANAGEMENT LTD,DAP1029-SERVICE-G4 - Coppice hazels.  Prune and reshape apple,16/08/2017, 980.00 ,L,72101500,Building maintenance and repair services
Communities and Local Government,Homes and Communities Agency,Estate Management Yorks,North West,CARTWRIGHT LANDSCAPES,"DAM3489-SERVICE-TRAIN STATION NORTH, CORBY     Scrub clearanc",15/08/2017, 616.11 ,S,72101500,Building maintenance and repair services
Communities and Local Government,Homes and Communities Agency,Public Land and Regeneration,Programmes,CARTWRIGHT LANDSCAPES,DAP0448-SERVICE-Wrest Park - LM&C Works 2017-2018 as per Cont,15/08/2017, 557.42 ,S,72101500,Building maintenance and repair services
Communities and Local Government,Homes and Communities Agency,Comms Transition Budget,Finance & Corporate Services,ENGIE FM LIMITED,DAP0168-SERVICE-BIS ALLOCATION,04/08/2017," 1,245.31 ",L,72102900,Facility maintenance and repair services
Communities and Local Government,Homes and Communities Agency,Comms Transition Budget,Finance & Corporate Services,ENGIE FM LIMITED,DAP0168-SERVICE-Works on internal fire doors within HCA SGH,04/08/2017," 2,699.29 ",L,72102900,Facility maintenance and repair services
Communities and Local Government,Homes and Communities Agency,Comms Transition Budget,Finance & Corporate Services,ENGIE FM LIMITED,DAP0067-SERVICE-BIS%,04/08/2017, 484.45 ,L,72102900,Facility maintenance and repair services
Communities and Local Government,Homes and Communities Agency,Comms Transition Budget,Finance & Corporate Services,ENGIE FM LIMITED,DAP0067-SERVICE-Supply and fit 1 steel fire rated door,04/08/2017," 1,050.05 ",L,72102900,Facility maintenance and repair services
Communities and Local Government,Homes and Communities Agency,Comms Transition Budget,Finance & Corporate Services,ENGIE FM LIMITED,DAP0067-SERVICE-RADAR lock to disabled toilet,04/08/2017, 311.94 ,L,72102900,Facility maintenance and repair services
Communities and Local Government,Homes and Communities Agency,Comms Transition Budget,Finance & Corporate Services,ENGIE FM LIMITED,DAP0467-SERVICE-BIS allocation,04/08/2017, 480.15 ,L,72102900,Facility maintenance and repair services
Communities and Local Government,Homes and Communities Agency,Comms Transition Budget,Finance & Corporate Services,ENGIE FM LIMITED,DAP0467-SERVICE-Supply & install 1 replacement quadrant all i,04/08/2017," 1,040.75 ",L,72102900,Facility maintenance and repair services
Communities and Local Government,Homes and Communities Agency,Comms Transition Budget,Finance & Corporate Services,ENGIE FM LIMITED,DAP0978-SERVICE-Bedford office internal move (post move works,11/08/2017," 2,467.44 ",L,72102900,Facility maintenance and repair services
Communities and Local Government,Homes and Communities Agency,Comms Transition Budget,Finance & Corporate Services,ENGIE FM LIMITED,DAP0340-SERVICE-BIS/SFA tenant proportion,25/08/2017, 926.93 ,L,72102900,Facility maintenance and repair services
Communities and Local Government,Homes and Communities Agency,Comms Transition Budget,Finance & Corporate Services,ENGIE FM LIMITED,"DAP0340-SERVICE-Electrical, Mechanical and Public Health Plan",25/08/2017," 2,009.19 ",L,72102900,Facility maintenance and repair services
Communities and Local Government,Homes and Communities Agency,Comms Transition Budget,Finance & Corporate Services,ENGIE FM LIMITED,DAP0340-SERVICE-BIS/SFA tenant proportion,25/08/2017, 926.93 ,L,72102900,Facility maintenance and repair services
Communities and Local Government,Homes and Communities Agency,Comms Transition Budget,Finance & Corporate Services,ENGIE FM LIMITED,"DAP0340-SERVICE-Electrical, Mechanical and Public Health Plan",25/08/2017," 2,009.19 ",L,72102900,Facility maintenance and repair services
Communities and Local Government,Homes and Communities Agency,Comms Transition Budget,Finance & Corporate Services,ENGIE FM LIMITED,DAP0340-SERVICE-BIS/SFA tenant proportion,25/08/2017, 926.93 ,L,72102900,Facility maintenance and repair services
Communities and Local Government,Homes and Communities Agency,Comms Transition Budget,Finance & Corporate Services,ENGIE FM LIMITED,"DAP0340-SERVICE-Electrical, Mechanical and Public Health Plan",25/08/2017," 2,009.19 ",L,72102900,Facility maintenance and repair services
Communities and Local Government,Homes and Communities Agency,Comms Transition Budget,Finance & Corporate Services,ENGIE FM LIMITED,DAP0338-SERVICE-Tenant proportion,25/08/2017, 950.86 ,L,72102900,Facility maintenance and repair services
Communities and Local Government,Homes and Communities Agency,Comms Transition Budget,Finance & Corporate Services,ENGIE FM LIMITED,"DAP0338-SERVICE-Electrical, Mechanical and Public Health",25/08/2017," 2,306.60 ",L,72102900,Facility maintenance and repair services
Communities and Local Government,Homes and Communities Agency,Comms Transition Budget,Finance & Corporate Services,ENGIE FM LIMITED,DAP1158-SERVICE-Installation of suspended ceilings and soundp,31/08/2017," 2,535.50 ",L,72102900,Facility maintenance and repair services
Communities and Local Government,Homes and Communities Agency,Comms Transition Budget,Finance & Corporate Services,ENGIE FM LIMITED,DAP0340-SERVICE-BIS/SFA tenant proportion,31/08/2017, 926.93 ,L,72102900,Facility maintenance and repair services
Communities and Local Government,Homes and Communities Agency,Comms Transition Budget,Finance & Corporate Services,ENGIE FM LIMITED,"DAP0340-SERVICE-Electrical, Mechanical and Public Health Plan",31/08/2017," 2,009.19 ",L,72102900,Facility maintenance and repair services
Communities and Local Government,Homes and Communities Agency,Comms Transition Budget,Finance & Corporate Services,ENGIE FM LIMITED,DAP0338-SERVICE-Tenant proportion,31/08/2017, 950.85 ,L,72102900,Facility maintenance and repair services
Communities and Local Government,Homes and Communities Agency,Comms Transition Budget,Finance & Corporate Services,ENGIE FM LIMITED,"DAP0338-SERVICE-Electrical, Mechanical and Public Health",31/08/2017," 2,306.61 ",L,72102900,Facility maintenance and repair services
Communities and Local Government,Homes and Communities Agency,It - Rda Transition,Finance & Corporate Services,VODAFONE LIMITED,DGC1104-SERVICE-WAN - GSI Conv.framework(Cable&Wireless/Voda),07/08/2017," 8,677.67 ",L,81112000,Data services
Communities and Local Government,Homes and Communities Agency,It - Rda Transition,Finance & Corporate Services,OASIS UK NORTH LIMITED,DGC1157-SERVICE-Media transportaion services and secure stora,09/08/2017," 1,226.73 ",L,81111200,Data services
Communities and Local Government,Homes and Communities Agency,Communications Allerton,Executive Office,GORKANA GROUP LTD,DBP0543-SERVICE-Gorkana press cuttings 2017/18,03/08/2017, 733.30 ,L,82101500,Print advertising
Communities and Local Government,Homes and Communities Agency,Budget 2013 - Midlands Wm,Midlands,CUSHMAN & WAKEFIELD DEBENHAM TIE LEUNG,IT73834-SERVICE-Goscote Lane,01/08/2017," 2,750.00 ",L,80131800,Real estate management services
Communities and Local Government,Homes and Communities Agency,Budget 2013 - Midlands Wm,Midlands,CUSHMAN & WAKEFIELD DEBENHAM TIE LEUNG,IT73515-SERVICE-Stretton Hall,01/08/2017," 3,000.00 ",L,80131800,Real estate management services
Communities and Local Government,Homes and Communities Agency,East And Se Essex And Kent,East And South East,CUSHMAN & WAKEFIELD DEBENHAM TIE LEUNG,IT73091-SERVICE-Single Tender Panel Appointment - DTZ(Cushman,08/08/2017," 8,500.00 ",L,80131800,Real estate management services
Communities and Local Government,Homes and Communities Agency,Public Land and Regeneration,Programmes,CUSHMAN & WAKEFIELD DEBENHAM TIE LEUNG,IT72491-SERVICE-Joint red book market valuation on behalf of ,10/08/2017," 2,500.00 ",L,80131800,Real estate management services
Communities and Local Government,Homes and Communities Agency,Budget 2013 - Midlands Wm,Midlands,CUSHMAN & WAKEFIELD DEBENHAM TIE LEUNG,IT73543-SERVICE-Royal - QS Heritage Cost Report,11/08/2017," 3,500.00 ",L,80131800,Real estate management services
Communities and Local Government,Homes and Communities Agency,Budget 2013 - Midlands Wm,Midlands,CUSHMAN & WAKEFIELD DEBENHAM TIE LEUNG,IT71592-SERVICE-Royal - Planning,11/08/2017," 4,500.00 ",L,80131800,Real estate management services
Communities and Local Government,Homes and Communities Agency,Budget 2013 - Midlands Wm,Midlands,CUSHMAN & WAKEFIELD DEBENHAM TIE LEUNG,IT71592-SERVICE-Royal - Planning,11/08/2017," 7,000.00 ",L,80131800,Real estate management services
Communities and Local Government,Homes and Communities Agency,Budget 2013 - Midlands Wm,Midlands,CUSHMAN & WAKEFIELD DEBENHAM TIE LEUNG,IT73523-SERVICE-Royal - Planning CGI's and Detail Drawing of ,11/08/2017," 8,750.00 ",L,80131800,Real estate management services
Communities and Local Government,Homes and Communities Agency,Land And Regeneration Mh,Programmes,CUSHMAN & WAKEFIELD DEBENHAM TIE LEUNG,IT72307-SERVICE-MS Reporting Services for THBF,11/08/2017, 800.00 ,L,80131800,Real estate management services
Communities and Local Government,Homes and Communities Agency,Area Dir Cumbria Lancs Skelmer,North West,CUSHMAN & WAKEFIELD DEBENHAM TIE LEUNG,IT72694-SERVICE-AC Preliminary Work,14/08/2017," 5,960.00 ",L,80131800,Real estate management services
Communities and Local Government,Homes and Communities Agency,Budget 2013 - Midlands Wm,Midlands,CUSHMAN & WAKEFIELD DEBENHAM TIE LEUNG,IT73702-SERVICE-Former Rugeley Power Station,14/08/2017," 4,500.00 ",L,80131800,Real estate management services
Communities and Local Government,Homes and Communities Agency,Ad Manchester Trafford,North West,CUSHMAN & WAKEFIELD DEBENHAM TIE LEUNG,IT73685-SERVICE-Carnforth Rangers - Alternative Sites Search,14/08/2017," 1,995.00 ",L,80131800,Real estate management services
Communities and Local Government,Homes and Communities Agency,Area Dir Mids Worcs-Shrop-Here,Midlands,CUSHMAN & WAKEFIELD DEBENHAM TIE LEUNG,IT71976-SERVICE-Land at Sunnyside Road,15/08/2017, 800.00 ,L,80131800,Real estate management services
Communities and Local Government,Homes and Communities Agency,Area Dir Cumbria Lancs Skelmer,North West,CUSHMAN & WAKEFIELD DEBENHAM TIE LEUNG,IT71848-SERVICE-Site Disposal - Parcel 1638 - Cottam Local Ce,17/08/2017," 1,500.00 ",L,80131800,Real estate management services
Communities and Local Government,Homes and Communities Agency,Land And Regeneration National,Programmes,CUSHMAN & WAKEFIELD DEBENHAM TIE LEUNG,IT72641-SERVICE-SPSL (HCAP 13109) - Gloucester GWRY,18/08/2017," 5,000.00 ",L,80131800,Real estate management services
Communities and Local Government,Homes and Communities Agency,Area Dir Cumbria Lancs Skelmer,North West,CUSHMAN & WAKEFIELD DEBENHAM TIE LEUNG,IT73402-SERVICE-AC Market Testing ,18/08/2017," 5,000.00 ",L,80131800,Real estate management services
Communities and Local Government,Homes and Communities Agency,Public Land and Regeneration,Programmes,CUSHMAN & WAKEFIELD DEBENHAM TIE LEUNG,IT73175-SERVICE-Newbury Mag Court Managing Agent,21/08/2017," 1,000.00 ",L,80131800,Real estate management services
Communities and Local Government,Homes and Communities Agency,Public Land and Regeneration,Programmes,CUSHMAN & WAKEFIELD DEBENHAM TIE LEUNG,IT73176-SERVICE-St James Hospital Managing Agent,21/08/2017," 1,062.50 ",L,80131800,Real estate management services
Communities and Local Government,Homes and Communities Agency,Economic Assets S&Sw Prog,South West,CUSHMAN & WAKEFIELD DEBENHAM TIE LEUNG,IT73595-SERVICE-Daedaklus Waterfront - managing agency,21/08/2017," 5,210.94 ",L,80131800,Real estate management services
Communities and Local Government,Homes and Communities Agency,Economic Assets S&Sw Prog,South West,CUSHMAN & WAKEFIELD DEBENHAM TIE LEUNG,IT73595-SERVICE-Daedaklus Waterfront - managing agency,21/08/2017," 4,210.94 ",L,80131800,Real estate management services
Communities and Local Government,Homes and Communities Agency,Public Land and Regeneration,Programmes,CUSHMAN & WAKEFIELD DEBENHAM TIE LEUNG,IT73175-SERVICE-Newbury Mag Court Managing Agent,21/08/2017," 1,000.00 ",L,80131800,Real estate management services
Communities and Local Government,Homes and Communities Agency,Public Land and Regeneration,Programmes,CUSHMAN & WAKEFIELD DEBENHAM TIE LEUNG,IT73303-SERVICE-FM Management Fees,21/08/2017," 1,500.00 ",L,80131800,Real estate management services
Communities and Local Government,Homes and Communities Agency,Economic Assets Ne-Y Prog,North East And Yorkshire,CUSHMAN & WAKEFIELD DEBENHAM TIE LEUNG,IT73919-SERVICE-Tyne Bridge Tower,23/08/2017," 1,500.00 ",L,80131800,Real estate management services
Communities and Local Government,Homes and Communities Agency,Ne-Y North East Washington,North East And Yorkshire,CUSHMAN & WAKEFIELD DEBENHAM TIE LEUNG,IT67304-SERVICE-Valuation advice,31/08/2017," 1,500.00 ",L,80131800,Real estate management services
Communities and Local Government,Homes and Communities Agency,Economic Assets Hub Transition,Economic Assets Hub,DANDARA LIVING BIRMINGHAM LP,STF - Project Bourbon - Loan Drdn Aug 17,16/08/2017," 1,075,519.34 ",,N/A,Loans
Communities and Local Government,Homes and Communities Agency,Economic Assets Hub Transition,Economic Assets Hub,DANDARA LIVING LEEDS (A) LP,STF - Project Bourbon - Loan Drdn Aug 17,16/08/2017," 510,889.33 ",,N/A,Loans
Communities and Local Government,Homes and Communities Agency,Economic Assets Hub Transition,Economic Assets Hub,DANDARA LIVING LEEDS (B) LP,STF - Project Bourbon - Loan DrDn Aug 17,16/08/2017," 1,157,923.77 ",,N/A,Loans
Communities and Local Government,Homes and Communities Agency,Economic Assets Hub Transition,Economic Assets Hub,DANDARA LIVING MANCHESTER (A) LP,STF-Manchester A-Aug17,16/08/2017," 1,545,734.86 ",,N/A,Loans
Communities and Local Government,Homes and Communities Agency,Economic Assets Hub Transition,Economic Assets Hub,DANDARA LIVING MANCHESTER (B) LP,STF-Manchester B-Aug17,16/08/2017," 616,000.05 ",,N/A,Loans
Communities and Local Government,Homes and Communities Agency,Economic Assets Hub Transition,Economic Assets Hub,DANDARA LIVING MANCHESTER (C) LP,STF-Manchester C-Aug17,16/08/2017," 44,729.14 ",,N/A,Loans
Communities and Local Government,Homes and Communities Agency,Economic Assets Hub Transition,Economic Assets Hub,DEEBLE VENTURES TWO LIMITED,STF Deeble Ventures Two - Ln Drdn Aug 17,17/08/2017," 450,429.00 ",,N/A,Loans
Communities and Local Government,Homes and Communities Agency,Ne-Y North East Washington,North East And Yorkshire,DUNELM GEOTECHNICAL & ENVIRONMENTAL LTD,DNE0385-SERVICE-Ground Investigations - St Georges Morpeth,11/08/2017," 5,700.00 ",S,72101500,Building maintenance and repair services
Communities and Local Government,Homes and Communities Agency,Economic Assets Ne-Y Prog,North East And Yorkshire,DWF LLP,IS12873-SERVICE-Goole36 (Plots C,02/08/2017, 284.45 ,L,80121600,Business law services
Communities and Local Government,Homes and Communities Agency,Economic Assets Ne-Y Prog,North East And Yorkshire,DWF LLP,IS10811-SERVICE-Goole36 (formerly known as Capitol Park,02/08/2017, 630.00 ,L,80121600,Business law services
Communities and Local Government,Homes and Communities Agency,Economic Assets Ne-Y Prog,North East And Yorkshire,DWF LLP,IS10928-SERVICE-Spine Road Infrastructure Works at Capitol Pa,02/08/2017," 1,324.80 ",L,80121600,Business law services
Communities and Local Government,Homes and Communities Agency,Area Dir Mids Worcs-Shrop-Here,Midlands,DWF LLP,IS12559-SERVICE-Former Smallwood Health Centre Site,03/08/2017," 1,479.00 ",L,80121600,Business law services
Communities and Local Government,Homes and Communities Agency,Economic Assets Ne-Y Prog,North East And Yorkshire,DWF LLP,IS12238-SERVICE-Building Agreement Disposal of a site at Sedg,03/08/2017," 2,450.00 ",L,80121600,Business law services
Communities and Local Government,Homes and Communities Agency,Economic Assets Ne-Y Prog,North East And Yorkshire,DWF LLP,IS12855-SERVICE-Office S1,03/08/2017," 1,174.50 ",L,80121600,Business law services
Communities and Local Government,Homes and Communities Agency,Economic Assets Ne-Y Prog,North East And Yorkshire,DWF LLP,IS10899-SERVICE-Freehold Disposal Freehold transfer of part o,04/08/2017, 348.45 ,L,80121600,Business law services
Communities and Local Government,Homes and Communities Agency,Ne-Yh Sheffield And Humb Ne-Y,North East And Yorkshire,DWF LLP,IS12126-SERVICE-Lease Proposed Sales Compound For Fairgrove a,04/08/2017, 450.00 ,L,80121600,Business law services
Communities and Local Government,Homes and Communities Agency,Economic Assets Ne-Y Prog,North East And Yorkshire,DWF LLP,IS12922-SERVICE-Events Car Park,04/08/2017, 974.50 ,L,80121600,Business law services
Communities and Local Government,Homes and Communities Agency,Ne-Y North East Washington,North East And Yorkshire,DWF LLP,IS10435-SERVICE-Former Cherry Knowle Hospital,04/08/2017," 1,500.00 ",L,80121600,Business law services
Communities and Local Government,Homes and Communities Agency,Ne-Y North East Washington,North East And Yorkshire,DWF LLP,IS10435-SERVICE-Former Cherry Knowle Hospital,04/08/2017, 556.50 ,L,80121600,Business law services
Communities and Local Government,Homes and Communities Agency,Ne-Y North East Washington,North East And Yorkshire,DWF LLP,IS12803-SERVICE-Cherry Knowle Review of s106 Agreement,04/08/2017," 4,007.25 ",L,80121600,Business law services
Communities and Local Government,Homes and Communities Agency,Ne-Y North East Washington,North East And Yorkshire,DWF LLP,IS12660-SERVICE-Newton Aycliffe Disposal of Newt Ponds and Su,04/08/2017," 1,875.00 ",L,80121600,Business law services
Communities and Local Government,Homes and Communities Agency,Budget 2013 - Midlands Wm,Midlands,DWF LLP,IS12710-SERVICE-Goscott Lane,07/08/2017," 12,250.00 ",L,80121600,Business law services
Communities and Local Government,Homes and Communities Agency,Area Dir Mids Worcs-Shrop-Here,Midlands,DWF LLP,IS12466-SERVICE-Acquisition of Stanton Iron Works,08/08/2017," 5,000.00 ",L,80121600,Business law services
Communities and Local Government,Homes and Communities Agency,Economic Assets S&Sw Prog,South West,DWF LLP,IS12860-SERVICE-Blandford Brewery,10/08/2017," 1,107.42 ",L,80121600,Business law services
Communities and Local Government,Homes and Communities Agency,Economic Assets S&Sw Prog,South West,DWF LLP,IS12794-SERVICE-Drummond Park,10/08/2017, 725.00 ,L,80121600,Business law services
Communities and Local Government,Homes and Communities Agency,Economic Assets S&Sw Prog,South West,DWF LLP,IS12794-SERVICE-Drummond Park,10/08/2017," 1,980.00 ",L,80121600,Business law services
Communities and Local Government,Homes and Communities Agency,Public Land and Regeneration,Programmes,DWF LLP,IS09931-SERVICE-site to the east of deerbolt,14/08/2017," 2,176.00 ",L,80121600,Business law services
Communities and Local Government,Homes and Communities Agency,Public Land and Regeneration,Programmes,DWF LLP,IS10416-SERVICE-Land to the East of Deerbolt HMYOI,14/08/2017, 311.50 ,L,80121600,Business law services
Communities and Local Government,Homes and Communities Agency,Facilities Allerton Bywater,Finance & Corporate Services,DWF LLP,DAP1930-SERVICE-Independent advice on settlement agreement Ji,16/08/2017, 250.00 ,L,80121600,Business law services
Communities and Local Government,Homes and Communities Agency,Economic Assets S&Sw Prog,South West,DWF LLP,IS12408-SERVICE-Island Technology park,18/08/2017," 1,553.50 ",L,80121600,Business law services
Communities and Local Government,Homes and Communities Agency,Ad Manchester Trafford,North West,DWF LLP,IS12638-SERVICE-Croston Road acquisition (Eckersley Land) - D,21/08/2017, 844.00 ,L,80121600,Business law services
Communities and Local Government,Homes and Communities Agency,Ad Manchester Trafford,North West,DWF LLP,IS12638-SERVICE-Croston Road acquisition (Eckersley Land),21/08/2017," 4,227.01 ",L,80121600,Business law services
Communities and Local Government,Homes and Communities Agency,Land And Regeneration Mh,Programmes,DWF LLP,IS12471-SERVICE-Former Bush Nurseries,21/08/2017," 7,501.80 ",L,80121600,Business law services
Communities and Local Government,Homes and Communities Agency,Land And Regeneration National,Programmes,DWF LLP,IS12737-SERVICE-Funding Agreement and JVA review,21/08/2017, 850.00 ,L,80121600,Business law services
Communities and Local Government,Homes and Communities Agency,Land And Regeneration National,Programmes,DWF LLP,IS12738-SERVICE-Review of historic Castletown Funding Agreeme,21/08/2017, 850.00 ,L,80121600,Business law services
Communities and Local Government,Homes and Communities Agency,Ne-Yh Sheffield And Humb Ne-Y,North East And Yorkshire,DWF LLP,IS11736-SERVICE-Plot B,23/08/2017," 1,969.00 ",L,80121600,Business law services
Communities and Local Government,Homes and Communities Agency,Economic Assets Ne-Y Prog,North East And Yorkshire,DWF LLP,IS11853-SERVICE-3 Tatham Street,23/08/2017," 1,341.00 ",L,80121600,Business law services
Communities and Local Government,Homes and Communities Agency,Ne-Y North East Washington,North East And Yorkshire,DWF LLP,IS12059-SERVICE-St Georges Hospital Morpeth Phase 2,24/08/2017," 3,088.50 ",L,80121600,Business law services
Communities and Local Government,Homes and Communities Agency,Ad Manchester Trafford,North West,DWF LLP,IS12637-SERVICE-Harras Moor,29/08/2017," 6,440.16 ",L,80121600,Business law services
Communities and Local Government,Homes and Communities Agency,Economic Assets Ne-Y Prog,North East And Yorkshire,DWF LLP,IS12940-SERVICE-Land at Eldon Whins,29/08/2017," 2,450.00 ",L,80121600,Business law services
Communities and Local Government,Homes and Communities Agency,Ad Manchester Trafford,North West,DWF LLP,IS12845-SERVICE-Bowes Land at Croftlands East,30/08/2017," 1,150.00 ",L,80121600,Business law services
Communities and Local Government,Homes and Communities Agency,Ad Manchester Trafford,North West,DWF LLP,IS12648-SERVICE-Mrs Cooks Land off Banister Land,30/08/2017," 2,750.00 ",L,80121600,Business law services
Communities and Local Government,Homes and Communities Agency,Ad Manchester Trafford,North West,DWF LLP,IS12655-SERVICE-Various Land ownerships South of Banister Lan,30/08/2017," 1,150.00 ",L,80121600,Business law services
Communities and Local Government,Homes and Communities Agency,Ad Manchester Trafford,North West,DWF LLP,IS12844-SERVICE-Breach Land - Banister Lane,30/08/2017," 1,150.00 ",L,80121600,Business law services
Communities and Local Government,Homes and Communities Agency,Ad Manchester Trafford,North West,DWF LLP,IS12846-SERVICE-Jackson Land - Croston Road,30/08/2017," 1,150.00 ",L,80121600,Business law services
Communities and Local Government,Homes and Communities Agency,Ad Manchester Trafford,North West,DWF LLP,IS12847-SERVICE-Bayliss Land,30/08/2017," 1,150.00 ",L,80121600,Business law services
Communities and Local Government,Homes and Communities Agency,Ad Manchester Trafford,North West,DWF LLP,IS12652-SERVICE-Pickerings Farm 4* potential acquisitions,30/08/2017," 1,150.00 ",L,80121600,Business law services
Communities and Local Government,Homes and Communities Agency,Ad Manchester Trafford,North West,DWF LLP,IS12858-SERVICE-Pentall/Knight/Cross Land,30/08/2017," 1,150.00 ",L,80121600,Business law services
Communities and Local Government,Homes and Communities Agency,Ad Manchester Trafford,North West,DWF LLP,IS12856-SERVICE-Walmsley land at Pickerings Farm,30/08/2017," 1,150.00 ",L,80121600,Business law services
Communities and Local Government,Homes and Communities Agency,Ad Manchester Trafford,North West,DWF LLP,IS12653-SERVICE-Cuerden acquisition,30/08/2017," 1,150.00 ",L,80121600,Business law services
Communities and Local Government,Homes and Communities Agency,Ad Manchester Trafford,North West,DWF LLP,IS12605-SERVICE-Hoddlesden Mill,31/08/2017, 462.50 ,L,80121600,Business law services
Communities and Local Government,Homes and Communities Agency,Ad Manchester Trafford,North West,DWF LLP,IS12605-SERVICE-Hoddlesden Mill,31/08/2017," 1,130.77 ",L,80121600,Business law services
Communities and Local Government,Homes and Communities Agency,Comms Transition Budget,Finance & Corporate Services,DEAN TAXI LIMITED,DAP1916-SERVICE-Taxi Services to HCA Gateshead -12 month peri,10/08/2017, 339.00 ,S,78111800,Passenger road transportation
Communities and Local Government,Homes and Communities Agency,Economic Assets Ne-Y Prog,North East And Yorkshire,DWW CONTRACTING SERVICES LTD,DAP1750-SERVICE-Removal of diesel tank and hazardous waste co,09/08/2017," 3,375.00 ",S,72101500,Building maintenance and repair services
Communities and Local Government,Homes and Communities Agency,It - Rda Transition,Finance & Corporate Services,DEPOEL MANAGED SERVICES LTD,"DAP0387-SERVICE-William Warby, TMS Technical Architect",08/08/2017," 2,276.00 ",L,80111600,Temporary personnel services
Communities and Local Government,Homes and Communities Agency,It - Rda Transition,Finance & Corporate Services,DEPOEL MANAGED SERVICES LTD,"DAP0380-SERVICE-Gaurav Verma, IMS Net Developer",08/08/2017," 2,514.40 ",L,80111600,Temporary personnel services
Communities and Local Government,Homes and Communities Agency,It - Rda Transition,Finance & Corporate Services,DEPOEL MANAGED SERVICES LTD,DAP0378-SERVICE-Dinesh Upreti - TMS Net Developer,08/08/2017," 3,840.62 ",L,80111600,Temporary personnel services
Communities and Local Government,Homes and Communities Agency,It - Rda Transition,Finance & Corporate Services,DEPOEL MANAGED SERVICES LTD,DAP0378-SERVICE-Dinesh Upreti - TMS Net Developer,08/08/2017," 2,743.30 ",L,80111600,Temporary personnel services
Communities and Local Government,Homes and Communities Agency,It - Rda Transition,Finance & Corporate Services,DEPOEL MANAGED SERVICES LTD,"DAP0387-SERVICE-William Warby, TMS Technical Architect",08/08/2017," 2,845.00 ",L,80111600,Temporary personnel services
Communities and Local Government,Homes and Communities Agency,It - Rda Transition,Finance & Corporate Services,DEPOEL MANAGED SERVICES LTD,"DAP0382-SERVICE-Shaun Fay, IMS Business Analyst",08/08/2017," 2,524.60 ",L,80111600,Temporary personnel services
Communities and Local Government,Homes and Communities Agency,It - Rda Transition,Finance & Corporate Services,DEPOEL MANAGED SERVICES LTD,DAP0374-SERVICE-Andrew Hutchinson - TMS .Net Developer,08/08/2017," 1,818.28 ",L,80111600,Temporary personnel services
Communities and Local Government,Homes and Communities Agency,It - Rda Transition,Finance & Corporate Services,DEPOEL MANAGED SERVICES LTD,DAP0385-SERVICE-Shalak Deshpande - IMS Test Analyst,08/08/2017," 1,955.05 ",L,80111600,Temporary personnel services
Communities and Local Government,Homes and Communities Agency,It - Rda Transition,Finance & Corporate Services,DEPOEL MANAGED SERVICES LTD,"DAP0386-SERVICE-Vijay Maisuria, TMS Test Analyst",08/08/2017," 1,955.05 ",L,80111600,Temporary personnel services
Communities and Local Government,Homes and Communities Agency,It - Rda Transition,Finance & Corporate Services,DEPOEL MANAGED SERVICES LTD,DAP0383-SERVICE-Sajad Sayani - TMS .Net Developer,08/08/2017," 3,291.96 ",L,80111600,Temporary personnel services
Communities and Local Government,Homes and Communities Agency,It - Rda Transition,Finance & Corporate Services,DEPOEL MANAGED SERVICES LTD,DAP0995-SERVICE-Barry Stephenson Contract until 30/06/17,10/08/2017, 625.13 ,L,80111600,Temporary personnel services
Communities and Local Government,Homes and Communities Agency,It - Rda Transition,Finance & Corporate Services,DEPOEL MANAGED SERVICES LTD,DAP0995-SERVICE-Barry Stephenson Contract until 30/06/17,10/08/2017, 625.04 ,L,80111600,Temporary personnel services
Communities and Local Government,Homes and Communities Agency,It - Rda Transition,Finance & Corporate Services,DEPOEL MANAGED SERVICES LTD,"DAP0387-SERVICE-William Warby, TMS Technical Architect",15/08/2017," 2,844.98 ",L,80111600,Temporary personnel services
Communities and Local Government,Homes and Communities Agency,It - Rda Transition,Finance & Corporate Services,DEPOEL MANAGED SERVICES LTD,"DAP0382-SERVICE-Shaun Fay, IMS Business Analyst",15/08/2017," 2,524.59 ",L,80111600,Temporary personnel services
Communities and Local Government,Homes and Communities Agency,It - Rda Transition,Finance & Corporate Services,DEPOEL MANAGED SERVICES LTD,DAP0374-SERVICE-Andrew Hutchinson - TMS .Net Developer,15/08/2017," 1,136.42 ",L,80111600,Temporary personnel services
Communities and Local Government,Homes and Communities Agency,It - Rda Transition,Finance & Corporate Services,DEPOEL MANAGED SERVICES LTD,DAP0385-SERVICE-Shalak Deshpande - IMS Test Analyst,15/08/2017," 1,955.06 ",L,80111600,Temporary personnel services
Communities and Local Government,Homes and Communities Agency,It - Rda Transition,Finance & Corporate Services,DEPOEL MANAGED SERVICES LTD,"DAP0386-SERVICE-Vijay Maisuria, TMS Test Analyst",15/08/2017," 1,955.06 ",L,80111600,Temporary personnel services
Communities and Local Government,Homes and Communities Agency,It - Rda Transition,Finance & Corporate Services,DEPOEL MANAGED SERVICES LTD,DAP0383-SERVICE-Sajad Sayani - TMS .Net Developer,15/08/2017," 2,743.28 ",L,80111600,Temporary personnel services
Communities and Local Government,Homes and Communities Agency,It - Rda Transition,Finance & Corporate Services,DEPOEL MANAGED SERVICES LTD,"DAP0380-SERVICE-Gaurav Verma, IMS Net Developer",15/08/2017," 2,514.39 ",L,80111600,Temporary personnel services
Communities and Local Government,Homes and Communities Agency,It - Rda Transition,Finance & Corporate Services,DEPOEL MANAGED SERVICES LTD,DAP0378-SERVICE-Dinesh Upreti - TMS Net Developer,15/08/2017," 2,743.28 ",L,80111600,Temporary personnel services
Communities and Local Government,Homes and Communities Agency,It - Rda Transition,Finance & Corporate Services,DEPOEL MANAGED SERVICES LTD,"DAP0387-SERVICE-William Warby, TMS Technical Architect",24/08/2017," 2,844.98 ",L,80111600,Temporary personnel services
Communities and Local Government,Homes and Communities Agency,It - Rda Transition,Finance & Corporate Services,DEPOEL MANAGED SERVICES LTD,"DAP0382-SERVICE-Shaun Fay, IMS Business Analyst",24/08/2017," 2,524.59 ",L,80111600,Temporary personnel services
Communities and Local Government,Homes and Communities Agency,It - Rda Transition,Finance & Corporate Services,DEPOEL MANAGED SERVICES LTD,DAP0374-SERVICE-Andrew Hutchinson - TMS .Net Developer,24/08/2017," 1,818.27 ",L,80111600,Temporary personnel services
Communities and Local Government,Homes and Communities Agency,It - Rda Transition,Finance & Corporate Services,DEPOEL MANAGED SERVICES LTD,DAP0385-SERVICE-Shalak Deshpande - IMS Test Analyst,24/08/2017," 1,955.06 ",L,80111600,Temporary personnel services
Communities and Local Government,Homes and Communities Agency,It - Rda Transition,Finance & Corporate Services,DEPOEL MANAGED SERVICES LTD,"DAP0386-SERVICE-Vijay Maisuria, TMS Test Analyst",24/08/2017," 1,173.04 ",L,80111600,Temporary personnel services
Communities and Local Government,Homes and Communities Agency,It - Rda Transition,Finance & Corporate Services,DEPOEL MANAGED SERVICES LTD,DAP0383-SERVICE-Sajad Sayani - TMS .Net Developer,24/08/2017," 2,194.62 ",L,80111600,Temporary personnel services
Communities and Local Government,Homes and Communities Agency,It - Rda Transition,Finance & Corporate Services,DEPOEL MANAGED SERVICES LTD,"DAP0380-SERVICE-Gaurav Verma, IMS Net Developer",24/08/2017," 2,514.39 ",L,80111600,Temporary personnel services
Communities and Local Government,Homes and Communities Agency,It - Rda Transition,Finance & Corporate Services,DEPOEL MANAGED SERVICES LTD,DAP0378-SERVICE-Dinesh Upreti - TMS Net Developer,24/08/2017," 3,291.93 ",L,80111600,Temporary personnel services
Communities and Local Government,Homes and Communities Agency,It - Rda Transition,Finance & Corporate Services,DEPOEL MANAGED SERVICES LTD,"DAP0387-SERVICE-William Warby, TMS Technical Architect",24/08/2017," 2,844.98 ",L,80111600,Temporary personnel services
Communities and Local Government,Homes and Communities Agency,It - Rda Transition,Finance & Corporate Services,DEPOEL MANAGED SERVICES LTD,"DAP0382-SERVICE-Shaun Fay, IMS Business Analyst",24/08/2017," 2,524.59 ",L,80111600,Temporary personnel services
Communities and Local Government,Homes and Communities Agency,It - Rda Transition,Finance & Corporate Services,DEPOEL MANAGED SERVICES LTD,DAP0374-SERVICE-Andrew Hutchinson - TMS .Net Developer,24/08/2017," 2,272.83 ",L,80111600,Temporary personnel services
Communities and Local Government,Homes and Communities Agency,It - Rda Transition,Finance & Corporate Services,DEPOEL MANAGED SERVICES LTD,DAP0385-SERVICE-Shalak Deshpande - IMS Test Analyst,24/08/2017," 1,955.06 ",L,80111600,Temporary personnel services
Communities and Local Government,Homes and Communities Agency,It - Rda Transition,Finance & Corporate Services,DEPOEL MANAGED SERVICES LTD,"DAP0386-SERVICE-Vijay Maisuria, TMS Test Analyst",24/08/2017," 2,150.57 ",L,80111600,Temporary personnel services
Communities and Local Government,Homes and Communities Agency,It - Rda Transition,Finance & Corporate Services,DEPOEL MANAGED SERVICES LTD,DAP0383-SERVICE-Sajad Sayani - TMS .Net Developer,24/08/2017," 2,743.28 ",L,80111600,Temporary personnel services
Communities and Local Government,Homes and Communities Agency,It - Rda Transition,Finance & Corporate Services,DEPOEL MANAGED SERVICES LTD,"DAP0380-SERVICE-Gaurav Verma, IMS Net Developer",24/08/2017," 3,520.14 ",L,80111600,Temporary personnel services
Communities and Local Government,Homes and Communities Agency,It - Rda Transition,Finance & Corporate Services,DEPOEL MANAGED SERVICES LTD,DAP0378-SERVICE-Dinesh Upreti - TMS Net Developer,24/08/2017," 2,743.28 ",L,80111600,Temporary personnel services
Communities and Local Government,Homes and Communities Agency,It - Rda Transition,Finance & Corporate Services,DEPOEL MANAGED SERVICES LTD,DAP0995-SERVICE-Barry Stephenson Contract until 30/06/17,25/08/2017, 625.04 ,L,80111600,Temporary personnel services
Communities and Local Government,Homes and Communities Agency,It - Rda Transition,Finance & Corporate Services,DEPOEL MANAGED SERVICES LTD,DAP0995-SERVICE-Barry Stephenson Contract until 30/06/17,25/08/2017, 625.04 ,L,80111600,Temporary personnel services
Communities and Local Government,Homes and Communities Agency,East And Se Essex And Kent,East And South East,DDS (DEMOLITION) LTD,DEE0076-SERVICE-Demolition of Connaught Barracks buildings,29/08/2017," 13,573.57 ",M,72141500,Land preparation services
Communities and Local Government,Homes and Communities Agency,Comms Transition Budget,Finance & Corporate Services,DEPARTMENT OF ENERGY & CLIMATE CHANGE,DAP2059-SERVICE-CRC Forecast Allowances,30/08/2017," 2,322.00 ",G,94101500,Business associations
Communities and Local Government,Homes and Communities Agency,Comms Transition Budget,Finance & Corporate Services,DEPARTMENT OF ENERGY & CLIMATE CHANGE,DAP2059-SERVICE-CRC Forecast Allowances,30/08/2017," 2,322.00 ",G,94101500,Business associations
Communities and Local Government,Homes and Communities Agency,Spatial Intelligence Telford,Programmes,DEPARTMENT OF ENERGY & CLIMATE CHANGE,DAP2059-SERVICE-CRC Forecast Allowances,30/08/2017," 26,316.00 ",G,94101500,Business associations
Communities and Local Government,Homes and Communities Agency,Land And Regeneration Mh,Programmes,EVERSHEDS LLP,IS11870-SERVICE-Kickstart - Ice Plant Manchester,24/08/2017," 5,520.72 ",L,80121600,Business law services
Communities and Local Government,Homes and Communities Agency,Land And Regeneration Mh,Programmes,EVERSHEDS LLP,IS11870-SERVICE-Kickstart - Ice Plant Manchester,24/08/2017," 2,838.50 ",L,80121600,Business law services
Communities and Local Government,Homes and Communities Agency,Land And Regeneration Mh,Programmes,EVERSHEDS LLP,IS11870-SERVICE-Kickstart - Ice Plant Manchester,24/08/2017," 10,739.40 ",L,80121600,Business law services
Communities and Local Government,Homes and Communities Agency,Ne-Y North East Washington,North East And Yorkshire,EVERSHEDS LLP,DNE0007-SERVICE-Legal advice relating to transfer of land at,29/08/2017, 986.90 ,L,80121600,Business law services
Communities and Local Government,Homes and Communities Agency,Economic Assets Nw Prog,North West,EVERSHEDS LLP,IS08602-SERVICE-no vat fees,29/08/2017, 445.50 ,L,80121600,Business law services
Communities and Local Government,Homes and Communities Agency,Economic Assets Nw Prog,North West,EVERSHEDS LLP,IS08602-SERVICE-Rochdale,29/08/2017," 10,721.00 ",L,80121600,Business law services
Communities and Local Government,Homes and Communities Agency,It - Rda Transition,Finance & Corporate Services,DB GROUP LTD T/A ESUASIVE,DAP1067-SERVICE-Services to support the replacement of CRM v4,04/08/2017, 850.63 ,L,43231500,Business function specific software
Communities and Local Government,Homes and Communities Agency,It - Rda Transition,Finance & Corporate Services,DB GROUP LTD T/A ESUASIVE,DAP1067-SERVICE-Services to support the replacement of CRM v4,04/08/2017," 26,537.50 ",L,43231500,Business function specific software
Communities and Local Government,Homes and Communities Agency,Economic Assets S&Sw Prog,South West,ENQUIN ENVIRONMENTAL LIMITED,DAP1407-SERVICE-Northern United - attendance at site with bat,02/08/2017, 815.00 ,S,80131800,Real estate management services
Communities and Local Government,Homes and Communities Agency,Economic Assets S&Sw Prog,South West,ENQUIN ENVIRONMENTAL LIMITED,DAP1037-SERVICE-Small & Tidmas Barnstaple - refurbishment and,04/08/2017," 6,602.59 ",S,80131800,Real estate management services
Communities and Local Government,Homes and Communities Agency,Economic Assets S&Sw Prog,South West,ENQUIN ENVIRONMENTAL LIMITED,DAP1407-SERVICE-Northern United - attendance at site with bat,30/08/2017, 407.50 ,S,80131800,Real estate management services
Communities and Local Government,Homes and Communities Agency,East And Se Essex And Kent,East And South East,AMEC FOSTER WHEELER & INFASTRUCTURE UK LTD,IT72784-SERVICE-Review of Geo-Environmental Report in Respect,01/08/2017," 2,500.00 ",L,80131800,Real estate management services
Communities and Local Government,Homes and Communities Agency,Mk Development Control Mk,Midlands,AMEC FOSTER WHEELER & INFASTRUCTURE UK LTD,IT71394-SERVICE-CEMP Monitoring - Kingsmead South 1 & 2 Milto,03/08/2017," 2,286.67 ",L,80131800,Real estate management services
Communities and Local Government,Homes and Communities Agency,East And Se Cambs Herts And Bu,East And South East,AMEC FOSTER WHEELER & INFASTRUCTURE UK LTD,IT72967-SERVICE-Marchmont Farm,03/08/2017," 26,400.00 ",L,80131800,Real estate management services
Communities and Local Government,Homes and Communities Agency,East And South East,East And South East,AMEC FOSTER WHEELER & INFASTRUCTURE UK LTD,IT73379-SERVICE-Towergate A,03/08/2017," 10,000.00 ",L,80131800,Real estate management services
Communities and Local Government,Homes and Communities Agency,Area Dir Mids Leicester-Warks,Midlands,AMEC FOSTER WHEELER & INFASTRUCTURE UK LTD,IT70089-SERVICE-Stretton Hall: High level masterplanning and,07/08/2017," 5,665.20 ",L,80131800,Real estate management services
Communities and Local Government,Homes and Communities Agency,Mk Development Control Mk,Midlands,AMEC FOSTER WHEELER & INFASTRUCTURE UK LTD,IT70761-SERVICE-Extension of Time for the Outline Planning Pe,08/08/2017," 1,000.00 ",L,80131800,Real estate management services
Communities and Local Government,Homes and Communities Agency,Area Dir Mids Worcs-Shrop-Here,Midlands,AMEC FOSTER WHEELER & INFASTRUCTURE UK LTD,IT71711-SERVICE-Detailed Ground Investigations,10/08/2017," 4,707.00 ",L,80131800,Real estate management services
Communities and Local Government,Homes and Communities Agency,East And Se Essex And Kent,East And South East,AMEC FOSTER WHEELER & INFASTRUCTURE UK LTD,IT72281-SERVICE-Planning Strategy Works - UXO,25/08/2017," 23,415.79 ",L,80131800,Real estate management services
Communities and Local Government,Homes and Communities Agency,East And Se Essex And Kent,East And South East,AMEC FOSTER WHEELER & INFASTRUCTURE UK LTD,IT72282-SERVICE-Planning Strategy Works - Meetings,25/08/2017," 14,067.38 ",L,80131800,Real estate management services
Communities and Local Government,Homes and Communities Agency,East And Se Essex And Kent,East And South East,AMEC FOSTER WHEELER & INFASTRUCTURE UK LTD,IT72280-SERVICE-Planning Strategy Works - Highways and Transp,25/08/2017," 38,454.36 ",L,80131800,Real estate management services
Communities and Local Government,Homes and Communities Agency,East And Se Essex And Kent,East And South East,AMEC FOSTER WHEELER & INFASTRUCTURE UK LTD,IT72278-SERVICE-Planning Strategy Works - Town Planning,25/08/2017," 16,915.80 ",L,80131800,Real estate management services
Communities and Local Government,Homes and Communities Agency,East And Se Essex And Kent,East And South East,AMEC FOSTER WHEELER & INFASTRUCTURE UK LTD,IT72277-SERVICE-Planning Strategy Works - NCL Sites,25/08/2017," 25,676.32 ",L,80131800,Real estate management services
Communities and Local Government,Homes and Communities Agency,East And Se Essex And Kent,East And South East,AMEC FOSTER WHEELER & INFASTRUCTURE UK LTD,IT72276-SERVICE-Planning Strategy Works - Lodge Hill / Off Si,25/08/2017," 29,148.30 ",L,80131800,Real estate management services
Communities and Local Government,Homes and Communities Agency,East And Se Essex And Kent,East And South East,AMEC FOSTER WHEELER & INFASTRUCTURE UK LTD,IT72279-SERVICE-Planning Strategy Works - Masterplanning,25/08/2017," 47,685.89 ",L,80131800,Real estate management services
Communities and Local Government,Homes and Communities Agency,East And Se And Surr And Suss,East And South East,AMEC FOSTER WHEELER & INFASTRUCTURE UK LTD,IT70356-SERVICE-Planning Instruction at Tinlsey Lane,30/08/2017," 4,000.00 ",L,80131800,Real estate management services
Communities and Local Government,Homes and Communities Agency,Budget 2013 - Midlands Wm,Midlands,AMEC FOSTER WHEELER & INFASTRUCTURE UK LTD,IT73621-SERVICE-Assessment of costs  inert surplus material),30/08/2017," 3,418.38 ",L,80131800,Real estate management services
Communities and Local Government,Homes and Communities Agency,East And Se Cambs Herts And Bu,East And South East,AMEC FOSTER WHEELER & INFASTRUCTURE UK LTD,IT72967-SERVICE-Marchmont Farm,31/08/2017," 19,500.00 ",L,80131800,Real estate management services
Communities and Local Government,Homes and Communities Agency,Economic Assets Nw Prog,North West,ELECTRICITY NORTH WEST LIMITED,FORMER HOSPITAL FLINT ST,31/08/2017," 1,292.70 ",S,72101500,Building maintenance and repair services
Communities and Local Government,Homes and Communities Agency,Facilities Allerton Bywater,Finance & Corporate Services,EDENRED (UK GROUP) LTD,DAP1901-SERVICE-Instant Recognition Scheme,08/08/2017, 300.00 ,L,14111803,Vouchers
Communities and Local Government,Homes and Communities Agency,It - Rda Transition,Finance & Corporate Services,EE LTD,DAP0517-SERVICE-Monthly mobile bill x 3 ,09/08/2017," 5,980.03 ",L,83101600,Mobile communications services
Communities and Local Government,Homes and Communities Agency,Economic Assets S&Sw Prog,South West,EUROVIA INFRASTRUCTURE LIMITED,DAP1255-SERVICE-Works to return road surface to original cond,21/08/2017," 3,690.00 ",M,55121700,Signage
Communities and Local Government,Homes and Communities Agency,Economic Assets Nw Prog,North West,ECOLOGICAL LAND MANGEMENT LTD,DAP1622-SERVICE-To supply and install x4nr Ali backed signs o,11/08/2017, 660.00 ,S,72101500,Building maintenance and repair services
Communities and Local Government,Homes and Communities Agency,Economic Assets Nw Prog,North West,ECOLOGICAL LAND MANGEMENT LTD,DAP1030-SERVICE-To undetake herbicide treatment of Giant Hogw,11/08/2017, 480.00 ,S,72101500,Building maintenance and repair services
Communities and Local Government,Homes and Communities Agency,Estate Management Yorks,North West,ECOLOGICAL LAND MANGEMENT LTD,DAP1619-SERVICE-To strim the vegetation on each side of the n,17/08/2017, 250.00 ,S,72101500,Building maintenance and repair services
Communities and Local Government,Homes and Communities Agency,Public Land and Regeneration,Programmes,EMCOR GROUP (UK) lTD,DAM3200-SERVICE-DARTFORD MAGISTRATES COURT     Call off order,15/08/2017," 3,000.00 ",L,72101500,Building maintenance and repair services
Communities and Local Government,Homes and Communities Agency,Public Land and Regeneration,Programmes,EMCOR GROUP (UK) lTD,DAM3200-SERVICE-DARTFORD MAGISTRATES COURT     Call off order,15/08/2017," 1,600.00 ",L,72101500,Building maintenance and repair services
Communities and Local Government,Homes and Communities Agency,Economic Assets Hub Transition,Economic Assets Hub,EASTONS NORTHERNHAY LLP,STF-Eastons Building-Aug17,23/08/2017," 123,904.85 ",,N/A,Loans
Communities and Local Government,Homes and Communities Agency,Public Land and Regeneration,Programmes,ENVIRONMENTAL DESIGN,"DAM2316-SERVICE-BLACKTHORN ROAD, ATTLEBOROUGH     Maintain he",07/08/2017," 1,151.00 ",S,72101500,Building maintenance and repair services
Communities and Local Government,Homes and Communities Agency,Economic Assets Hub Transition,Economic Assets Hub,EARLS COURT PARTNERSHIP LIMITED,LTF-Earls Court-Aug17,29/08/2017," 2,315,431.00 ",,N/A,Loans
Communities and Local Government,Homes and Communities Agency,Budget 2013 - Midlands Wm,Midlands,EAST STAFFORDSHIRE BOROUGH COUNCIL,"LAND OFF SHOBNALL ROAD, BURTON UPON TRENT",15/08/2017," 1,220.00 ",G,72101500,Building maintenance and repair services
Communities and Local Government,Homes and Communities Agency,Programme Management Mh,Finance & Corporate Services,ELLIPSE,DGC1665-SERVICE-GROUP LIFE PREMIUM 010417-310318,04/08/2017, 637.28 ,L,84000000,Financial and Insurance Services
Communities and Local Government,Homes and Communities Agency,Economic Assets S&Sw Prog,South West,AECOM LIMITED,IT73753-SERVICE-Former Pirbright Institute,01/08/2017," 52,500.00 ",L,72101500,Building maintenance and repair services
Communities and Local Government,Homes and Communities Agency,East And Se Cambs Herts And Bu,East And South East,AECOM LIMITED,IT73580-SERVICE-Houghton Grange - Provision of Planning & Tec,02/08/2017," 18,172.34 ",L,72101500,Building maintenance and repair services
Communities and Local Government,Homes and Communities Agency,East And Se Cambs Herts And Bu,East And South East,AECOM LIMITED,IT73581-SERVICE-Houghton Grange - Provision of Planning & Tec,02/08/2017," 3,234.81 ",L,72101500,Building maintenance and repair services
Communities and Local Government,Homes and Communities Agency,East And Se Cambs Herts And Bu,East And South East,AECOM LIMITED,IT73751-SERVICE-Houghton Grange - Structural Inspections of r,02/08/2017," 3,162.65 ",L,72101500,Building maintenance and repair services
Communities and Local Government,Homes and Communities Agency,East And Se Cambs Herts And Bu,East And South East,AECOM LIMITED,IT73582-SERVICE-Houghton Grange - Provision of Planning & Tec,02/08/2017," 5,641.22 ",L,72101500,Building maintenance and repair services
Communities and Local Government,Homes and Communities Agency,East And Se Cambs Herts And Bu,East And South East,AECOM LIMITED,IT73466-SERVICE-Houghton Grange - Neighbourhood Plan Consulta,02/08/2017, 609.31 ,L,72101500,Building maintenance and repair services
Communities and Local Government,Homes and Communities Agency,Economic Assets Nw Prog,North West,AECOM LIMITED,IT71480-SERVICE-Partington Canalside,08/08/2017," 2,354.84 ",L,72101500,Building maintenance and repair services
Communities and Local Government,Homes and Communities Agency,LIF LS Loans Private additions,Programmes,AECOM LIMITED,IT71864-SERVICE-Project monitoring of Chilmington Green infra,15/08/2017," 2,271.00 ",L,72101500,Building maintenance and repair services
Communities and Local Government,Homes and Communities Agency,Liverpool Cheshire Warrington,North West,AECOM LIMITED,IT73872-SERVICE-Altcar Lane Utilities Study,17/08/2017," 2,401.34 ",L,72101500,Building maintenance and repair services
Communities and Local Government,Homes and Communities Agency,Economic Assets S&Sw Prog,South West,AECOM LIMITED,IT73740-SERVICE-Louisburg Church - Assessment to support roos,21/08/2017," 7,162.64 ",L,72101500,Building maintenance and repair services
Communities and Local Government,Homes and Communities Agency,South West Hants-Iow-Dorset-Bu,South West,AECOM LIMITED,IT72457-SERVICE-Civic Quarter,21/08/2017," 7,738.02 ",L,72101500,Building maintenance and repair services
Communities and Local Government,Homes and Communities Agency,Economic Assets S&Sw Prog,South West,AECOM LIMITED,IT73433-SERVICE-Ecology Surveys - Compton,21/08/2017," 4,941.50 ",L,72101500,Building maintenance and repair services
Communities and Local Government,Homes and Communities Agency,East And Se Cambs Herts And Bu,East And South East,AECOM LIMITED,IT71851-SERVICE-Peterborough Local Plan Review Great Kyne Pro,21/08/2017," 40,000.00 ",L,72101500,Building maintenance and repair services
Communities and Local Government,Homes and Communities Agency,South West Of Eng-Glouc-Oxford,South West,AECOM LIMITED,IT73701-SERVICE-Tecnical support to planning at Chalgrove,25/08/2017," 41,901.23 ",L,72101500,Building maintenance and repair services
Communities and Local Government,Homes and Communities Agency,Area Dir Cumbria Lancs Skelmer,North West,AECOM LIMITED,IT72821-SERVICE-GCN,30/08/2017," 1,102.00 ",L,72101500,Building maintenance and repair services
Communities and Local Government,Homes and Communities Agency,East And Se Cambs Herts And Bu,East And South East,AECOM LIMITED,IT73580-SERVICE-Houghton Grange - Provision of Planning & Tec,30/08/2017," 8,748.83 ",L,72101500,Building maintenance and repair services
Communities and Local Government,Homes and Communities Agency,East And Se Cambs Herts And Bu,East And South East,AECOM LIMITED,IT73581-SERVICE-Houghton Grange - Provision of Planning & Tec,30/08/2017," 4,706.99 ",L,72101500,Building maintenance and repair services
Communities and Local Government,Homes and Communities Agency,East And Se Cambs Herts And Bu,East And South East,AECOM LIMITED,IT73980-SERVICE-Houghton Grange - Hazardous Material Surveys,30/08/2017," 4,000.00 ",L,72101500,Building maintenance and repair services
Communities and Local Government,Homes and Communities Agency,East And Se Cambs Herts And Bu,East And South East,AECOM LIMITED,IT73751-SERVICE-Houghton Grange - Structural Inspections of r,30/08/2017," 1,386.87 ",L,72101500,Building maintenance and repair services
Communities and Local Government,Homes and Communities Agency,East And Se Cambs Herts And Bu,East And South East,AECOM LIMITED,IT73582-SERVICE-Houghton Grange - Provision of Planning & Tec,30/08/2017," 4,073.61 ",L,72101500,Building maintenance and repair services
Communities and Local Government,Homes and Communities Agency,South West Of Eng-Glouc-Oxford,South West,FROSTS LANDSCAPE CONSTRUCTION LIMITED,"DSW0931-SERVICE-Landscaping works to Lydalls Road, Didcot",01/08/2017, 300.00 ,L,72101500,Building maintenance and repair services
Communities and Local Government,Homes and Communities Agency,Mk Development Control Mk,Midlands,FROSTS LANDSCAPE CONSTRUCTION LIMITED,DAP1505-SERVICE-Upton Additional Weed Control Works across ha,08/08/2017," 1,000.00 ",L,72101500,Building maintenance and repair services
Communities and Local Government,Homes and Communities Agency,Budget 2013 - Midlands Wm,Midlands,FROSTS LANDSCAPE CONSTRUCTION LIMITED,DAP0899-SERVICE-Upton Remaining Land Asset Landscape Works -,09/08/2017," 2,500.00 ",L,72101500,Building maintenance and repair services
Communities and Local Government,Homes and Communities Agency,East And Se Essex And Kent,East And South East,SAVILLS UK LIMITED,IT73817-SERVICE-Terminus Drive,09/08/2017, 600.00 ,L,80131800,Real estate management services
Communities and Local Government,Homes and Communities Agency,Land And Regeneration Mh,Programmes,SAVILLS UK LIMITED,IT73918-SERVICE-Hardkeel Ltd - Former Scouthead Filling Stati,21/08/2017," 1,500.00 ",L,80131800,Real estate management services
Communities and Local Government,Homes and Communities Agency,Economic Assets Hub Transition,Economic Assets Hub,FAIRBRIAR REAL ESTATE DEVELOPMENTS LTD,LTF- Middlewood Locks - Draw Dn - Aug17,30/08/2017," 3,207,462.00 ",,N/A,Loans
Communities and Local Government,Homes and Communities Agency,Economic Assets Hub Transition,Economic Assets Hub,FAIRBRIAR REAL ESTATE DEVELOPMENTS LTD,STF - Middlewood Lock - Draw - Aug17,30/08/2017," 18,967,048.00 ",,N/A,Loans
Communities and Local Government,Homes and Communities Agency,Economic Assets S&Sw Prog,South West,R FOX T/A SOUTHCOAST MAINTENANCE,DAP1608-SERVICE-Daedalus Waterfront - Call off order for vari,21/08/2017, 544.00 ,S,72101500,Building maintenance and repair services
Communities and Local Government,Homes and Communities Agency,Economic Assets S&Sw Prog,South West,R FOX T/A SOUTHCOAST MAINTENANCE,DAP1810-SERVICE-Harts Farm Way - Supply and installation of H,21/08/2017," 4,200.00 ",S,72101500,Building maintenance and repair services
Communities and Local Government,Homes and Communities Agency,Economic Assets S&Sw Prog,South West,R FOX T/A SOUTHCOAST MAINTENANCE,DAP1812-SERVICE-PD Fuels site Tipner - Landscaping to brownfi,21/08/2017," 1,500.00 ",S,72101500,Building maintenance and repair services
Communities and Local Government,Homes and Communities Agency,Economic Assets S&Sw Prog,South West,R FOX T/A SOUTHCOAST MAINTENANCE,DAP1811-SERVICE-Colt International Havant - Call off order fo,22/08/2017," 2,800.00 ",S,72101500,Building maintenance and repair services
Communities and Local Government,Homes and Communities Agency,Public Land and Regeneration,Programmes,R FOX T/A SOUTHCOAST MAINTENANCE,DAM3474-SERVICE-GRAYLINGWELL     Call off order.,30/08/2017, 475.00 ,S,72101500,Building maintenance and repair services
Communities and Local Government,Homes and Communities Agency,Economic Assets S&Sw Prog,South West,R FOX T/A SOUTHCOAST MAINTENANCE,DAP1012-SERVICE-Call off order for Farnborough Police Station,30/08/2017, 590.00 ,S,72101500,Building maintenance and repair services
Communities and Local Government,Homes and Communities Agency,Area Dir Mids Worcs-Shrop-Here,Midlands,FALCON SECURITY,DWM0810-SERVICE-Remote monitoring of CCTV 6 months,04/08/2017," 1,680.00 ",M,92121500,Guard services
Communities and Local Government,Homes and Communities Agency,Area Dir Mids Worcs-Shrop-Here,Midlands,FALCON SECURITY,DWM0810-SERVICE-Remote monitoring of CCTV 6 months,04/08/2017," 1,120.00 ",M,92121500,Guard services
Communities and Local Government,Homes and Communities Agency,Area Dir Mids Worcs-Shrop-Here,Midlands,FALCON SECURITY,DWM0810-SERVICE-Remote monitoring of CCTV 6 months,04/08/2017," 1,120.00 ",M,92121500,Guard services
Communities and Local Government,Homes and Communities Agency,Area Dir Mids Worcs-Shrop-Here,Midlands,FALCON SECURITY,DWM0810-SERVICE-Remote monitoring of CCTV 6 months,04/08/2017," 1,400.00 ",M,92121500,Guard services
Communities and Local Government,Homes and Communities Agency,Area Dir Mids Worcs-Shrop-Here,Midlands,FALCON SECURITY,DWM0810-SERVICE-Remote monitoring of CCTV 6 months,04/08/2017," 1,120.00 ",M,92121500,Guard services
Communities and Local Government,Homes and Communities Agency,Area Dir Mids Worcs-Shrop-Here,Midlands,FALCON SECURITY,DWM0810-SERVICE-Remote monitoring of CCTV 6 months,04/08/2017," 1,400.00 ",M,92121500,Guard services
Communities and Local Government,Homes and Communities Agency,Budget 2013 - Midlands Wm,Midlands,FALCON SECURITY,DWM0811-SERVICE-Monitoring of CCTV March and April 2016,04/08/2017," 1,280.00 ",M,92121500,Guard services
Communities and Local Government,Homes and Communities Agency,Budget 2013 - Midlands Wm,Midlands,FALCON SECURITY,"DWM0811-SERVICE-Internal CCTV install, 6 wireless and 2 stati",04/08/2017," 1,280.00 ",M,92121500,Guard services
Communities and Local Government,Homes and Communities Agency,Budget 2013 - Midlands Wm,Midlands,FALCON SECURITY,DWM0811-SERVICE-Monitoring of CCTV March and April 2016,04/08/2017," 1,600.00 ",M,92121500,Guard services
Communities and Local Government,Homes and Communities Agency,Budget 2013 - Midlands Wm,Midlands,FALCON SECURITY,DWM0811-SERVICE-Monitoring of CCTV March and April 2016,04/08/2017," 1,280.00 ",M,92121500,Guard services
Communities and Local Government,Homes and Communities Agency,Budget 2013 - Midlands Wm,Midlands,FALCON SECURITY,DWM0869-SERVICE-CCTV monitoring main site and bus depot,04/08/2017," 1,600.00 ",M,92121500,Guard services
Communities and Local Government,Homes and Communities Agency,East And South East,East And South East,FALCON SECURITY,DAP1084-SERVICE-Oakington Barracks - To the provision of mann,07/08/2017," 19,056.20 ",M,92121500,Guard services
Communities and Local Government,Homes and Communities Agency,East And Se Cambs Herts And Bu,East And South East,FALCON SECURITY,DAM3490-SERVICE-HOUGHTON GRANGE     To cover for the remainde,07/08/2017," 16,226.11 ",M,92121500,Guard services
Communities and Local Government,Homes and Communities Agency,Spatial Intelligence Telford,Programmes,FALCON SECURITY,DAP1910-SERVICE-Internal CCTV Installation at Sandwell,10/08/2017," 5,000.00 ",M,92121500,Guard services
Communities and Local Government,Homes and Communities Agency,Spatial Intelligence Telford,Programmes,FALCON SECURITY,DAP1910-SERVICE-Internal CCTV Installation at Sandwell,10/08/2017," 1,200.00 ",M,92121500,Guard services
Communities and Local Government,Homes and Communities Agency,Budget 2013 - Midlands Wm,Midlands,FALCON SECURITY,DAP1347-SERVICE-CCTV Security/Monitoring  at Melton Mowbray,10/08/2017," 1,200.00 ",M,92121500,Guard services
Communities and Local Government,Homes and Communities Agency,Budget 2013 - Midlands Wm,Midlands,FALCON SECURITY,DAP1347-SERVICE-CCTV Security/Monitoring  at Melton Mowbray,10/08/2017, 560.00 ,M,92121500,Guard services
Communities and Local Government,Homes and Communities Agency,Budget 2013 - Midlands Wm,Midlands,FIRST NATIONAL SERVICES LTD,"DAP1883-SERVICE-Barnsley Hall - gas testing,  safety checks,",21/08/2017, 641.25 ,S,72102900,Facility maintenance and repair services
Communities and Local Government,Homes and Communities Agency,Estate Management Yorks,North West,FIRST CHOICE CLEANING & MAINTENANCE LTD,DAP1998-SERVICE-Ransome Road Clear Rubbish out of RKS Unit,22/08/2017, 621.64 ,S,72153501,Building exterior cleaning service  
Communities and Local Government,Homes and Communities Agency,Spatial Intelligence Telford,Programmes,FIRST CHOICE CLEANING & MAINTENANCE LTD,DAP1301-SERVICE-Stourbridge Repair Leak/Roofworks,29/08/2017, 740.00 ,S,72153501,Building exterior cleaning service  
Communities and Local Government,Homes and Communities Agency,Spatial Intelligence Telford,Programmes,FIRST CHOICE CLEANING & MAINTENANCE LTD,DAP1692-SERVICE-General Grounds Maintenance at Burton Magistr,29/08/2017, 850.00 ,S,72153501,Building exterior cleaning service  
Communities and Local Government,Homes and Communities Agency,Budget 2013 - Midlands Wm,Midlands,FIRST CHOICE CLEANING & MAINTENANCE LTD,DAP1348-SERVICE-Provide access/change locks/ board windows,29/08/2017, 695.00 ,S,72153501,Building exterior cleaning service  
Communities and Local Government,Homes and Communities Agency,Spatial Intelligence Telford,Programmes,FIRST CHOICE CLEANING & MAINTENANCE LTD,DAP1692-SERVICE-General Building Maintenance at Melton Mowbra,29/08/2017, 850.00 ,S,72153501,Building exterior cleaning service  
Communities and Local Government,Homes and Communities Agency,Spatial Intelligence Telford,Programmes,FIRST CHOICE CLEANING & MAINTENANCE LTD,DAP1692-SERVICE-General Grounds Maintenance at Burton Magistr,29/08/2017," 1,360.00 ",S,72153501,Building exterior cleaning service  
Communities and Local Government,Homes and Communities Agency,Spatial Intelligence Telford,Programmes,FIRST CHOICE CLEANING & MAINTENANCE LTD,DAP1692-SERVICE-General Building Maintenance at Sandwell Magi,29/08/2017, 290.00 ,S,72153501,Building exterior cleaning service  
Communities and Local Government,Homes and Communities Agency,Spatial Intelligence Telford,Programmes,FIRST CHOICE CLEANING & MAINTENANCE LTD,DAP1692-SERVICE-General Grounds Maintenance at Luddington,29/08/2017," 1,380.00 ",S,72153501,Building exterior cleaning service  
Communities and Local Government,Homes and Communities Agency,Spatial Intelligence Telford,Programmes,FIRST CHOICE CLEANING & MAINTENANCE LTD,DAP1692-SERVICE-General Grounds Maintenance at Burton Magistr,29/08/2017," 2,380.00 ",S,72153501,Building exterior cleaning service  
Communities and Local Government,Homes and Communities Agency,Budget 2013 - Midlands Wm,Midlands,FIRST CHOICE CLEANING & MAINTENANCE LTD,DAP1304-SERVICE-Washwood Heath Decontamination of Drainage ar,29/08/2017," 4,030.00 ",S,72153501,Building exterior cleaning service  
Communities and Local Government,Homes and Communities Agency,Budget 2013 - Midlands Wm,Midlands,FIRST CHOICE CLEANING & MAINTENANCE LTD,DWM0840-SERVICE-General grounds maintenance/various works,29/08/2017," 2,400.00 ",S,72153501,Building exterior cleaning service  
Communities and Local Government,Homes and Communities Agency,Economic Assets S&Sw Prog,South West,FRISKA LTD.,DSW0874-SERVICE-BBSP Catering,21/08/2017," 3,178.91 ",S,90101600,Banquet and catering services
Communities and Local Government,Homes and Communities Agency,HCA Investment Credit Risk Man,Programmes,THE FINANCIAL CONDUCT AUTHORITY,DAP2026-SERVICE-FCA Fees,22/08/2017, 438.00 ,L,94101500,Business associations
Communities and Local Government,Homes and Communities Agency,Economic Assets S&Sw Prog,South West,FP MAILING LTD,DSW0885-SERVICE-Franking posting for tenants BBSP,21/08/2017, 800.00 ,S,78102200,Postal and small parcel and courier services
Communities and Local Government,Homes and Communities Agency,Economic Assets Hub Transition,Economic Assets Hub,FAIRGROVE (NOTTINGHAM) LTD,STF-Kimberley Brewery-Aug17,03/08/2017," 154,571.00 ",,N/A,Loans
Communities and Local Government,Homes and Communities Agency,Economic Assets Hub Transition,Economic Assets Hub,FAIRGROVE (NOTTINGHAM) LTD,STF-Kimberley Brewery-Aug17,25/08/2017," 160,204.00 ",,N/A,Loans
Communities and Local Government,Homes and Communities Agency,Economic Assets Hub Transition,Economic Assets Hub,FLOUR DEVELOPMENTS LIMITED,BtR-Flour-Aug17,11/08/2017," 536,917.77 ",,N/A,Loans
Communities and Local Government,Homes and Communities Agency,Estate Management Yorks,North West,F T GEARING L/S LTD,DAP1467-SERVICE-Remove and relocate 3 sign posts to new site,14/08/2017, 300.00 ,M,72101500,Building maintenance and repair services
Communities and Local Government,Homes and Communities Agency,Economic Assets S&Sw Prog,South West,GVA GRIMLEY,IT73853-SERVICE-Wardroom Feasibility Study,04/08/2017," 8,680.00 ",L,80131800,Real estate management services
Communities and Local Government,Homes and Communities Agency,Land And Regeneration National,Programmes,GVA GRIMLEY,IT73794-SERVICE-Consultancy support 2.5 days per week,07/08/2017," 6,630.00 ",L,80131800,Real estate management services
Communities and Local Government,Homes and Communities Agency,Area Dir Mids Worcs-Shrop-Here,Midlands,GVA GRIMLEY,IT68467-SERVICE-Hanford disposal,07/08/2017, 850.00 ,L,80131800,Real estate management services
Communities and Local Government,Homes and Communities Agency,Land And Regeneration Mh,Programmes,GVA GRIMLEY,IT70374-SERVICE-Gentoo - Homelands Phases 3 & 4 Sunderland ,09/08/2017, 850.00 ,L,80131800,Real estate management services
Communities and Local Government,Homes and Communities Agency,East And Se Cambs Herts And Bu,East And South East,GVA GRIMLEY,IT69788-SERVICE-Paston Reserve Landowner Agreement and Liasio,09/08/2017," 2,100.00 ",L,80131800,Real estate management services
Communities and Local Government,Homes and Communities Agency,Affordable National,Programmes,GVA GRIMLEY,IT72417-SERVICE-ATLAS Viability support to large projects,09/08/2017," 7,208.11 ",L,80131800,Real estate management services
Communities and Local Government,Homes and Communities Agency,East And South East,East And South East,GVA GRIMLEY,IT73786-SERVICE-Valuation report on Land at Shepway,11/08/2017," 7,000.00 ",L,80131800,Real estate management services
Communities and Local Government,Homes and Communities Agency,Budget 2013 - Midlands Wm,Midlands,GVA GRIMLEY,IT73807-SERVICE-Managing Agent,14/08/2017," 2,375.00 ",L,80131800,Real estate management services
Communities and Local Government,Homes and Communities Agency,Budget 2013 - Midlands Wm,Midlands,GVA GRIMLEY,IT73805-SERVICE-Managing Agent,14/08/2017," 1,500.00 ",L,80131800,Real estate management services
Communities and Local Government,Homes and Communities Agency,Economic Assets Nw Prog,North West,GVA GRIMLEY,IT73854-SERVICE-Agents Fees for Admirals Road,14/08/2017," 2,552.00 ",L,80131800,Real estate management services
Communities and Local Government,Homes and Communities Agency,Land And Regeneration Mh,Programmes,GVA GRIMLEY,IT73676-SERVICE-16 Unit Residential Scheme at Southfield,15/08/2017," 2,750.00 ",L,80131800,Real estate management services
Communities and Local Government,Homes and Communities Agency,Economic Assets Nw Prog,North West,GVA GRIMLEY,IT73793-SERVICE-Grimsargh Valuation,16/08/2017," 4,750.00 ",L,80131800,Real estate management services
Communities and Local Government,Homes and Communities Agency,Liverpool Cheshire Warrington,North West,GVA GRIMLEY,IT68030-SERVICE-Disposal of Land at Admirals Road,17/08/2017," 7,575.00 ",L,80131800,Real estate management services
Communities and Local Government,Homes and Communities Agency,Economic Assets Nw Prog,North West,GVA GRIMLEY,DAP2015-SERVICE-M032 - adjustment - DO NOT PAY - Consultancy,22/08/2017," 15,000.00 ",L,80131800,Real estate management services
Communities and Local Government,Homes and Communities Agency,Economic Assets Nw Prog,North West,GVA GRIMLEY,DAP2015-SERVICE-M032 - adjustment - DO NOT PAY - EPC reports,22/08/2017," 1,184.00 ",L,80131800,Real estate management services
Communities and Local Government,Homes and Communities Agency,Land And Regeneration Mh,Programmes,GVA GRIMLEY,IT71419-SERVICE-To undertake Project Monitoring Services in l,24/08/2017, 750.00 ,L,80131800,Real estate management services
Communities and Local Government,Homes and Communities Agency,Land And Regeneration Mh,Programmes,GVA GRIMLEY,IT73482-SERVICE-Red book Valuation:29 Moore Road,25/08/2017," 2,000.00 ",L,80131800,Real estate management services
Communities and Local Government,Homes and Communities Agency,Land And Regeneration Mh,Programmes,GVA GRIMLEY,IT70374-SERVICE-Gentoo - Homelands Phases 3 & 4 Sunderland ,25/08/2017, 850.00 ,L,80131800,Real estate management services
Communities and Local Government,Homes and Communities Agency,Land And Regeneration Mh,Programmes,GVA GRIMLEY,IT70368-SERVICE-Benton,25/08/2017, 750.00 ,L,80131800,Real estate management services
Communities and Local Government,Homes and Communities Agency,Land And Regeneration Mh,Programmes,GVA GRIMLEY,IT70372-SERVICE-Cypress Avenue,25/08/2017, 750.00 ,L,80131800,Real estate management services
Communities and Local Government,Homes and Communities Agency,Land And Regeneration Mh,Programmes,GVA GRIMLEY,IT70375-SERVICE-Doxford Park Monitoring Surveyor Instruction,25/08/2017, 850.00 ,L,80131800,Real estate management services
Communities and Local Government,Homes and Communities Agency,Land And Regeneration Mh,Programmes,GVA GRIMLEY,IT70370-SERVICE-Wylam,25/08/2017, 750.00 ,L,80131800,Real estate management services
Communities and Local Government,Homes and Communities Agency,Land And Regeneration Mh,Programmes,GVA GRIMLEY,IT71460-SERVICE-To undertake Project Monitoring Services in l,25/08/2017, 750.00 ,L,80131800,Real estate management services
Communities and Local Government,Homes and Communities Agency,Economic Assets S&Sw Prog,South West,GVA GRIMLEY,IT73392-SERVICE-Coypool,29/08/2017," 6,000.00 ",L,80131800,Real estate management services
Communities and Local Government,Homes and Communities Agency,HCA Investment Invest FRY BDG,Programmes,GVA GRIMLEY,IT73154-SERVICE-Investment in Estate Regeneration,30/08/2017," 32,000.00 ",L,80131800,Real estate management services
Communities and Local Government,Homes and Communities Agency,East And South East,East And South East,GVA GRIMLEY,IT73786-SERVICE-Valuation report on Land at Shepway,31/08/2017," 2,000.00 ",L,80131800,Real estate management services
Communities and Local Government,Homes and Communities Agency,Ne-Y North East Washington,North East And Yorkshire,GREENFINGERS LANDSCAPES LIMITED,DNE0562-SERVICE-Oakesway - please use this line,03/08/2017, 742.53 ,M,72101500,Building maintenance and repair services
Communities and Local Government,Homes and Communities Agency,Ne-Y North East Washington,North East And Yorkshire,GREENFINGERS LANDSCAPES LIMITED,DNE0562-SERVICE-Oakesway - please use this line,08/08/2017, 742.53 ,M,72101500,Building maintenance and repair services
Communities and Local Government,Homes and Communities Agency,Economic Assets Hub Transition,Economic Assets Hub,THE GROUND GROUP LTD,STF-Scrooby Road-Aug17,09/08/2017," 130,814.62 ",,N/A,Loans
Communities and Local Government,Homes and Communities Agency,Economic Assets Hub Transition,Economic Assets Hub,GLASSHOUSES123 LIMITED,STF-Glasshouses Mill-Aug17,25/08/2017," 214,152.00 ",,N/A,Loans
Communities and Local Government,Homes and Communities Agency,It - Rda Transition,Finance & Corporate Services,GCS UK ASSOCIATES LIMITED,"DAP1761-SERVICE-Replacement printer with trade in deal, and s",11/08/2017," 2,900.00 ",S,14111800,Business use papers
Communities and Local Government,Homes and Communities Agency,Economic Assets Hub Transition,Economic Assets Hub,GREGORY ROBINSON DEVELOPMENTS LTD,STF-Eccleshill-Aug17,02/08/2017," 36,588.30 ",,N/A,Loans
Communities and Local Government,Homes and Communities Agency,Economic Assets S&Sw Prog,South West,GLOUCESTERSHIRE COUNTY COUNCIL,NEW GLOUCESTERSHIRE COLLEGE GRANT FUNDING CONTRIBUTION,23/08/2017," 521,652.85 ",G,N/A,Grant
Communities and Local Government,Homes and Communities Agency,Estate Management Yorks,North West,GVA (PMA321),DAM2878-SERVICE-Northshore Boulevard - 50% Vacant Land,25/08/2017," 2,520.00 ",L,80131500,Lease and rental of property or building
Communities and Local Government,Homes and Communities Agency,Estate Management Yorks,North West,GVA (PMA321),DAM2878-SERVICE-Northshore Boulevard - SBC,25/08/2017, 697.00 ,L,80131500,Lease and rental of property or building
Communities and Local Government,Homes and Communities Agency,Economic Assets Ne-Y Prog,North East And Yorkshire,GVA GRIMLEY LIMITED,DAP2102-SERVICE-Void Service charge for Meadowfield for perio,25/08/2017, 404.46 ,L,80131800,Real estate management services
Communities and Local Government,Homes and Communities Agency,Economic Assets Ne-Y Prog,North East And Yorkshire,GVA GRIMLEY LIMITED,DAP2102-SERVICE-Void Service charge for Queens Meadow for per,25/08/2017, 974.85 ,L,80131800,Real estate management services
Communities and Local Government,Homes and Communities Agency,Economic Assets Ne-Y Prog,North East And Yorkshire,GVA GRIMLEY LIMITED,DAP2102-SERVICE-Void Service charge for Newbrun Riversidefor,25/08/2017," 2,281.11 ",L,80131800,Real estate management services
Communities and Local Government,Homes and Communities Agency,Economic Assets S&Sw Prog,South West,GVA,DAP0514-SERVICE-BBSP - HCA service charge for MANCO element t,30/08/2017," 4,252.00 ",L,80131500,Lease and rental of property or building
Communities and Local Government,Homes and Communities Agency,Economic Assets Ne-Y Prog,North East And Yorkshire,GFA GASTECH LTD,DAP1796-SERVICE-Purge and Certificate Network - NE Industrial,24/08/2017," 2,350.00 ",S,72101500,Building maintenance and repair services
Communities and Local Government,Homes and Communities Agency,Economic Assets Ne-Y Prog,North East And Yorkshire,GAZPROM MARKETING & TRADING RETAIL LTD,DAP1418-SERVICE-Gas Supply at Peterlee NE.  Gazprom Account R,24/08/2017, 394.24 ,L,83101600,Oil and gas utilities
Communities and Local Government,Homes and Communities Agency,Public Land and Regeneration,Programmes,GREENFIELDS GARDEN SERVICES LTD,DSW1088-SERVICE-Standish Hospital - annual maintainence under,30/08/2017, 654.69 ,S,72101500,Building maintenance and repair services
Communities and Local Government,Homes and Communities Agency,Economic Assets S&Sw Prog,South West,GET LANDSCAPED,DSW0770-SERVICE-ANNUAL LANDSCAPING MARCH 2016 - 17,04/08/2017, 337.09 ,S,72101500,Building maintenance and repair services
Communities and Local Government,Homes and Communities Agency,Programme Management Mh,Finance & Corporate Services,HAYS ACCOUNTANCY & FINANCE,DGC1380-SERVICE-(Carine) Madusa Nzundu (New Starter covering,22/08/2017," 1,878.76 ",L,80111600,Temporary personnel services
Communities and Local Government,Homes and Communities Agency,Programme Management Mh,Finance & Corporate Services,HAYS ACCOUNTANCY & FINANCE,DGC1380-SERVICE-(Carine) Madusa Nzundu (New Starter covering,29/08/2017," 2,567.51 ",L,80111600,Temporary personnel services
Communities and Local Government,Homes and Communities Agency,Land And Regeneration Mh,Programmes,ARCADIS CONSULTING (UK) LIMITED,IT72529-SERVICE-Brocket Park,10/08/2017," 1,650.00 ",L,811001500,Civil Engineering
Communities and Local Government,Homes and Communities Agency,Land And Regeneration Mh,Programmes,ARCADIS CONSULTING (UK) LIMITED,IT72529-SERVICE-Brocket Park,10/08/2017," 1,650.00 ",L,811001500,Civil Engineering
Communities and Local Government,Homes and Communities Agency,Land And Regeneration Mh,Programmes,ARCADIS CONSULTING (UK) LIMITED,IT72529-SERVICE-Brocket Park,10/08/2017," 1,650.00 ",L,811001500,Civil Engineering
Communities and Local Government,Homes and Communities Agency,Land And Regeneration Mh,Programmes,ARCADIS CONSULTING (UK) LIMITED,IT73092-SERVICE-kitchener MS reports,22/08/2017," 9,800.00 ",L,811001500,Civil Engineering
Communities and Local Government,Homes and Communities Agency,Area Dir Mids Worcs-Shrop-Here,Midlands,ARCADIS CONSULTING (UK) LIMITED,IT72534-SERVICE-Digbeth Can  Corridor Framework,23/08/2017," 19,791.77 ",L,811001500,Civil Engineering
Communities and Local Government,Homes and Communities Agency,South West Of Eng-Glouc-Oxford,South West,ARCADIS CONSULTING (UK) LIMITED,IT72838-SERVICE-Weston Regeneration Programme,31/08/2017," 11,247.00 ",L,811001500,Civil Engineering
Communities and Local Government,Homes and Communities Agency,Economic Assets Hub Transition,Economic Assets Hub,KEEPMOAT HOMES LIMITED,STF-Keepmoat Askern-Aug17,09/08/2017," 453,007.00 ",,N/A,Loans
Communities and Local Government,Homes and Communities Agency,Economic Assets Hub Transition,Economic Assets Hub,KEEPMOAT HOMES LIMITED,STF-Central Park Phase 4-Aug17,09/08/2017," 149,221.00 ",,N/A,Loans
Communities and Local Government,Homes and Communities Agency,Economic Assets Hub Transition,Economic Assets Hub,KEEPMOAT HOMES LIMITED,STF- ASKEM - LN DRAW - AUG17,21/08/2017," 7,178.00 ",,N/A,Loans
Communities and Local Government,Homes and Communities Agency,Economic Assets Hub Transition,Economic Assets Hub,KEEPMOAT HOMES LIMITED,STF - Central Park 4 Draw Down - Sep 17,30/08/2017," 57,129.00 ",,N/A,Loans
Communities and Local Government,Homes and Communities Agency,Economic Assets Hub Transition,Economic Assets Hub,HEYWOOD DEVELOPMENTS (BROCKHOLES) LTD,STF-Mill Moor Road-Aug17,29/08/2017," 238,901.00 ",,N/A,Loans
Communities and Local Government,Homes and Communities Agency,Economic Assets S&Sw Prog,South West,HARTNELL TAYLOR COOK LLP,DAP1512-SERVICE-Pre demolition site review and due diligence,04/08/2017," 1,800.00 ",M,80131800,Real estate management services
Communities and Local Government,Homes and Communities Agency,Facilities Allerton Bywater,Finance & Corporate Services,HAYMARKET MEDIA GROUP,DAP1582-SERVICE-Recruitment - 1* job advert,15/08/2017, 595.00 ,M,55101500,Printed publications
Communities and Local Government,Homes and Communities Agency,Land And Regeneration Mh,Programmes,HOUSING GROWTH PARTNERSHIP LIMITED,HGP-Coln Residential-Aug17,25/08/2017," 910,277.57 ",G,80131500,Lease and rental of property or building
Communities and Local Government,Homes and Communities Agency,Capital Grant to RPs,East And South East,CENTREPOINT,Daily IMS payment,07/08/2017," 35,089.00 ",,N/A,Grant
Communities and Local Government,Homes and Communities Agency,Economic Assets Hub Transition,Economic Assets Hub,HORNCASTLE GROUP PLC,STF-Land off Moor Road-Aug17,09/08/2017," 188,236.00 ",,N/A,Loans
Communities and Local Government,Homes and Communities Agency,Economic Assets Hub Transition,Economic Assets Hub,HODSON DEVELOPMENTS (ASHFORD) LTD.,LTF-Chilmington Green-Aug17,11/08/2017," 523,934.41 ",,N/A,Loans
Communities and Local Government,Homes and Communities Agency,Area Dir Mids Worcs-Shrop-Here,Midlands,HARRABIN CONSTRUCTION,DAP1069-SERVICE-Structural Review and Cost assessment,11/08/2017," 2,000.00 ",S,72101500,Building maintenance and repair services
Communities and Local Government,Homes and Communities Agency,Estate Management Yorks,North West,HULTONS LANDSCAPES,DAM2882-SERVICE-Year 2  (2015 - 2018) Central Lancashire land,02/08/2017," 2,326.68 ",M,72101500,Building maintenance and repair services
Communities and Local Government,Homes and Communities Agency,Estate Management Yorks,North West,HULTONS LANDSCAPES,DAM2882-SERVICE-Year 2  (2015 - 2018) Central Lancashire land,02/08/2017," 2,326.68 ",M,72101500,Building maintenance and repair services
Communities and Local Government,Homes and Communities Agency,Estate Management Yorks,North West,HULTONS LANDSCAPES,DAM2741-SERVICE-RUNCORN     Delivery of Year 2 of Runcorn sit,04/08/2017," 1,392.17 ",M,72101500,Building maintenance and repair services
Communities and Local Government,Homes and Communities Agency,Ad Manchester Trafford,North West,HULTONS LANDSCAPES,DNW0577-SERVICE-East Lancs Paper Mill,04/08/2017," 1,111.02 ",M,72101500,Building maintenance and repair services
Communities and Local Government,Homes and Communities Agency,Liverpool Cheshire Warrington,North West,HULTONS LANDSCAPES,DAP0669-SERVICE-Replace damaged fence adjacent to the paddock,17/08/2017, 855.00 ,M,72101500,Building maintenance and repair services
Communities and Local Government,Homes and Communities Agency,Budget 2013 - Midlands Wm,Midlands,T HODGSON PLANT HIRE,DAP1851-SERVICE-Removal of waste and cleansing following unau,14/08/2017," 3,195.00 ",S,72102900,Facility maintenance and repair services
Communities and Local Government,Homes and Communities Agency,Budget 2013 - Midlands Wm,Midlands,T HODGSON PLANT HIRE,DAP2038-SERVICE-Park Lane Cradley - take down existing brick,22/08/2017, 430.00 ,S,72102900,Facility maintenance and repair services
Communities and Local Government,Homes and Communities Agency,Budget 2013 - Midlands Wm,Midlands,T HODGSON PLANT HIRE,DAP2039-SERVICE-Ridge Hill - Repair existing barrier and remo,22/08/2017, 570.00 ,S,72102900,Facility maintenance and repair services
Communities and Local Government,Homes and Communities Agency,South West Somerset-Dev-Plym-T,South West,HEWITSONS SOLICITORS,IS12293-SERVICE-Trevenson Park South,01/08/2017," 1,000.00 ",S,80121600,Business law services
Communities and Local Government,Homes and Communities Agency,Ne-Yh Sheffield And Humb Ne-Y,North East And Yorkshire,HEWITSONS SOLICITORS,IS12679-SERVICE-Askern,02/08/2017, 320.00 ,S,80121600,Business law services
Communities and Local Government,Homes and Communities Agency,South West,South West,HEWITSONS SOLICITORS,IS06851-SERVICE-Former CompAir Holman site,02/08/2017, 280.00 ,S,80121600,Business law services
Communities and Local Government,Homes and Communities Agency,Mk Development Control Mk,Midlands,HEWITSONS SOLICITORS,IS10983-SERVICE-Campbell Park - Phase 1 Residential - Disburs,02/08/2017," 1,120.00 ",S,80121600,Business law services
Communities and Local Government,Homes and Communities Agency,Ne-Yh Sheffield And Humb Ne-Y,North East And Yorkshire,HEWITSONS SOLICITORS,IS09885-SERVICE-Carr Lodge Phase 1A,02/08/2017, 800.00 ,S,80121600,Business law services
Communities and Local Government,Homes and Communities Agency,East And South East,East And South East,HEWITSONS SOLICITORS,IS11508-SERVICE-Sector 13,02/08/2017, 640.00 ,S,80121600,Business law services
Communities and Local Government,Homes and Communities Agency,Area Dir Cumbria Lancs Skelmer,North West,HEWITSONS SOLICITORS,IS12399-SERVICE-Cottam Hall,02/08/2017, 320.00 ,S,80121600,Business law services
Communities and Local Government,Homes and Communities Agency,Economic Assets Ne-Y Prog,North East And Yorkshire,HEWITSONS SOLICITORS,IS11945-SERVICE-Brookvale Phase 1,03/08/2017, 400.00 ,S,80121600,Business law services
Communities and Local Government,Homes and Communities Agency,Area Dir Mids South East Midla,Midlands,HEWITSONS SOLICITORS,IS10733-SERVICE-Site D1 Phase 1 Upton,03/08/2017, 412.00 ,S,80121600,Business law services
Communities and Local Government,Homes and Communities Agency,South West Of Eng-Glouc-Oxford,South West,HEWITSONS SOLICITORS,IS10000-SERVICE-DISPOSAL FEES - GLOUCESTER COLLEGE,04/08/2017, 880.00 ,S,80121600,Business law services
Communities and Local Government,Homes and Communities Agency,Ne-Y North East Washington,North East And Yorkshire,HEWITSONS SOLICITORS,IS12403-SERVICE-St Georges Hospital Morpeth - phase 1,04/08/2017, 480.00 ,S,80121600,Business law services
Communities and Local Government,Homes and Communities Agency,East And Se Cambs Herts And Bu,East And South East,HEWITSONS SOLICITORS,IS11793-SERVICE-Spencers Park Phase 1,04/08/2017, 320.00 ,S,80121600,Business law services
Communities and Local Government,Homes and Communities Agency,Area Dir Mids Notts-Derby-Linc,Midlands,HEWITSONS SOLICITORS,COTGRAVE COLLIERY,07/08/2017," 1,120.00 ",S,80121600,Business law services
Communities and Local Government,Homes and Communities Agency,South West Hants-Iow-Dorset-Bu,South West,HEWITSONS SOLICITORS,IS12534-SERVICE-Quebec Barracks,07/08/2017, 320.00 ,S,80121600,Business law services
Communities and Local Government,Homes and Communities Agency,East And Se Essex And Kent,East And South East,HEWITSONS SOLICITORS,IS07965-SERVICE-Severalls Hospital,07/08/2017, 350.00 ,S,80121600,Business law services
Communities and Local Government,Homes and Communities Agency,East And Se Essex And Kent,East And South East,HEWITSONS SOLICITORS,IS06025-SERVICE-Leybourne Grange,09/08/2017, 350.00 ,S,80121600,Business law services
Communities and Local Government,Homes and Communities Agency,East And Se Essex And Kent,East And South East,HEWITSONS SOLICITORS,IS10990-SERVICE-Fryerns and Craylands,11/08/2017," 2,412.00 ",S,80121600,Business law services
Communities and Local Government,Homes and Communities Agency,Land And Regeneration Mh,Programmes,HEWITSONS SOLICITORS,IS12410-SERVICE-McIver Homes Ltd - Tynemouth Road,14/08/2017, 513.08 ,S,80121600,Business law services
Communities and Local Government,Homes and Communities Agency,Ad West Mids West Birmingham,Midlands,HEWITSONS SOLICITORS,IS06346-SERVICE-amended code as should be coded to the projec,23/08/2017, 560.00 ,S,80121600,Business law services
Communities and Local Government,Homes and Communities Agency,East And South East,East And South East,HEWITSONS SOLICITORS,IS12937-SERVICE-Terminus Drive,29/08/2017, 540.00 ,S,80121600,Business law services
Communities and Local Government,Homes and Communities Agency,East And Se Essex And Kent,East And South East,HEWITSONS SOLICITORS,IS08875-SERVICE-Runwell Hospital,29/08/2017, 850.00 ,S,80121600,Business law services
Communities and Local Government,Homes and Communities Agency,South West Of Eng-Glouc-Oxford,South West,HEWITSONS SOLICITORS,IS10350-SERVICE-Locking Parklands - Phases 2-3,31/08/2017, 320.00 ,S,80121600,Business law services
Communities and Local Government,Homes and Communities Agency,Budget 2013 - Midlands Wm,Midlands,HEWITSONS SOLICITORS,IS12897-SERVICE-Parcel 1,31/08/2017," 1,250.00 ",S,80121600,Business law services
Communities and Local Government,Homes and Communities Agency,East And South East,East And South East,GL HEARN LIMITED,IT70257-SERVICE-Disposal of J7,04/08/2017, 900.00 ,S,80131800,Real estate management services
Communities and Local Government,Homes and Communities Agency,Comms Transition Budget,Finance & Corporate Services,HIGHWAYS ENGLAND COMPANY LTD,DAP2023-SERVICE-Service charge cost recoveries,23/08/2017," 1,899.53 ",G,80131500,Lease and rental of property or building
Communities and Local Government,Homes and Communities Agency,Comms Transition Budget,Finance & Corporate Services,INDUSTRIAL LANDSCAPES LIMITED,DAP0098-SERVICE-Landsacping Services to HCA SGH Gateshead,02/08/2017, 293.85 ,S,72101500,Building maintenance and repair services
Communities and Local Government,Homes and Communities Agency,Comms Transition Budget,Finance & Corporate Services,INDEPTH MANAGED SERVICES,DAP0107-SERVICE-BIS/SFA ELEMENT,14/08/2017," 1,120.98 ",L,76111500,General building and office cleaining and maintenance services
Communities and Local Government,Homes and Communities Agency,Comms Transition Budget,Finance & Corporate Services,INDEPTH MANAGED SERVICES,"DAP0107-SERVICE-DAILY OFFICE CLEANING, HCA G'HEAD HCA ELEMENT",14/08/2017," 2,719.31 ",L,76111500,General building and office cleaining and maintenance services
Communities and Local Government,Homes and Communities Agency,Comms Transition Budget,Finance & Corporate Services,INDEPTH MANAGED SERVICES,DAP0112-SERVICE-Tenants %,25/08/2017," 1,244.30 ",L,76111500,General building and office cleaining and maintenance services
Communities and Local Government,Homes and Communities Agency,Comms Transition Budget,Finance & Corporate Services,INDEPTH MANAGED SERVICES,DAP0112-SERVICE-Call off order for cleaning Gateshead office,25/08/2017," 2,697.11 ",L,76111500,General building and office cleaining and maintenance services
Communities and Local Government,Homes and Communities Agency,Comms Transition Budget,Finance & Corporate Services,INDEPTH MANAGED SERVICES,DAP2116-SERVICE-BIS/SFA element,29/08/2017," 1,120.98 ",L,76111500,General building and office cleaining and maintenance services
Communities and Local Government,Homes and Communities Agency,Comms Transition Budget,Finance & Corporate Services,INDEPTH MANAGED SERVICES,DAP2116-SERVICE-Daily office cleaning to HCA,29/08/2017," 2,719.31 ",L,76111500,General building and office cleaining and maintenance services
Communities and Local Government,Homes and Communities Agency,It - Rda Transition,Finance & Corporate Services,INCHCAPE FLEET SOLUTIONS LIMITED,DGC1495-SERVICE-NL62NJE 6 MONTHS INFORMAL SERVICE COSTS,02/08/2017, 266.21 ,L,25101500,Passenger motor vehicles
Communities and Local Government,Homes and Communities Agency,Economic Assets Ne-Y Prog,North East And Yorkshire,INCHCAPE FLEET SOLUTIONS LIMITED,DGC1493-SERVICE-PY62ASZ 6 MONTHS INFORMAL SERVICE COSTS,02/08/2017, 290.75 ,L,25101500,Passenger motor vehicles
Communities and Local Government,Homes and Communities Agency,Ne-Yh Sheffield And Humb Ne-Y,North East And Yorkshire,INCHCAPE FLEET SOLUTIONS LIMITED,DGC1228-SERVICE-PY62AWJ 6 MONTHS INFORMAL SERVICE COSTS,02/08/2017, 266.09 ,L,25101500,Passenger motor vehicles
Communities and Local Government,Homes and Communities Agency,Liverpool Cheshire Warrington,North West,INCHCAPE FLEET SOLUTIONS LIMITED,DGC1179-SERVICE-YK62HYM 6 MONTHS INFORMAL SERVICE COST,02/08/2017, 257.95 ,L,25101500,Passenger motor vehicles
Communities and Local Government,Homes and Communities Agency,It - Rda Transition,Finance & Corporate Services,INCHCAPE FLEET SOLUTIONS LIMITED,DGC1668-SERVICE-NL62NJE TERMINATION DAMAGE RECHARGE,17/08/2017, 800.02 ,L,25101500,Passenger motor vehicles
Communities and Local Government,Homes and Communities Agency,Director South West Exeter,South West,INCHCAPE FLEET SOLUTIONS LIMITED,DGC1667-SERVICE-YE12UWV TERMINATION DAMAGE RECHARGE,17/08/2017, 775.00 ,L,25101500,Passenger motor vehicles
Communities and Local Government,Homes and Communities Agency,Company Secretary Mh,Finance & Corporate Services,INCHCAPE FLEET SOLUTIONS LIMITED,DGC1549-SERVICE-INFORMAL EXT SERVICE COSTS,18/08/2017, 314.86 ,L,25101500,Passenger motor vehicles
Communities and Local Government,Homes and Communities Agency,Economic Assets Ne-Y Prog,North East And Yorkshire,INDIGO PLANNING LTD,"DAP0446-SERVICE-Goole36, Tom Pudding Way - Planning input for",17/08/2017," 1,900.00 ",S,80131800,Real estate management services
Communities and Local Government,Homes and Communities Agency,Economic Assets Nw Prog,North West,RM DEVELOPMENTS (MANCHESTER) LTD,Offset- Service chg arrears payment,07/08/2017," 3,491.59 ",M,80131500,Lease and rental of property or building
Communities and Local Government,Homes and Communities Agency,Budget 2013 - Midlands Wm,Midlands,JONES LANG LASALLE,IT73874-SERVICE-Parkside - Review of landownerships,02/08/2017," 1,750.00 ",L,80131800,Real estate management services
Communities and Local Government,Homes and Communities Agency,Budget 2013 - Midlands Wm,Midlands,JONES LANG LASALLE,IT73874-SERVICE-Parkside - Review of landownerships,02/08/2017," 1,750.00 ",L,80131800,Real estate management services
Communities and Local Government,Homes and Communities Agency,Economic Assets S&Sw Prog,South West,JONES LANG LASALLE,IT65603-SERVICE-Marketing Costs: Land at Tolvaddon,03/08/2017," 6,440.00 ",L,80131800,Real estate management services
Communities and Local Government,Homes and Communities Agency,Land And Regeneration Mh,Programmes,JONES LANG LASALLE,IT73558-SERVICE-Monitoring Services - Initial Report and On-G,04/08/2017," 1,850.00 ",L,80131800,Real estate management services
Communities and Local Government,Homes and Communities Agency,Land And Regeneration Mh,Programmes,JONES LANG LASALLE,IT73463-SERVICE-Driffield Initial Valuation,08/08/2017," 8,950.00 ",L,80131800,Real estate management services
Communities and Local Government,Homes and Communities Agency,South West Hants-Iow-Dorset-Bu,South West,JONES LANG LASALLE,IT73885-SERVICE-Valuation Plot 4 for sale - Rebecca Newton,14/08/2017," 1,500.00 ",L,80131800,Real estate management services
Communities and Local Government,Homes and Communities Agency,Land And Regeneration Mh,Programmes,JONES LANG LASALLE,IT73725-SERVICE-STF Melford Construction - Guinea Hall Lane,21/08/2017," 5,000.00 ",L,80131800,Real estate management services
Communities and Local Government,Homes and Communities Agency,Land And Regeneration Mh,Programmes,JONES LANG LASALLE,IT73568-SERVICE-Lorton Park ,22/08/2017," 3,750.00 ",L,80131800,Real estate management services
Communities and Local Government,Homes and Communities Agency,Land And Regeneration Mh,Programmes,JONES LANG LASALLE,IT73892-SERVICE-29419 Primoris Valuation,30/08/2017," 2,950.00 ",L,80131800,Real estate management services
Communities and Local Government,Homes and Communities Agency,Economic Assets S&Sw Prog,South West,JDL CONSULTANTS LIMITED,DAP1827-SERVICE-BBSP - engineering works for mezzanine,03/08/2017, 875.00 ,S,72101500,Building maintenance and repair services
Communities and Local Government,Homes and Communities Agency,Comms Transition Budget,Finance & Corporate Services,JOHNSONS MOVING SERVICES LIMITED,DAP2064-SERVICE-Insurance,23/08/2017, 333.13 ,S,72102900,Facility maintenance and repair services
Communities and Local Government,Homes and Communities Agency,Comms Transition Budget,Finance & Corporate Services,JOHNSONS MOVING SERVICES LIMITED,"DAP2064-SERVICE-Collect and transport 15 x desks, 15 x operat",23/08/2017," 2,665.00 ",S,72102900,Facility maintenance and repair services
Communities and Local Government,Homes and Communities Agency,Comms Transition Budget,Finance & Corporate Services,JOHNSONS MOVING SERVICES LIMITED,"DAP1885-SERVICE-Collect 54 x 24 inch monitors, 54 x docking s",23/08/2017, 940.00 ,S,72102900,Facility maintenance and repair services
Communities and Local Government,Homes and Communities Agency,Economic Assets Hub Transition,Economic Assets Hub,KERSEYS SOLICITORS LLP,"19E VIRGINA DRIVE, PAYMENT MADE IN ERROR",02/08/2017," 157,339.00 ",,N/A,Repayment
Communities and Local Government,Homes and Communities Agency,Economic Assets S&Sw Prog,South West,KERNOW TREE SURGERY,DAP0603-SERVICE-Annual Landscaping Works - Apr 17 - Mar 18,21/08/2017, 470.83 ,S,72101500,Building maintenance and repair services
Communities and Local Government,Homes and Communities Agency,Economic Assets S&Sw Prog,South West,KERNOW TREE SURGERY,DAP0996-SERVICE-Maynes site - annual landscaping works to inc,21/08/2017, 401.28 ,S,72101500,Building maintenance and repair services
Communities and Local Government,Homes and Communities Agency,South West Of Eng-Glouc-Oxford,South West,KEYSTONE ENVIRONMENTAL LIMITED,DSW0389-SERVICE-Cinderford Northern Quarter: newt trapping &,16/08/2017," 28,866.90 ",S,72101500,Building maintenance and repair services
Communities and Local Government,Homes and Communities Agency,Comms Transition Budget,Finance & Corporate Services,CHUBB FIRE LIMITED,DAP2032-SERVICE-Tenant proportion  NHS,24/08/2017, 584.81 ,L,72102900,Facility maintenance and repair services
Communities and Local Government,Homes and Communities Agency,Comms Transition Budget,Finance & Corporate Services,CHUBB FIRE LIMITED,DAP2032-SERVICE-Annual service contract to CCTV at HCA Warrin,24/08/2017," 1,418.66 ",L,72102900,Facility maintenance and repair services
Communities and Local Government,Homes and Communities Agency,Economic Assets Hub Transition,Economic Assets Hub,KNIGHT DRAGON INVESTMENTS LIMITED (N0206),LTF-Greenwich Peninsula N0206-Aug17,25/08/2017," 535,182.00 ",,N/A,Loans
Communities and Local Government,Homes and Communities Agency,Spatial Intelligence Telford,Programmes,KETTERING BOROUGH COUNCIL,DAP1902-SERVICE-Council demand for 2017/18 Empty Business Rat,08/08/2017," 21,131.18 ",G,80131500,Lease and rental of property or building
Communities and Local Government,Homes and Communities Agency,Economic Assets Ne-Y Prog,North East And Yorkshire,LAMBERT SMITH HAMPTON,IT70718-SERVICE-Facilities Mnagement for 2016 to 2017,01/08/2017, 375.00 ,L,80131800,Real estate management services
Communities and Local Government,Homes and Communities Agency,Economic Assets S&Sw Prog,South West,LAMBERT SMITH HAMPTON,IT73699-SERVICE-Franking valuation Development plot Volunteer,03/08/2017," 1,000.00 ",L,80131800,Real estate management services
Communities and Local Government,Homes and Communities Agency,Land And Regeneration Mh,Programmes,LAMBERT SMITH HAMPTON,IT70706-SERVICE-Red Book Valuation for land at West Rainton,03/08/2017," 3,000.00 ",L,80131800,Real estate management services
Communities and Local Government,Homes and Communities Agency,Land And Regeneration Mh,Programmes,LAMBERT SMITH HAMPTON,IT73736-SERVICE-HCA - Bagnall Heights,03/08/2017," 2,250.00 ",L,80131800,Real estate management services
Communities and Local Government,Homes and Communities Agency,Budget 2013 - Midlands Wm,Midlands,LAMBERT SMITH HAMPTON,IT73636-SERVICE-Walsall Waterfront - Station Street ,17/08/2017," 4,616.50 ",L,80131800,Real estate management services
Communities and Local Government,Homes and Communities Agency,Ad Manchester Trafford,North West,LAMBERT SMITH HAMPTON,IT72188-SERVICE-Starter Homes- former EPIC sites,18/08/2017," 1,500.00 ",L,80131800,Real estate management services
Communities and Local Government,Homes and Communities Agency,Ad Manchester Trafford,North West,LAMBERT SMITH HAMPTON,IT72190-SERVICE-Starter Homes site- former caravan sales site,18/08/2017," 2,000.00 ",L,80131800,Real estate management services
Communities and Local Government,Homes and Communities Agency,Land And Regeneration Mh,Programmes,LAMBERT SMITH HAMPTON,IT73081-SERVICE-Stokesley MS Initial Report and Monthly MS Re,21/08/2017," 2,750.00 ",L,80131800,Real estate management services
Communities and Local Government,Homes and Communities Agency,Budget 2013 - Midlands Wm,Midlands,LAMBERT SMITH HAMPTON,IT73650-SERVICE-Pt Plot 6,21/08/2017," 1,750.00 ",L,80131800,Real estate management services
Communities and Local Government,Homes and Communities Agency,Budget 2013 - Midlands Wm,Midlands,LAMBERT SMITH HAMPTON,IT69900-SERVICE-Sainsbury's (Stantonbury) Restrictive Covenan,23/08/2017," 1,750.00 ",L,80131800,Real estate management services
Communities and Local Government,Homes and Communities Agency,Budget 2013 - Midlands Wm,Midlands,LAMBERT SMITH HAMPTON,IT69946-SERVICE-Co-operative Development Services - restricti,23/08/2017, 750.00 ,L,80131800,Real estate management services
Communities and Local Government,Homes and Communities Agency,Budget 2013 - Midlands Wm,Midlands,LAMBERT SMITH HAMPTON,IT73921-SERVICE-Sherwood Energy Village,24/08/2017, 411.88 ,L,80131800,Real estate management services
Communities and Local Government,Homes and Communities Agency,Economic Assets S&Sw Prog,South West,LAMBERT SMITH HAMPTON,IT73801-SERVICE-LSH commissioned to complete an update letter,29/08/2017," 1,250.00 ",L,80131800,Real estate management services
Communities and Local Government,Homes and Communities Agency,Area Dir Mids South East Midla,Midlands,LAMBERT SMITH HAMPTON,IT71628-SERVICE-Tattenhoe Park 3&4 advice on Phasing and Viab,30/08/2017," 4,290.00 ",L,80131800,Real estate management services
Communities and Local Government,Homes and Communities Agency,Land And Regeneration Mh,Programmes,LAMBERT SMITH HAMPTON,IT73726-SERVICE-Oxford Advanced Living Limited,31/08/2017," 3,450.00 ",L,80131800,Real estate management services
Communities and Local Government,Homes and Communities Agency,Mk Development Control Mk,Midlands,LAMBERT SMITH HAMPTON,IT73535-SERVICE-Theatre District / Hotel development,31/08/2017," 1,100.00 ",L,80131800,Real estate management services
Communities and Local Government,Homes and Communities Agency,Land And Regeneration Mh,Programmes,LAMBERT SMITH HAMPTON,IT71410-SERVICE-Project monitoring of Cannock Mill,31/08/2017," 1,100.00 ",L,80131800,Real estate management services
Communities and Local Government,Homes and Communities Agency,Capital Grant to RPs,East And South East,ORWELL HOUSING ASSOCIATION LIMITED,Daily IMS payment,04/08/2017," 22,500.00 ",,N/A,Grant
Communities and Local Government,Homes and Communities Agency,Capital Grant to RPs,East And South East,ORWELL HOUSING ASSOCIATION LIMITED,Daily IMS payment,23/08/2017," 19,776.00 ",,N/A,Grant
Communities and Local Government,Homes and Communities Agency,Capital Grant to RPs,East And South East,ORWELL HOUSING ASSOCIATION LIMITED,Daily IMS payment,23/08/2017," 13,184.00 ",,N/A,Grant
Communities and Local Government,Homes and Communities Agency,Capital Grant to RPs,East And South East,ORWELL HOUSING ASSOCIATION LIMITED,Daily IMS payment,30/08/2017," 6,237.00 ",,N/A,Grant
Communities and Local Government,Homes and Communities Agency,Capital Grant to RPs,North East And Yorkshire,THE RIVERSIDE GROUP,Daily IMS payment,02/08/2017," 24,550.00 ",,N/A,Grant
Communities and Local Government,Homes and Communities Agency,Capital Grant to RPs,North East And Yorkshire,THE RIVERSIDE GROUP,Daily IMS payment,02/08/2017," 24,540.00 ",,N/A,Grant
Communities and Local Government,Homes and Communities Agency,Capital Grant to RPs,North East And Yorkshire,THE RIVERSIDE GROUP,Daily IMS payment,03/08/2017," 9,000.00 ",,N/A,Grant
Communities and Local Government,Homes and Communities Agency,Capital Grant to RPs,North East And Yorkshire,THE RIVERSIDE GROUP,Daily IMS payment,03/08/2017," 9,000.00 ",,N/A,Grant
Communities and Local Government,Homes and Communities Agency,Capital Grant to RPs,North East And Yorkshire,THE RIVERSIDE GROUP,Daily IMS payment,09/08/2017," 9,000.00 ",,N/A,Grant
Communities and Local Government,Homes and Communities Agency,Capital Grant to RPs,North East And Yorkshire,THE RIVERSIDE GROUP,Daily IMS payment,10/08/2017," 40,500.00 ",,N/A,Grant
Communities and Local Government,Homes and Communities Agency,Capital Grant to RPs,North East And Yorkshire,THE RIVERSIDE GROUP,Daily IMS payment,14/08/2017," 48,000.00 ",,N/A,Grant
Communities and Local Government,Homes and Communities Agency,Capital Grant to RPs,North East And Yorkshire,THE RIVERSIDE GROUP,Daily IMS payment,17/08/2017," 147,000.00 ",,N/A,Grant
Communities and Local Government,Homes and Communities Agency,Capital Grant to RPs,London,IRWELL VALLEY HOUSING ASSOCIATION LTD,Daily IMS payment,24/08/2017," 9,000.00 ",,N/A,Grant
Communities and Local Government,Homes and Communities Agency,Capital Grant to RPs,London,IRWELL VALLEY HOUSING ASSOCIATION LTD,Daily IMS payment,24/08/2017," 9,000.00 ",,N/A,Grant
Communities and Local Government,Homes and Communities Agency,Capital Grant to RPs,London,IRWELL VALLEY HOUSING ASSOCIATION LTD,Daily IMS payment,24/08/2017," 9,000.00 ",,N/A,Grant
Communities and Local Government,Homes and Communities Agency,Land And Regeneration National,Programmes,LOCKTON COMPANIES LLP,DAP2120-SERVICE-Asset Protection Insurance Premium,31/08/2017," 62,720.00 ",M,84131500,Insurance services for strcutures and property and possessions
Communities and Local Government,Homes and Communities Agency,Economic Assets S&Sw Prog,South West,LOCKTON COMPANIES LLP,DAP2115-SERVICE-Contractors All Risks & Liability,31/08/2017, 550.00 ,M,84131500,Insurance services for strcutures and property and possessions
Communities and Local Government,Homes and Communities Agency,Capital Grant to RPs,South West,STONEWATER (2) LTD,Daily IMS payment,23/08/2017," 32,586.00 ",,N/A,Grant
Communities and Local Government,Homes and Communities Agency,Capital Grant to RPs,South West,STONEWATER (2) LTD,Daily IMS payment,23/08/2017," 155,000.00 ",,N/A,Grant
Communities and Local Government,Homes and Communities Agency,Programme Management Mh,Finance & Corporate Services,LOCKTON COMPANIES LLP,DGC1037-SERVICE-ANNUAL BROKERAGE SERVICES FEE,03/08/2017," 20,000.00 ",L,84131500,Insurance services for strcutures and property and possessions
Communities and Local Government,Homes and Communities Agency,Capital Grant to RPs,Programmes,SANCTUARY HOUSING ASSOCIATION,Daily IMS payment,10/08/2017," 434,676.00 ",,N/A,Grant
Communities and Local Government,Homes and Communities Agency,Capital Grant to RPs,Programmes,SANCTUARY HOUSING ASSOCIATION,Daily IMS payment,24/08/2017," 196,500.00 ",,N/A,Grant
Communities and Local Government,Homes and Communities Agency,Capital Grant to RPs,South West,KNIGHTSTONE HOUSING ASSOCIATION LIMITED,Daily IMS payment,23/08/2017," 10,000.00 ",,N/A,Grant
Communities and Local Government,Homes and Communities Agency,Help to Buy Additions,North West,HAREWOOD HOUSING SOCIETY LIMITED,Daily IMS payment,07/08/2017," 36,599.00 ",,N/A,Grant
Communities and Local Government,Homes and Communities Agency,Help to Buy Additions,North West,HAREWOOD HOUSING SOCIETY LIMITED,Daily IMS payment,21/08/2017," 28,999.00 ",,N/A,Grant
Communities and Local Government,Homes and Communities Agency,Help to Buy Additions,North West,HAREWOOD HOUSING SOCIETY LIMITED,Daily IMS payment,21/08/2017," 28,999.00 ",,N/A,Grant
Communities and Local Government,Homes and Communities Agency,Economic Assets Nw Prog,North West,LANCASHIRE COUNTY COUNCIL,CITY DEAL GRANT - COTTAM HALL SITE K,25/08/2017," 29,702.12 ",G,N/A,Grant
Communities and Local Government,Homes and Communities Agency,Economic Assets Nw Prog,North West,LANCASHIRE COUNTY COUNCIL,CITY DEAL GRANT - EASTWAY PAYMENT,25/08/2017," 2,228,000.00 ",G,N/A,Grant
Communities and Local Government,Homes and Communities Agency,Area Dir Mids South East Midla,Midlands,THOMAS LISTER LTD,IT72855-SERVICE-Britannia Works,03/08/2017, 425.00 ,S,80131800,Real estate management services
Communities and Local Government,Homes and Communities Agency,Area Dir Mids Worcs-Shrop-Here,Midlands,THOMAS LISTER LTD,IT72665-SERVICE-Stanton Iron Works - Data Room  Review,07/08/2017, 750.00 ,S,80131800,Real estate management services
Communities and Local Government,Homes and Communities Agency,Area Dir Mids Worcs-Shrop-Here,Midlands,THOMAS LISTER LTD,IT72665-SERVICE-Stanton Iron Works - Data Room  Review,07/08/2017," 5,590.00 ",S,80131800,Real estate management services
Communities and Local Government,Homes and Communities Agency,Budget 2013 - Midlands Wm,Midlands,THOMAS LISTER LTD,IT73818-SERVICE-Ansty Park Phase 2,08/08/2017," 3,600.00 ",S,80131800,Real estate management services
Communities and Local Government,Homes and Communities Agency,Area Dir Mids Notts-Derby-Linc,Midlands,THOMAS LISTER LTD,IT72788-SERVICE-Sherwood Colliery,11/08/2017," 3,883.31 ",S,80131800,Real estate management services
Communities and Local Government,Homes and Communities Agency,Land And Regeneration National,Programmes,THOMAS LISTER LTD,IT73795-SERVICE-Consultancy support - 3 days per week,17/08/2017," 5,562.00 ",S,80131800,Real estate management services
Communities and Local Government,Homes and Communities Agency,Area Dir Mids Worcs-Shrop-Here,Midlands,THOMAS LISTER LTD,IT72644-SERVICE-The Shearer Street site in Stoke(ST1 4LY)tota,25/08/2017," 1,000.00 ",S,80131800,Real estate management services
Communities and Local Government,Homes and Communities Agency,Capital Grant to RPs,East And South East,PLACES FOR PEOPLE HOMES LIMITED,Daily IMS payment,10/08/2017," 80,000.00 ",,N/A,Grant
Communities and Local Government,Homes and Communities Agency,Help to Buy Additions,South West,SWAYTHLING HOUSING SOCIETY LIMITED,Daily IMS payment,02/08/2017, 361.00 ,,N/A,Grant
Communities and Local Government,Homes and Communities Agency,Help to Buy Additions,South West,SWAYTHLING HOUSING SOCIETY LIMITED,Daily IMS payment,02/08/2017, 361.00 ,,N/A,Grant
Communities and Local Government,Homes and Communities Agency,Help to Buy Additions,South West,SWAYTHLING HOUSING SOCIETY LIMITED,Daily IMS payment,02/08/2017, 361.00 ,,N/A,Grant
Communities and Local Government,Homes and Communities Agency,Help to Buy Additions,South West,SWAYTHLING HOUSING SOCIETY LIMITED,Daily IMS payment,02/08/2017, 361.00 ,,N/A,Grant
Communities and Local Government,Homes and Communities Agency,Help to Buy Additions,South West,SWAYTHLING HOUSING SOCIETY LIMITED,Daily IMS payment,02/08/2017, 361.00 ,,N/A,Grant
Communities and Local Government,Homes and Communities Agency,Help to Buy Additions,South West,SWAYTHLING HOUSING SOCIETY LIMITED,Daily IMS payment,02/08/2017, 361.00 ,,N/A,Grant
Communities and Local Government,Homes and Communities Agency,Help to Buy Additions,South West,SWAYTHLING HOUSING SOCIETY LIMITED,Daily IMS payment,02/08/2017, 361.00 ,,N/A,Grant
Communities and Local Government,Homes and Communities Agency,Help to Buy Additions,South West,SWAYTHLING HOUSING SOCIETY LIMITED,Daily IMS payment,02/08/2017, 361.00 ,,N/A,Grant
Communities and Local Government,Homes and Communities Agency,Help to Buy Additions,South West,SWAYTHLING HOUSING SOCIETY LIMITED,Daily IMS payment,02/08/2017, 361.00 ,,N/A,Grant
Communities and Local Government,Homes and Communities Agency,Help to Buy Additions,South West,SWAYTHLING HOUSING SOCIETY LIMITED,Daily IMS payment,02/08/2017, 361.00 ,,N/A,Grant
Communities and Local Government,Homes and Communities Agency,Help to Buy Additions,South West,SWAYTHLING HOUSING SOCIETY LIMITED,Daily IMS payment,02/08/2017, 361.00 ,,N/A,Grant
Communities and Local Government,Homes and Communities Agency,Help to Buy Additions,South West,SWAYTHLING HOUSING SOCIETY LIMITED,Daily IMS payment,02/08/2017, 361.00 ,,N/A,Grant
Communities and Local Government,Homes and Communities Agency,Help to Buy Additions,South West,SWAYTHLING HOUSING SOCIETY LIMITED,Daily IMS payment,02/08/2017, 361.00 ,,N/A,Grant
Communities and Local Government,Homes and Communities Agency,Help to Buy Additions,South West,SWAYTHLING HOUSING SOCIETY LIMITED,Daily IMS payment,02/08/2017, 361.00 ,,N/A,Grant
Communities and Local Government,Homes and Communities Agency,Help to Buy Additions,South West,SWAYTHLING HOUSING SOCIETY LIMITED,Daily IMS payment,02/08/2017, 361.00 ,,N/A,Grant
Communities and Local Government,Homes and Communities Agency,Help to Buy Additions,South West,SWAYTHLING HOUSING SOCIETY LIMITED,Daily IMS payment,02/08/2017, 361.00 ,,N/A,Grant
Communities and Local Government,Homes and Communities Agency,Help to Buy Additions,South West,SWAYTHLING HOUSING SOCIETY LIMITED,Daily IMS payment,02/08/2017, 361.00 ,,N/A,Grant
Communities and Local Government,Homes and Communities Agency,Help to Buy Additions,South West,SWAYTHLING HOUSING SOCIETY LIMITED,Daily IMS payment,02/08/2017, 361.00 ,,N/A,Grant
Communities and Local Government,Homes and Communities Agency,Help to Buy Additions,South West,SWAYTHLING HOUSING SOCIETY LIMITED,Daily IMS payment,02/08/2017, 361.00 ,,N/A,Grant
Communities and Local Government,Homes and Communities Agency,Help to Buy Additions,South West,SWAYTHLING HOUSING SOCIETY LIMITED,Daily IMS payment,02/08/2017, 361.00 ,,N/A,Grant
Communities and Local Government,Homes and Communities Agency,Help to Buy Additions,South West,SWAYTHLING HOUSING SOCIETY LIMITED,Daily IMS payment,02/08/2017, 361.00 ,,N/A,Grant
Communities and Local Government,Homes and Communities Agency,Help to Buy Additions,South West,SWAYTHLING HOUSING SOCIETY LIMITED,Daily IMS payment,02/08/2017, 361.00 ,,N/A,Grant
Communities and Local Government,Homes and Communities Agency,Help to Buy Additions,South West,SWAYTHLING HOUSING SOCIETY LIMITED,Daily IMS payment,02/08/2017, 361.00 ,,N/A,Grant
Communities and Local Government,Homes and Communities Agency,Help to Buy Additions,South West,SWAYTHLING HOUSING SOCIETY LIMITED,Daily IMS payment,02/08/2017, 361.00 ,,N/A,Grant
Communities and Local Government,Homes and Communities Agency,Help to Buy Additions,South West,SWAYTHLING HOUSING SOCIETY LIMITED,Daily IMS payment,02/08/2017, 361.00 ,,N/A,Grant
Communities and Local Government,Homes and Communities Agency,Help to Buy Additions,South West,SWAYTHLING HOUSING SOCIETY LIMITED,Daily IMS payment,02/08/2017, 361.00 ,,N/A,Grant
Communities and Local Government,Homes and Communities Agency,Help to Buy Additions,South West,SWAYTHLING HOUSING SOCIETY LIMITED,Daily IMS payment,02/08/2017, 361.00 ,,N/A,Grant
Communities and Local Government,Homes and Communities Agency,Help to Buy Additions,South West,SWAYTHLING HOUSING SOCIETY LIMITED,Daily IMS payment,02/08/2017, 361.00 ,,N/A,Grant
Communities and Local Government,Homes and Communities Agency,Help to Buy Additions,South West,SWAYTHLING HOUSING SOCIETY LIMITED,Daily IMS payment,03/08/2017, 361.00 ,,N/A,Grant
Communities and Local Government,Homes and Communities Agency,Help to Buy Additions,South West,SWAYTHLING HOUSING SOCIETY LIMITED,Daily IMS payment,03/08/2017, 361.00 ,,N/A,Grant
Communities and Local Government,Homes and Communities Agency,Help to Buy Additions,South West,SWAYTHLING HOUSING SOCIETY LIMITED,Daily IMS payment,03/08/2017, 361.00 ,,N/A,Grant
Communities and Local Government,Homes and Communities Agency,Help to Buy Additions,South West,SWAYTHLING HOUSING SOCIETY LIMITED,Daily IMS payment,03/08/2017, 361.00 ,,N/A,Grant
Communities and Local Government,Homes and Communities Agency,Help to Buy Additions,South West,SWAYTHLING HOUSING SOCIETY LIMITED,Daily IMS payment,03/08/2017, 361.00 ,,N/A,Grant
Communities and Local Government,Homes and Communities Agency,Help to Buy Additions,South West,SWAYTHLING HOUSING SOCIETY LIMITED,Daily IMS payment,03/08/2017, 361.00 ,,N/A,Grant
Communities and Local Government,Homes and Communities Agency,Help to Buy Additions,South West,SWAYTHLING HOUSING SOCIETY LIMITED,Daily IMS payment,03/08/2017, 361.00 ,,N/A,Grant
Communities and Local Government,Homes and Communities Agency,Help to Buy Additions,South West,SWAYTHLING HOUSING SOCIETY LIMITED,Daily IMS payment,03/08/2017, 361.00 ,,N/A,Grant
Communities and Local Government,Homes and Communities Agency,Help to Buy Additions,South West,SWAYTHLING HOUSING SOCIETY LIMITED,Daily IMS payment,03/08/2017, 361.00 ,,N/A,Grant
Communities and Local Government,Homes and Communities Agency,Help to Buy Additions,South West,SWAYTHLING HOUSING SOCIETY LIMITED,Daily IMS payment,04/08/2017, 361.00 ,,N/A,Grant
Communities and Local Government,Homes and Communities Agency,Help to Buy Additions,South West,SWAYTHLING HOUSING SOCIETY LIMITED,Daily IMS payment,04/08/2017, 361.00 ,,N/A,Grant
Communities and Local Government,Homes and Communities Agency,Help to Buy Additions,South West,SWAYTHLING HOUSING SOCIETY LIMITED,Daily IMS payment,04/08/2017, 361.00 ,,N/A,Grant
Communities and Local Government,Homes and Communities Agency,Help to Buy Additions,South West,SWAYTHLING HOUSING SOCIETY LIMITED,Daily IMS payment,04/08/2017, 361.00 ,,N/A,Grant
Communities and Local Government,Homes and Communities Agency,Help to Buy Additions,South West,SWAYTHLING HOUSING SOCIETY LIMITED,Daily IMS payment,04/08/2017, 361.00 ,,N/A,Grant
Communities and Local Government,Homes and Communities Agency,Help to Buy Additions,South West,SWAYTHLING HOUSING SOCIETY LIMITED,Daily IMS payment,04/08/2017, 361.00 ,,N/A,Grant
Communities and Local Government,Homes and Communities Agency,Help to Buy Additions,South West,SWAYTHLING HOUSING SOCIETY LIMITED,Daily IMS payment,04/08/2017, 361.00 ,,N/A,Grant
Communities and Local Government,Homes and Communities Agency,Help to Buy Additions,South West,SWAYTHLING HOUSING SOCIETY LIMITED,Daily IMS payment,07/08/2017, 361.00 ,,N/A,Grant
Communities and Local Government,Homes and Communities Agency,Help to Buy Additions,South West,SWAYTHLING HOUSING SOCIETY LIMITED,Daily IMS payment,07/08/2017, 361.00 ,,N/A,Grant
Communities and Local Government,Homes and Communities Agency,Help to Buy Additions,South West,SWAYTHLING HOUSING SOCIETY LIMITED,Daily IMS payment,07/08/2017, 361.00 ,,N/A,Grant
Communities and Local Government,Homes and Communities Agency,Help to Buy Additions,South West,SWAYTHLING HOUSING SOCIETY LIMITED,Daily IMS payment,07/08/2017, 361.00 ,,N/A,Grant
Communities and Local Government,Homes and Communities Agency,Help to Buy Additions,South West,SWAYTHLING HOUSING SOCIETY LIMITED,Daily IMS payment,07/08/2017, 361.00 ,,N/A,Grant
Communities and Local Government,Homes and Communities Agency,Help to Buy Additions,South West,SWAYTHLING HOUSING SOCIETY LIMITED,Daily IMS payment,07/08/2017, 361.00 ,,N/A,Grant
Communities and Local Government,Homes and Communities Agency,Help to Buy Additions,South West,SWAYTHLING HOUSING SOCIETY LIMITED,Daily IMS payment,07/08/2017, 361.00 ,,N/A,Grant
Communities and Local Government,Homes and Communities Agency,Help to Buy Additions,South West,SWAYTHLING HOUSING SOCIETY LIMITED,Daily IMS payment,07/08/2017, 361.00 ,,N/A,Grant
Communities and Local Government,Homes and Communities Agency,Help to Buy Additions,South West,SWAYTHLING HOUSING SOCIETY LIMITED,Daily IMS payment,07/08/2017, 361.00 ,,N/A,Grant
Communities and Local Government,Homes and Communities Agency,Help to Buy Additions,South West,SWAYTHLING HOUSING SOCIETY LIMITED,Daily IMS payment,07/08/2017, 361.00 ,,N/A,Grant
Communities and Local Government,Homes and Communities Agency,Help to Buy Additions,South West,SWAYTHLING HOUSING SOCIETY LIMITED,Daily IMS payment,07/08/2017, 361.00 ,,N/A,Grant
Communities and Local Government,Homes and Communities Agency,Help to Buy Additions,South West,SWAYTHLING HOUSING SOCIETY LIMITED,Daily IMS payment,07/08/2017, 361.00 ,,N/A,Grant
Communities and Local Government,Homes and Communities Agency,Help to Buy Additions,South West,SWAYTHLING HOUSING SOCIETY LIMITED,Daily IMS payment,07/08/2017, 361.00 ,,N/A,Grant
Communities and Local Government,Homes and Communities Agency,Help to Buy Additions,South West,SWAYTHLING HOUSING SOCIETY LIMITED,Daily IMS payment,07/08/2017, 361.00 ,,N/A,Grant
Communities and Local Government,Homes and Communities Agency,Help to Buy Additions,South West,SWAYTHLING HOUSING SOCIETY LIMITED,Daily IMS payment,07/08/2017, 361.00 ,,N/A,Grant
Communities and Local Government,Homes and Communities Agency,Help to Buy Additions,South West,SWAYTHLING HOUSING SOCIETY LIMITED,Daily IMS payment,07/08/2017, 361.00 ,,N/A,Grant
Communities and Local Government,Homes and Communities Agency,Help to Buy Additions,South West,SWAYTHLING HOUSING SOCIETY LIMITED,Daily IMS payment,08/08/2017, 361.00 ,,N/A,Grant
Communities and Local Government,Homes and Communities Agency,Help to Buy Additions,South West,SWAYTHLING HOUSING SOCIETY LIMITED,Daily IMS payment,08/08/2017, 361.00 ,,N/A,Grant
Communities and Local Government,Homes and Communities Agency,Help to Buy Additions,South West,SWAYTHLING HOUSING SOCIETY LIMITED,Daily IMS payment,08/08/2017, 361.00 ,,N/A,Grant
Communities and Local Government,Homes and Communities Agency,Help to Buy Additions,South West,SWAYTHLING HOUSING SOCIETY LIMITED,Daily IMS payment,08/08/2017, 361.00 ,,N/A,Grant
Communities and Local Government,Homes and Communities Agency,Help to Buy Additions,South West,SWAYTHLING HOUSING SOCIETY LIMITED,Daily IMS payment,09/08/2017, 361.00 ,,N/A,Grant
Communities and Local Government,Homes and Communities Agency,Help to Buy Additions,South West,SWAYTHLING HOUSING SOCIETY LIMITED,Daily IMS payment,09/08/2017, 361.00 ,,N/A,Grant
Communities and Local Government,Homes and Communities Agency,Help to Buy Additions,South West,SWAYTHLING HOUSING SOCIETY LIMITED,Daily IMS payment,09/08/2017, 361.00 ,,N/A,Grant
Communities and Local Government,Homes and Communities Agency,Help to Buy Additions,South West,SWAYTHLING HOUSING SOCIETY LIMITED,Daily IMS payment,09/08/2017, 361.00 ,,N/A,Grant
Communities and Local Government,Homes and Communities Agency,Help to Buy Additions,South West,SWAYTHLING HOUSING SOCIETY LIMITED,Daily IMS payment,09/08/2017, 361.00 ,,N/A,Grant
Communities and Local Government,Homes and Communities Agency,Help to Buy Additions,South West,SWAYTHLING HOUSING SOCIETY LIMITED,Daily IMS payment,09/08/2017, 361.00 ,,N/A,Grant
Communities and Local Government,Homes and Communities Agency,Help to Buy Additions,South West,SWAYTHLING HOUSING SOCIETY LIMITED,Daily IMS payment,09/08/2017, 361.00 ,,N/A,Grant
Communities and Local Government,Homes and Communities Agency,Help to Buy Additions,South West,SWAYTHLING HOUSING SOCIETY LIMITED,Daily IMS payment,09/08/2017, 361.00 ,,N/A,Grant
Communities and Local Government,Homes and Communities Agency,Help to Buy Additions,South West,SWAYTHLING HOUSING SOCIETY LIMITED,Daily IMS payment,09/08/2017, 361.00 ,,N/A,Grant
Communities and Local Government,Homes and Communities Agency,Help to Buy Additions,South West,SWAYTHLING HOUSING SOCIETY LIMITED,Daily IMS payment,09/08/2017, 361.00 ,,N/A,Grant
Communities and Local Government,Homes and Communities Agency,Help to Buy Additions,South West,SWAYTHLING HOUSING SOCIETY LIMITED,Daily IMS payment,09/08/2017, 361.00 ,,N/A,Grant
Communities and Local Government,Homes and Communities Agency,Help to Buy Additions,South West,SWAYTHLING HOUSING SOCIETY LIMITED,Daily IMS payment,09/08/2017, 361.00 ,,N/A,Grant
Communities and Local Government,Homes and Communities Agency,Help to Buy Additions,South West,SWAYTHLING HOUSING SOCIETY LIMITED,Daily IMS payment,09/08/2017, 361.00 ,,N/A,Grant
Communities and Local Government,Homes and Communities Agency,Help to Buy Additions,South West,SWAYTHLING HOUSING SOCIETY LIMITED,Daily IMS payment,09/08/2017, 361.00 ,,N/A,Grant
Communities and Local Government,Homes and Communities Agency,Help to Buy Additions,South West,SWAYTHLING HOUSING SOCIETY LIMITED,Daily IMS payment,10/08/2017, 361.00 ,,N/A,Grant
Communities and Local Government,Homes and Communities Agency,Help to Buy Additions,South West,SWAYTHLING HOUSING SOCIETY LIMITED,Daily IMS payment,10/08/2017, 361.00 ,,N/A,Grant
Communities and Local Government,Homes and Communities Agency,Help to Buy Additions,South West,SWAYTHLING HOUSING SOCIETY LIMITED,Daily IMS payment,10/08/2017, 361.00 ,,N/A,Grant
Communities and Local Government,Homes and Communities Agency,Help to Buy Additions,South West,SWAYTHLING HOUSING SOCIETY LIMITED,Daily IMS payment,10/08/2017, 361.00 ,,N/A,Grant
Communities and Local Government,Homes and Communities Agency,Help to Buy Additions,South West,SWAYTHLING HOUSING SOCIETY LIMITED,Daily IMS payment,10/08/2017, 361.00 ,,N/A,Grant
Communities and Local Government,Homes and Communities Agency,Help to Buy Additions,South West,SWAYTHLING HOUSING SOCIETY LIMITED,Daily IMS payment,10/08/2017, 361.00 ,,N/A,Grant
Communities and Local Government,Homes and Communities Agency,Help to Buy Additions,South West,SWAYTHLING HOUSING SOCIETY LIMITED,Daily IMS payment,10/08/2017, 361.00 ,,N/A,Grant
Communities and Local Government,Homes and Communities Agency,Help to Buy Additions,South West,SWAYTHLING HOUSING SOCIETY LIMITED,Daily IMS payment,10/08/2017, 361.00 ,,N/A,Grant
Communities and Local Government,Homes and Communities Agency,Help to Buy Additions,South West,SWAYTHLING HOUSING SOCIETY LIMITED,Daily IMS payment,10/08/2017, 361.00 ,,N/A,Grant
Communities and Local Government,Homes and Communities Agency,Help to Buy Additions,South West,SWAYTHLING HOUSING SOCIETY LIMITED,Daily IMS payment,10/08/2017, 361.00 ,,N/A,Grant
Communities and Local Government,Homes and Communities Agency,Help to Buy Additions,South West,SWAYTHLING HOUSING SOCIETY LIMITED,Daily IMS payment,10/08/2017, 361.00 ,,N/A,Grant
Communities and Local Government,Homes and Communities Agency,Help to Buy Additions,South West,SWAYTHLING HOUSING SOCIETY LIMITED,Daily IMS payment,10/08/2017, 361.00 ,,N/A,Grant
Communities and Local Government,Homes and Communities Agency,Help to Buy Additions,South West,SWAYTHLING HOUSING SOCIETY LIMITED,Daily IMS payment,10/08/2017, 361.00 ,,N/A,Grant
Communities and Local Government,Homes and Communities Agency,Help to Buy Additions,South West,SWAYTHLING HOUSING SOCIETY LIMITED,Daily IMS payment,10/08/2017, 361.00 ,,N/A,Grant
Communities and Local Government,Homes and Communities Agency,Help to Buy Additions,South West,SWAYTHLING HOUSING SOCIETY LIMITED,Daily IMS payment,10/08/2017, 361.00 ,,N/A,Grant
Communities and Local Government,Homes and Communities Agency,Help to Buy Additions,South West,SWAYTHLING HOUSING SOCIETY LIMITED,Daily IMS payment,10/08/2017, 361.00 ,,N/A,Grant
Communities and Local Government,Homes and Communities Agency,Help to Buy Additions,South West,SWAYTHLING HOUSING SOCIETY LIMITED,Daily IMS payment,10/08/2017, 361.00 ,,N/A,Grant
Communities and Local Government,Homes and Communities Agency,Help to Buy Additions,South West,SWAYTHLING HOUSING SOCIETY LIMITED,Daily IMS payment,10/08/2017, 361.00 ,,N/A,Grant
Communities and Local Government,Homes and Communities Agency,Help to Buy Additions,South West,SWAYTHLING HOUSING SOCIETY LIMITED,Daily IMS payment,10/08/2017, 361.00 ,,N/A,Grant
Communities and Local Government,Homes and Communities Agency,Help to Buy Additions,South West,SWAYTHLING HOUSING SOCIETY LIMITED,Daily IMS payment,10/08/2017, 361.00 ,,N/A,Grant
Communities and Local Government,Homes and Communities Agency,Help to Buy Additions,South West,SWAYTHLING HOUSING SOCIETY LIMITED,Daily IMS payment,10/08/2017, 361.00 ,,N/A,Grant
Communities and Local Government,Homes and Communities Agency,Help to Buy Additions,South West,SWAYTHLING HOUSING SOCIETY LIMITED,Daily IMS payment,10/08/2017, 361.00 ,,N/A,Grant
Communities and Local Government,Homes and Communities Agency,Help to Buy Additions,South West,SWAYTHLING HOUSING SOCIETY LIMITED,Daily IMS payment,10/08/2017, 361.00 ,,N/A,Grant
Communities and Local Government,Homes and Communities Agency,Help to Buy Additions,South West,SWAYTHLING HOUSING SOCIETY LIMITED,Daily IMS payment,11/08/2017, 361.00 ,,N/A,Grant
Communities and Local Government,Homes and Communities Agency,Help to Buy Additions,South West,SWAYTHLING HOUSING SOCIETY LIMITED,Daily IMS payment,11/08/2017, 361.00 ,,N/A,Grant
Communities and Local Government,Homes and Communities Agency,Help to Buy Additions,South West,SWAYTHLING HOUSING SOCIETY LIMITED,Daily IMS payment,11/08/2017, 361.00 ,,N/A,Grant
Communities and Local Government,Homes and Communities Agency,Help to Buy Additions,South West,SWAYTHLING HOUSING SOCIETY LIMITED,Daily IMS payment,11/08/2017, 361.00 ,,N/A,Grant
Communities and Local Government,Homes and Communities Agency,Help to Buy Additions,South West,SWAYTHLING HOUSING SOCIETY LIMITED,Daily IMS payment,14/08/2017, 361.00 ,,N/A,Grant
Communities and Local Government,Homes and Communities Agency,Help to Buy Additions,South West,SWAYTHLING HOUSING SOCIETY LIMITED,Daily IMS payment,14/08/2017, 361.00 ,,N/A,Grant
Communities and Local Government,Homes and Communities Agency,Help to Buy Additions,South West,SWAYTHLING HOUSING SOCIETY LIMITED,Daily IMS payment,14/08/2017, 361.00 ,,N/A,Grant
Communities and Local Government,Homes and Communities Agency,Help to Buy Additions,South West,SWAYTHLING HOUSING SOCIETY LIMITED,Daily IMS payment,14/08/2017, 361.00 ,,N/A,Grant
Communities and Local Government,Homes and Communities Agency,Help to Buy Additions,South West,SWAYTHLING HOUSING SOCIETY LIMITED,Daily IMS payment,14/08/2017, 361.00 ,,N/A,Grant
Communities and Local Government,Homes and Communities Agency,Help to Buy Additions,South West,SWAYTHLING HOUSING SOCIETY LIMITED,Daily IMS payment,15/08/2017, 361.00 ,,N/A,Grant
Communities and Local Government,Homes and Communities Agency,Help to Buy Additions,South West,SWAYTHLING HOUSING SOCIETY LIMITED,Daily IMS payment,15/08/2017, 361.00 ,,N/A,Grant
Communities and Local Government,Homes and Communities Agency,Help to Buy Additions,South West,SWAYTHLING HOUSING SOCIETY LIMITED,Daily IMS payment,15/08/2017, 361.00 ,,N/A,Grant
Communities and Local Government,Homes and Communities Agency,Help to Buy Additions,South West,SWAYTHLING HOUSING SOCIETY LIMITED,Daily IMS payment,15/08/2017, 361.00 ,,N/A,Grant
Communities and Local Government,Homes and Communities Agency,Help to Buy Additions,South West,SWAYTHLING HOUSING SOCIETY LIMITED,Daily IMS payment,15/08/2017, 361.00 ,,N/A,Grant
Communities and Local Government,Homes and Communities Agency,Help to Buy Additions,South West,SWAYTHLING HOUSING SOCIETY LIMITED,Daily IMS payment,15/08/2017, 361.00 ,,N/A,Grant
Communities and Local Government,Homes and Communities Agency,Help to Buy Additions,South West,SWAYTHLING HOUSING SOCIETY LIMITED,Daily IMS payment,15/08/2017, 361.00 ,,N/A,Grant
Communities and Local Government,Homes and Communities Agency,Help to Buy Additions,South West,SWAYTHLING HOUSING SOCIETY LIMITED,Daily IMS payment,15/08/2017, 361.00 ,,N/A,Grant
Communities and Local Government,Homes and Communities Agency,Help to Buy Additions,South West,SWAYTHLING HOUSING SOCIETY LIMITED,Daily IMS payment,15/08/2017, 361.00 ,,N/A,Grant
Communities and Local Government,Homes and Communities Agency,Help to Buy Additions,South West,SWAYTHLING HOUSING SOCIETY LIMITED,Daily IMS payment,15/08/2017, 361.00 ,,N/A,Grant
Communities and Local Government,Homes and Communities Agency,Help to Buy Additions,South West,SWAYTHLING HOUSING SOCIETY LIMITED,Daily IMS payment,15/08/2017, 361.00 ,,N/A,Grant
Communities and Local Government,Homes and Communities Agency,Help to Buy Additions,South West,SWAYTHLING HOUSING SOCIETY LIMITED,Daily IMS payment,15/08/2017, 361.00 ,,N/A,Grant
Communities and Local Government,Homes and Communities Agency,Help to Buy Additions,South West,SWAYTHLING HOUSING SOCIETY LIMITED,Daily IMS payment,15/08/2017, 361.00 ,,N/A,Grant
Communities and Local Government,Homes and Communities Agency,Help to Buy Additions,South West,SWAYTHLING HOUSING SOCIETY LIMITED,Daily IMS payment,15/08/2017, 361.00 ,,N/A,Grant
Communities and Local Government,Homes and Communities Agency,Help to Buy Additions,South West,SWAYTHLING HOUSING SOCIETY LIMITED,Daily IMS payment,15/08/2017, 361.00 ,,N/A,Grant
Communities and Local Government,Homes and Communities Agency,Help to Buy Additions,South West,SWAYTHLING HOUSING SOCIETY LIMITED,Daily IMS payment,15/08/2017, 361.00 ,,N/A,Grant
Communities and Local Government,Homes and Communities Agency,Help to Buy Additions,South West,SWAYTHLING HOUSING SOCIETY LIMITED,Daily IMS payment,15/08/2017, 361.00 ,,N/A,Grant
Communities and Local Government,Homes and Communities Agency,Help to Buy Additions,South West,SWAYTHLING HOUSING SOCIETY LIMITED,Daily IMS payment,15/08/2017, 361.00 ,,N/A,Grant
Communities and Local Government,Homes and Communities Agency,Help to Buy Additions,South West,SWAYTHLING HOUSING SOCIETY LIMITED,Daily IMS payment,16/08/2017, 361.00 ,,N/A,Grant
Communities and Local Government,Homes and Communities Agency,Help to Buy Additions,South West,SWAYTHLING HOUSING SOCIETY LIMITED,Daily IMS payment,16/08/2017, 361.00 ,,N/A,Grant
Communities and Local Government,Homes and Communities Agency,Help to Buy Additions,South West,SWAYTHLING HOUSING SOCIETY LIMITED,Daily IMS payment,16/08/2017, 361.00 ,,N/A,Grant
Communities and Local Government,Homes and Communities Agency,Help to Buy Additions,South West,SWAYTHLING HOUSING SOCIETY LIMITED,Daily IMS payment,16/08/2017, 361.00 ,,N/A,Grant
Communities and Local Government,Homes and Communities Agency,Help to Buy Additions,South West,SWAYTHLING HOUSING SOCIETY LIMITED,Daily IMS payment,16/08/2017, 361.00 ,,N/A,Grant
Communities and Local Government,Homes and Communities Agency,Help to Buy Additions,South West,SWAYTHLING HOUSING SOCIETY LIMITED,Daily IMS payment,16/08/2017, 361.00 ,,N/A,Grant
Communities and Local Government,Homes and Communities Agency,Help to Buy Additions,South West,SWAYTHLING HOUSING SOCIETY LIMITED,Daily IMS payment,16/08/2017, 361.00 ,,N/A,Grant
Communities and Local Government,Homes and Communities Agency,Help to Buy Additions,South West,SWAYTHLING HOUSING SOCIETY LIMITED,Daily IMS payment,16/08/2017, 361.00 ,,N/A,Grant
Communities and Local Government,Homes and Communities Agency,Help to Buy Additions,South West,SWAYTHLING HOUSING SOCIETY LIMITED,Daily IMS payment,16/08/2017, 361.00 ,,N/A,Grant
Communities and Local Government,Homes and Communities Agency,Help to Buy Additions,South West,SWAYTHLING HOUSING SOCIETY LIMITED,Daily IMS payment,16/08/2017, 361.00 ,,N/A,Grant
Communities and Local Government,Homes and Communities Agency,Help to Buy Additions,South West,SWAYTHLING HOUSING SOCIETY LIMITED,Daily IMS payment,16/08/2017, 361.00 ,,N/A,Grant
Communities and Local Government,Homes and Communities Agency,Help to Buy Additions,South West,SWAYTHLING HOUSING SOCIETY LIMITED,Daily IMS payment,16/08/2017, 361.00 ,,N/A,Grant
Communities and Local Government,Homes and Communities Agency,Help to Buy Additions,South West,SWAYTHLING HOUSING SOCIETY LIMITED,Daily IMS payment,16/08/2017, 361.00 ,,N/A,Grant
Communities and Local Government,Homes and Communities Agency,Help to Buy Additions,South West,SWAYTHLING HOUSING SOCIETY LIMITED,Daily IMS payment,16/08/2017, 361.00 ,,N/A,Grant
Communities and Local Government,Homes and Communities Agency,Help to Buy Additions,South West,SWAYTHLING HOUSING SOCIETY LIMITED,Daily IMS payment,16/08/2017, 361.00 ,,N/A,Grant
Communities and Local Government,Homes and Communities Agency,Help to Buy Additions,South West,SWAYTHLING HOUSING SOCIETY LIMITED,Daily IMS payment,16/08/2017, 361.00 ,,N/A,Grant
Communities and Local Government,Homes and Communities Agency,Help to Buy Additions,South West,SWAYTHLING HOUSING SOCIETY LIMITED,Daily IMS payment,16/08/2017, 361.00 ,,N/A,Grant
Communities and Local Government,Homes and Communities Agency,Help to Buy Additions,South West,SWAYTHLING HOUSING SOCIETY LIMITED,Daily IMS payment,16/08/2017, 361.00 ,,N/A,Grant
Communities and Local Government,Homes and Communities Agency,Help to Buy Additions,South West,SWAYTHLING HOUSING SOCIETY LIMITED,Daily IMS payment,16/08/2017, 361.00 ,,N/A,Grant
Communities and Local Government,Homes and Communities Agency,Help to Buy Additions,South West,SWAYTHLING HOUSING SOCIETY LIMITED,Daily IMS payment,16/08/2017, 361.00 ,,N/A,Grant
Communities and Local Government,Homes and Communities Agency,Help to Buy Additions,South West,SWAYTHLING HOUSING SOCIETY LIMITED,Daily IMS payment,16/08/2017, 361.00 ,,N/A,Grant
Communities and Local Government,Homes and Communities Agency,Help to Buy Additions,South West,SWAYTHLING HOUSING SOCIETY LIMITED,Daily IMS payment,16/08/2017, 361.00 ,,N/A,Grant
Communities and Local Government,Homes and Communities Agency,Help to Buy Additions,South West,SWAYTHLING HOUSING SOCIETY LIMITED,Daily IMS payment,16/08/2017, 361.00 ,,N/A,Grant
Communities and Local Government,Homes and Communities Agency,Help to Buy Additions,South West,SWAYTHLING HOUSING SOCIETY LIMITED,Daily IMS payment,16/08/2017, 361.00 ,,N/A,Grant
Communities and Local Government,Homes and Communities Agency,Help to Buy Additions,South West,SWAYTHLING HOUSING SOCIETY LIMITED,Daily IMS payment,16/08/2017, 361.00 ,,N/A,Grant
Communities and Local Government,Homes and Communities Agency,Help to Buy Additions,South West,SWAYTHLING HOUSING SOCIETY LIMITED,Daily IMS payment,16/08/2017, 361.00 ,,N/A,Grant
